Transaction_ID,Transaction_Date,Department,Beneficiary, Net_Transaction_Amount ,Summary_of_Purpose,MCC,Merchant_Description
CCC_10002181_2,01/04/2023,Marketing & Communications Team,GOOGLE ADS3539603203 DUBLIN,206.76,Advertising,7311,ADVERTISING SERVICES
CCC_10002461_1,01/04/2023,Marketing & Communications Team,GOOGLE ADS8205095539 DUBLIN,185.98,Advertising,7311,ADVERTISING SERVICES
CCC_10002204_5,01/04/2023,Marketing & Communications Team,FACEBK  CEWK9M3Z52 FB.ME/ADS,132.19,Advertising,7311,ADVERTISING SERVICES
CCC_10002244_8,01/04/2023,Parks & Green Spaces,AMZNMKTPLACE AMAZON.CO.UK,16.66,Grounds Maintenance Materials,5999,MISCELLANEOUS & SPECIALTY STORES
CCC_10002244_7,01/04/2023,Parks & Green Spaces,AMZNMKTPLACE AMAZON.CO.UK,173.27,Grounds Maintenance Materials,5999,MISCELLANEOUS & SPECIALTY STORES
CCC_10002287_15,01/04/2023,Human Resources,GOOGLE ADS2733035999 DUBLIN,160.66,General Expense,7311,ADVERTISING SERVICES
CCC_10002275_1,01/04/2023,"Museums, Theatres & Cultural Services",TESCO STORES 5408 CHELMSFORD,3.50,General Expense,5411,GROCERY STORES OR SUPERMARKETS
CCC_10002204_9,01/04/2023,Marketing & Communications Team,GOOGLE ADS9290904130 DUBLIN,543.54,Advertising,7311,ADVERTISING SERVICES
CCC_10002278_6,02/04/2023,Leisure & Heritage Services,PRINT MARKETPLACE 40 2802345,31.63,Printing & Stationary,7338," PRINT SHOPS, QUICK COPY SERVICES OR REPRODUCTION SERVICES "
CCC_10002193_6,03/04/2023,Parks & Green Spaces,TESCO-STORES 6724 CHELMSFORD,3.17,General Expense,5411,GROCERY STORES OR SUPERMARKETS
CCC_10002204_4,03/04/2023,Marketing & Communications Team,PRINT MARKETPLACE 40 2802345,77.01,Printing & Stationary,7338," PRINT SHOPS, QUICK COPY SERVICES OR REPRODUCTION SERVICES "
CCC_10002180_7,03/04/2023,Revenue and Benefit Services,AMZNMKTPLACE AMAZON.CO AMAZON.CO.UK,5.68,Printing & Stationary,5999,MISCELLANEOUS & SPECIALTY STORES
CCC_10003501_1,03/04/2023,Parks & Green Spaces,TESCO STORES 2330 CHELMSFORD 2,51.67,Grounds Maintenance Materials,5411,GROCERY STORES OR SUPERMARKETS
CCC_10002201_7,03/04/2023,Leisure & Heritage Services,TESCO STORES 2172 BRAINTREE,36.85,General Expense,5411,GROCERY STORES OR SUPERMARKETS
CCC_10002204_2,03/04/2023,Marketing & Communications Team,PRINT MARKETPLACE 40 2802345,157.51,Printing & Stationary,7338," PRINT SHOPS, QUICK COPY SERVICES OR REPRODUCTION SERVICES "
CCC_10002255_17,03/04/2023,South Essex Parking Partnership,AMZNBUSINESS AMAZON.CO LUXEMBOURG L,-155.98,New Equipment,5999,MISCELLANEOUS & SPECIALTY STORES
CCC_10002204_3,03/04/2023,Marketing & Communications Team,PRINT MARKETPLACE 40 2802345,77.01,Printing & Stationary,7338," PRINT SHOPS, QUICK COPY SERVICES OR REPRODUCTION SERVICES "
CCC_10002172_2,03/04/2023,Digital Services,GREATER ANGLIA 4278,28.75,Public Transport,4112,PASSENGER RAILWAYS
CCC_10002180_5,03/04/2023,Revenue and Benefit Services,AMZNMKTPLACE AMAZON.CO AMAZON.CO.UK,23.32,Printing & Stationary,5999,MISCELLANEOUS & SPECIALTY STORES
CCC_10002703_1,03/04/2023,"Museums, Theatres & Cultural Services",WILKO RETAIL LIMITED CHELMSFORD,2.50,Printing & Stationary,5399,GENERAL MERCHANDISE OR CONVENIENCE FOOD STORES
CCC_10002275_3,03/04/2023,"Museums, Theatres & Cultural Services",TESCO STORES 5408 CHELMSFORD,12.85,General Expense,5411,GROCERY STORES OR SUPERMARKETS
CCC_10002193_7,03/04/2023,Parks & Green Spaces,ASDA SUPERSTORE CHELMSFORD,34.04,General Expense,5411,GROCERY STORES OR SUPERMARKETS
CCC_10002180_6,03/04/2023,Revenue and Benefit Services,AMZNMKTPLACE AMAZON.CO AMAZON.CO.UK,10.29,Printing & Stationary,5999,MISCELLANEOUS & SPECIALTY STORES
CCC_10002194_12,03/04/2023,Leisure & Heritage Services,O2 PREPAY TOP-UP SLOUGH,10.00,General Expense,4814,TELECOMMUNCATIONS SERV INCL LOCA/LONG DIST CREDIT & FAX
CCC_10002254_11,03/04/2023,Operational Services,AMZNMKTPLACE AMAZON.CO.UK,79.90,General Expense,5999,MISCELLANEOUS & SPECIALTY STORES
CCC_10002703_2,03/04/2023,"Museums, Theatres & Cultural Services",AMZNMKTPLACE AMAZON.CO.UK,6.20,Printing & Stationary,5999,MISCELLANEOUS & SPECIALTY STORES
CCC_10002278_5,03/04/2023,Leisure & Heritage Services,TESCO STORES 5408 CHELMSFORD,42.00,General Expense,5411,GROCERY STORES OR SUPERMARKETS
CCC_10002255_18,03/04/2023,South Essex Parking Partnership,RJ PRINTERS LTD MALDON,238.00,Printing & Stationary,2741,MISCELLANEOUS PUBLISHING AND PRINTING
CCC_10002275_2,03/04/2023,"Museums, Theatres & Cultural Services",WWW.JOEANDSEPHS.CO.UK WATFORD,217.72,General Expense,5499,MISC FOOD STORES - SPECIALTY MARKETS & CONVENIENCE
CCC_10002288_2,04/04/2023,Parks & Green Spaces,FEE2PAYONLINE LONDON,2.50,Printing & Stationary,9402,POSTAGE STAMPS
CCC_10003806_2,04/04/2023,Building Services,AMZNMKTPLACE AMAZON.CO AMAZON.CO.UK,55.99,General Expense,5999,MISCELLANEOUS & SPECIALTY STORES
CCC_10003501_2,04/04/2023,Parks & Green Spaces,TESCO STORES 2330 CHELMSFORD 2,11.46,Grounds Maintenance Materials,5411,GROCERY STORES OR SUPERMARKETS
CCC_10002194_9,04/04/2023,Leisure & Heritage Services,AMZNMKTPLACE AMAZON.CO.UK,12.47,General Expense,5999,MISCELLANEOUS & SPECIALTY STORES
CCC_10002258_1,04/04/2023,Leisure & Heritage Services,AMZNMKTPLACE AMAZON.CO AMAZON.CO.UK,47.27,General Expense,5999,MISCELLANEOUS & SPECIALTY STORES
CCC_10002194_10,04/04/2023,Leisure & Heritage Services,AMZNMKTPLACE AMAZON.CO.UK,24.98,General Expense,5999,MISCELLANEOUS & SPECIALTY STORES
CCC_10002254_10,04/04/2023,Operational Services,AMZNMKTPLACE AMAZON.CO.UK,3.49,Printing & Stationary,5999,MISCELLANEOUS & SPECIALTY STORES
CCC_10002275_4,04/04/2023,"Museums, Theatres & Cultural Services",TESCO STORES 5408 CHELMSFORD,7.00,General Expense,5411,GROCERY STORES OR SUPERMARKETS
CCC_10002194_11,04/04/2023,Leisure & Heritage Services,AMZNMKTPLACE AMAZON.CO.UK,4.98,General Expense,5999,MISCELLANEOUS & SPECIALTY STORES
CCC_10002317_2,04/04/2023,"Museums, Theatres & Cultural Services",ROTACLOUD YORK,40.00,Employee Subscriptions,5734,COMPUTER SOFTWARE STORES
CCC_10002254_9,04/04/2023,Operational Services,AMZNMKTPLACE AMAZON.CO.UK,12.69,Printing & Stationary,5999,MISCELLANEOUS & SPECIALTY STORES
CCC_10002318_11,04/04/2023,Parks & Green Spaces,AMZNMKTPLACE AMAZON.CO AMAZON.CO.UK,38.88,New Equipment,5999,MISCELLANEOUS & SPECIALTY STORES
CCC_10002172_1,04/04/2023,Digital Services,GREATER ANGLIA 2647,109.17,Public Transport,4112,PASSENGER RAILWAYS
CCC_10002317_3,04/04/2023,"Museums, Theatres & Cultural Services",BLUE SKY PRINTING CHELMSFORD,29.17,Printing & Stationary,2741,MISCELLANEOUS PUBLISHING AND PRINTING
CCC_10002200_1,04/04/2023,Parking & Highways Operations,AMAZON.CO.UK U49ZJ0BD5 AMAZON.CO.UK,77.37,Printing & Stationary,5969,DIRECT MARKETERS (NEC)
CCC_10003806_1,04/04/2023,Building Services,NEXTDAYCATERING.CO.UK AYR,40.95,General Expense,5046,COMMERCIAL EQUIPMENT (NEC)
CCC_10002193_5,04/04/2023,Parks & Green Spaces,HOLLAND & BARRETT CHELMSFORD,8.75,General Expense,5999,MISCELLANEOUS & SPECIALTY STORES
CCC_10002193_4,04/04/2023,Parks & Green Spaces,SUPERDRUG STORES PLC CHELMSFORD,1.04,General Expense,5912,PHARMCIES OR DRUG STORES
CCC_10002703_3,04/04/2023,"Museums, Theatres & Cultural Services",AMZNMKTPLACE AMAZON.CO.UK,4.07,Printing & Stationary,5999,MISCELLANEOUS & SPECIALTY STORES
CCC_10002178_3,04/04/2023,"Museums, Theatres & Cultural Services",THE LITTLE CRAFTY BUGS POOLE,11.74,New Equipment,5970,CRAFT OR ARTIST'S SUPPLY SHOPS
CCC_10002182_4,04/04/2023,Leisure & Heritage Services,WILKO RETAIL LIMITED CHELMSFORD,18.33,General Expense,5399,GENERAL MERCHANDISE OR CONVENIENCE FOOD STORES
CCC_10002265_10,05/04/2023,South Essex Parking Partnership,AMZ AMAZON.CO.UK AMAZON.CO.UK,-16.48,New Equipment,5969,DIRECT MARKETERS (NEC)
CCC_10002265_1,05/04/2023,South Essex Parking Partnership,AMZ AMAZON.CO.UK AMAZON.CO.UK,-16.49,New Equipment,5969,DIRECT MARKETERS (NEC)
CCC_10002265_5,05/04/2023,South Essex Parking Partnership,AMZ AMAZON.CO.UK AMAZON.CO.UK,-16.49,New Equipment,5969,DIRECT MARKETERS (NEC)
CCC_10002194_7,05/04/2023,Leisure & Heritage Services,AMZNMKTPLACE AMAZON.CO.UK,5.78,General Expense,5999,MISCELLANEOUS & SPECIALTY STORES
CCC_10002265_6,05/04/2023,South Essex Parking Partnership,AMZ AMAZON.CO.UK AMAZON.CO.UK,-16.49,New Equipment,5969,DIRECT MARKETERS (NEC)
CCC_10002265_4,05/04/2023,South Essex Parking Partnership,AMZ AMAZON.CO.UK AMAZON.CO.UK,-16.49,New Equipment,5969,DIRECT MARKETERS (NEC)
CCC_10002265_3,05/04/2023,South Essex Parking Partnership,AMZ AMAZON.CO.UK AMAZON.CO.UK,-16.49,New Equipment,5969,DIRECT MARKETERS (NEC)
CCC_10002187_1,05/04/2023,"Museums, Theatres & Cultural Services",AMZNMKTPLACE AMAZON.CO.UK,10.50,Printing & Stationary,5999,MISCELLANEOUS & SPECIALTY STORES
CCC_10002230_5,05/04/2023,Leisure & Heritage Services,WILKO RETAIL LIMITED CHELMSFORD,9.17,Grounds Maintenance Materials,5399,GENERAL MERCHANDISE OR CONVENIENCE FOOD STORES
CCC_10002265_7,05/04/2023,South Essex Parking Partnership,AMZ AMAZON.CO.UK AMAZON.CO.UK,-16.49,New Equipment,5969,DIRECT MARKETERS (NEC)
CCC_10002265_8,05/04/2023,South Essex Parking Partnership,AMZ AMAZON.CO.UK AMAZON.CO.UK,-16.49,New Equipment,5969,DIRECT MARKETERS (NEC)
CCC_10002176_1,05/04/2023,Operational Services,SCREWFIX DIR LTD CHELMFOR1066,39.80,New Equipment,5211,LUMBER AND BUILDING MATERIALS STORES
CCC_10002265_2,05/04/2023,South Essex Parking Partnership,AMZ AMAZON.CO.UK AMAZON.CO.UK,-16.49,New Equipment,5969,DIRECT MARKETERS (NEC)
CCC_10002194_8,05/04/2023,Leisure & Heritage Services,AMZNMKTPLACE AMAZON.CO.UK,4.99,General Expense,5999,MISCELLANEOUS & SPECIALTY STORES
CCC_10002216_3,05/04/2023,Leisure & Heritage Services,DEFIBSTORE LTD TIDESWELL,64.99,General Expense,5047," MEDICAL, DENTAL, OPHTHALMIC AND HOSPITAL EQUIP "
CCC_10002169_9,05/04/2023,"Museums, Theatres & Cultural Services",TESCO STORES 5408 CHELMSFORD,6.10,General Expense,5411,GROCERY STORES OR SUPERMARKETS
CCC_10002749_1,05/04/2023,Parks & Green Spaces,KEMPSTON CONTROLS RUSHDEN,320.30,General Expense,5065,ELECTRICAL PARTS AND EQUIPMENT
CCC_10002265_9,05/04/2023,South Essex Parking Partnership,AMZ AMAZON.CO.UK AMAZON.CO.UK,-16.49,New Equipment,5969,DIRECT MARKETERS (NEC)
CCC_10002244_6,06/04/2023,Parks & Green Spaces,D. BYFORD & SONS COLCHESTER CO,33.50,Grounds Maintenance Materials,5193," FLORIST SUPPLIES, NURSERY STOCK AND FLOWERS "
CCC_10002194_6,06/04/2023,Leisure & Heritage Services,AMZNMKTPLACE AMAZON.CO.UK,15.79,General Expense,5999,MISCELLANEOUS & SPECIALTY STORES
CCC_10002175_1,06/04/2023,Development Management,AMZNMKTPLACE AMAZON.CO.UK,4.10,Printing & Stationary,5999,MISCELLANEOUS & SPECIALTY STORES
CCC_10002287_12,06/04/2023,Human Resources,RTPI LONDON,331.00,Employee Subscriptions,7997," MEMBERSHIP CLUBS INCL SPORTS, REC, ATHLETIC, COUNTRY, GOLF "
CCC_10002284_6,06/04/2023,"Museums, Theatres & Cultural Services",AMZNMKTPLACE AMAZON.CO AMAZON.CO.UK,12.49,Printing & Stationary,5999,MISCELLANEOUS & SPECIALTY STORES
CCC_10002221_5,06/04/2023,"Museums, Theatres & Cultural Services",B & Q 1188 CHELMSFORD,20.00,Grounds Maintenance Materials,5200,HOME SUPPLY WAREHOUSE STORES
CCC_10002177_1,06/04/2023,Leisure & Heritage Services,AMZNMKTPLACE AMAZON.CO.UK,70.87,General Expense,5999,MISCELLANEOUS & SPECIALTY STORES
CCC_10002239_1,06/04/2023,Parks & Green Spaces,AMZNMKTPLACE AMAZON.CO.UK,99.97,Grounds Maintenance Materials,5999,MISCELLANEOUS & SPECIALTY STORES
CCC_10002287_14,06/04/2023,Human Resources,PAYPAL  CONSTRUCTIO 35314369001,158.33,Employee Subscriptions,8641," SOCIAL, FRATERNAL OR CIVIC ASSOCIATIONS "
CCC_10002287_13,06/04/2023,Human Resources,RTPI LONDON,66.00,Employee Subscriptions,7997," MEMBERSHIP CLUBS INCL SPORTS, REC, ATHLETIC, COUNTRY, GOLF "
CCC_10002254_8,06/04/2023,Operational Services,DREAMSTIME.COM 615-7715611,22.00,General Expense,5262,
CCC_10002195_2,06/04/2023,Leisure & Heritage Services,AMZNMKTPLACE AMAZON.CO.UK,5.82,New Equipment,5999,MISCELLANEOUS & SPECIALTY STORES
CCC_10002171_5,06/04/2023,Leisure & Heritage Services,SHARKNINJA EUROPE LEEDS,15.98,General Expense,5719,HOME FURNISHING SPECIALTY STORES -- MISCELLANEOUS
CCC_10002196_1,06/04/2023,Leisure & Heritage Services,HTTP://PMSE.OFCOM.ORG. LONDON  SE1,75.00,General Expense,8699,MEMBERSHIP ORGANIZATIONS NOT ELSEWHERE CLASSIFIED
CCC_10002164_2,06/04/2023,Public Health & Protection Services,CANVA  I03747-18512919 CAMDEN,83.32,Printing & Stationary,7221,PHOTOGRAPHIC STUDIOS
CCC_10002709_1,06/04/2023,"Museums, Theatres & Cultural Services",WWW.NISBETS.COM 0845 1110281,154.98,Grounds Maintenance Materials,5964,CATALOG MERCHANT
CCC_10002171_4,07/04/2023,Leisure & Heritage Services,AMZNMKTPLACE AMAZON.CO AMAZON.CO.UK,17.76,General Expense,5999,MISCELLANEOUS & SPECIALTY STORES
CCC_10002171_6,07/04/2023,Leisure & Heritage Services,AMZNMKTPLACE AMAZON.CO AMAZON.CO.UK,8.47,General Expense,5999,MISCELLANEOUS & SPECIALTY STORES
CCC_10002255_16,07/04/2023,South Essex Parking Partnership,WWW.HOTTER.COM LANCASHIRE,109.67,Clothing & Uniforms,5691,MEN'S AND WOMEN'S CLOTHING STORES
CCC_10003169_25,07/04/2023,Leisure & Heritage Services,SOUNDTRACK YOUR BRAND STOCKHOLM,39.00,General Expense,5815," DIGITAL GOODS MEDIA: BOOKS, MOVIES, MUSIC "
CCC_10002225_1,07/04/2023,"Museums, Theatres & Cultural Services",HTTP://PMSE.OFCOM.ORG. LONDON  SE1,168.00,General Expense,8699,MEMBERSHIP ORGANIZATIONS NOT ELSEWHERE CLASSIFIED
CCC_10002183_1,07/04/2023,Marketing & Communications Team,FACEBK  XTEK9PKSE2 FB.ME/ADS,50.00,Advertising,7311,ADVERTISING SERVICES
CCC_10002255_15,07/04/2023,South Essex Parking Partnership,POLICE SUPPLIES KIRKBY,32.04,Clothing & Uniforms,5699,APPAREL AND ACCESSORY SHOPS -- MISCELLANEOUS
CCC_10002182_3,07/04/2023,Leisure & Heritage Services,TESCO STORES 2327 CHELMSFORD 1,57.33,General Expense,5411,GROCERY STORES OR SUPERMARKETS
CCC_10002169_8,07/04/2023,"Museums, Theatres & Cultural Services",WWW.JOEANDSEPHS.CO.UK WATFORD,435.46,General Expense,5499,MISC FOOD STORES - SPECIALTY MARKETS & CONVENIENCE
CCC_10002169_7,08/04/2023,"Museums, Theatres & Cultural Services",TESCO STORES 5408 CHELMSFORD,7.25,General Expense,5411,GROCERY STORES OR SUPERMARKETS
CCC_10002182_2,08/04/2023,Leisure & Heritage Services,NISA CASTLE STORES CHELMSFORD,70.83,General Expense,5499,MISC FOOD STORES - SPECIALTY MARKETS & CONVENIENCE
CCC_10002194_5,08/04/2023,Leisure & Heritage Services,AMZNMKTPLACE AMAZON.CO.UK,12.50,General Expense,5999,MISCELLANEOUS & SPECIALTY STORES
CCC_10002169_6,08/04/2023,"Museums, Theatres & Cultural Services",TESCO STORES 5408 CHELMSFORD,7.30,General Expense,5411,GROCERY STORES OR SUPERMARKETS
CCC_10002278_4,09/04/2023,Leisure & Heritage Services,PRINT MARKETPLACE 40 2802345,30.96,Printing & Stationary,7338," PRINT SHOPS, QUICK COPY SERVICES OR REPRODUCTION SERVICES "
CCC_10002201_6,10/04/2023,Leisure & Heritage Services,AMZNMKTPLACE AMAZON.CO.UK,25.82,General Expense,5999,MISCELLANEOUS & SPECIALTY STORES
CCC_10002197_1,10/04/2023,Leisure & Heritage Services,AMAZON.CO.UK XU5WV20R5 AMAZON.CO.UK,20.67,Printing & Stationary,5969,DIRECT MARKETERS (NEC)
CCC_10002195_1,11/04/2023,Leisure & Heritage Services,AMZ HAPPYCHAOUK AMAZON.CO.UK,-5.82,New Equipment,5999,MISCELLANEOUS & SPECIALTY STORES
CCC_10002187_2,11/04/2023,"Museums, Theatres & Cultural Services",AMZNMKTPLACE AMAZON.CO AMAZON.CO.UK,31.66,Printing & Stationary,5999,MISCELLANEOUS & SPECIALTY STORES
CCC_10002169_5,11/04/2023,"Museums, Theatres & Cultural Services",TESCO STORES 5408 CHELMSFORD,14.00,General Expense,5411,GROCERY STORES OR SUPERMARKETS
CCC_10002199_1,11/04/2023,Leisure & Heritage Services,AMZNMKTPLACE AMAZON.CO AMAZON.CO.UK,5.82,New Equipment,5999,MISCELLANEOUS & SPECIALTY STORES
CCC_10002181_1,11/04/2023,Marketing & Communications Team,FACEBK 8YJ6BP3LD2 FB.ME/ADS,35.44,Advertising,7311,ADVERTISING SERVICES
CCC_10002198_1,11/04/2023,Leisure & Heritage Services,AMAZON.CO.UK BL8V234X5 AMAZON.CO.UK,7.87,New Equipment,5969,DIRECT MARKETERS (NEC)
CCC_10002246_4,11/04/2023,Leisure & Heritage Services,FINDEL EDUCATION HYDE,107.86,New Equipment,5969,DIRECT MARKETERS (NEC)
CCC_10003169_22,11/04/2023,Leisure & Heritage Services,ZETTLE_ KNIGHT DESIGN CHELMSFORD,83.33,New Equipment,5999,MISCELLANEOUS & SPECIALTY STORES
CCC_10003169_24,11/04/2023,Leisure & Heritage Services,AMZNMKTPLACE AMAZON.CO.UK,88.95,New Equipment,5999,MISCELLANEOUS & SPECIALTY STORES
CCC_10002193_3,11/04/2023,Parks & Green Spaces,TESCO-STORES 6724 CHELMSFORD,3.17,General Expense,5411,GROCERY STORES OR SUPERMARKETS
CCC_10002244_5,11/04/2023,Parks & Green Spaces,TESCO STORES 2330 CHELMSFORD 2,42.50,Grounds Maintenance Materials,5411,GROCERY STORES OR SUPERMARKETS
CCC_10002221_4,11/04/2023,"Museums, Theatres & Cultural Services",SCREWFIX DIR LTD CHELMFOR1867,13.77,Grounds Maintenance Materials,5211,LUMBER AND BUILDING MATERIALS STORES
CCC_10003169_23,11/04/2023,Leisure & Heritage Services,AMZNMKTPLACE AMAZON.CO.UK,59.30,New Equipment,5999,MISCELLANEOUS & SPECIALTY STORES
CCC_10002169_4,11/04/2023,"Museums, Theatres & Cultural Services",CLUMSY GOAT ROCHDALE,97.79,General Expense,5499,MISC FOOD STORES - SPECIALTY MARKETS & CONVENIENCE
CCC_10002254_7,11/04/2023,Operational Services,FACEBK 7JL35MKZA2 FB.ME/ADS,200.00,Advertising,7311,ADVERTISING SERVICES
CCC_10002221_1,11/04/2023,"Museums, Theatres & Cultural Services",AP LAMP DIS CM1 3AE,193.48,Grounds Maintenance Materials,5999,MISCELLANEOUS & SPECIALTY STORES
CCC_10002421_7,12/04/2023,Parking & Highways Operations,AMZNMKTPLACE AMAZON.CO.UK,12.49,General Expense,5999,MISCELLANEOUS & SPECIALTY STORES
CCC_10002277_1,12/04/2023,Corporate Property Services,PROCONFERENCES.COM 01932 752685,130.80,Conference Expenses,8220," UNIVERSITIES, COLLEGES, SR COLLEGES OR PROFESSIONAL SCHOOLS "
CCC_10002176_2,12/04/2023,Operational Services,SCREWFIX DIR LTD CHELMFOR1066,115.86,New Equipment,5211,LUMBER AND BUILDING MATERIALS STORES
CCC_10002181_3,12/04/2023,Marketing & Communications Team,PRINT MARKETPLACE 40 2802345,53.12,Printing & Stationary,7338," PRINT SHOPS, QUICK COPY SERVICES OR REPRODUCTION SERVICES "
CCC_10002177_5,12/04/2023,Leisure & Heritage Services,AMZNMKTPLACE AMAZON.CO.UK,15.27,General Expense,5999,MISCELLANEOUS & SPECIALTY STORES
CCC_10002219_5,12/04/2023,Parks & Green Spaces,WM MORRISONS STORE CHELMSFORD,9.44,General Expense,5411,GROCERY STORES OR SUPERMARKETS
CCC_10002177_3,12/04/2023,Leisure & Heritage Services,SP RLSS UK SHOP WORCESTER,130.00,General Expense,5691,MEN'S AND WOMEN'S CLOTHING STORES
CCC_10002279_1,12/04/2023,Leisure & Heritage Services,AMZNMKTPLACE AMAZON.CO AMAZON.CO.UK,27.73,New Equipment,5999,MISCELLANEOUS & SPECIALTY STORES
CCC_10002203_2,12/04/2023,Leisure & Heritage Services,TESCO STORES 2330 CHELMSFORD 2,11.40,General Expense,5411,GROCERY STORES OR SUPERMARKETS
CCC_10002166_1,12/04/2023,Leisure & Heritage Services,PPG WORLD ATHLETICS MONACO CEDEX,18.86,New Equipment,7997," MEMBERSHIP CLUBS INCL SPORTS, REC, ATHLETIC, COUNTRY, GOLF "
CCC_10002177_4,12/04/2023,Leisure & Heritage Services,AMZNMKTPLACE AMAZON.CO.UK,10.00,General Expense,5999,MISCELLANEOUS & SPECIALTY STORES
CCC_10002192_1,12/04/2023,Legal & Democratic Services,TRAINLINE.COM LONDON,16.91,Public Transport,4112,PASSENGER RAILWAYS
CCC_10002177_2,12/04/2023,Leisure & Heritage Services,SP RLSS UK SHOP WORCESTER,52.36,General Expense,5691,MEN'S AND WOMEN'S CLOTHING STORES
CCC_10002203_1,12/04/2023,Leisure & Heritage Services,ETSY.COM - SHOOTTHEMOO DUBLIN,10.95,General Expense,5699,APPAREL AND ACCESSORY SHOPS -- MISCELLANEOUS
CCC_10002221_3,12/04/2023,"Museums, Theatres & Cultural Services",SCREWFIX DIR LTD CHELMFOR1867,12.49,Grounds Maintenance Materials,5211,LUMBER AND BUILDING MATERIALS STORES
CCC_10002229_3,13/04/2023,Leisure & Heritage Services,EUROFFICE.CO.UK 0800 316 3876,117.10,General Expense,5943," STATIONERY STORES, OFFICE & SCHOOL SUPPLY STORES "
CCC_10002287_10,13/04/2023,Human Resources,AMZNMKTPLACE AMAZON.CO.UK,26.99,Printing & Stationary,5999,MISCELLANEOUS & SPECIALTY STORES
CCC_10002239_2,13/04/2023,Parks & Green Spaces,JAMES ODDY AND SON CHELMSFORD,65.70,Grounds Maintenance Materials,5211,LUMBER AND BUILDING MATERIALS STORES
CCC_10002219_2,13/04/2023,Parks & Green Spaces,BUTTERFLY CONSERVATION WAREHAM,31.67,General Expense,8398,CHARITABLE OR SOCIAL SERVICES ORGANIZATIONS
CCC_10002426_4,13/04/2023,Housing Services,TRAVELODGE GB0000 THAME,59.99,General Expense,3615,TRAVELODGE
CCC_10002229_1,13/04/2023,Leisure & Heritage Services,AMZNMKTPLACE AMAZON.CO.UK,21.25,New Equipment,5999,MISCELLANEOUS & SPECIALTY STORES
CCC_10002239_3,13/04/2023,Parks & Green Spaces,AMZNMKTPLACE AMAZON.CO AMAZON.CO.UK,4.78,Grounds Maintenance Materials,5999,MISCELLANEOUS & SPECIALTY STORES
CCC_10002219_3,13/04/2023,Parks & Green Spaces,POUNDSTRETCHER CHELMSFORD,1.58,General Expense,5331,VARIETY STORES
CCC_10002175_4,13/04/2023,Development Management,AMZNMKTPLACE AMAZON.CO.UK,7.41,Printing & Stationary,5999,MISCELLANEOUS & SPECIALTY STORES
CCC_10002426_2,13/04/2023,Housing Services,TRAVELODGE GB0000 THAME,368.29,General Expense,3615,TRAVELODGE
CCC_10002175_3,13/04/2023,Development Management,AMZNMKTPLACE AMAZON.CO.UK,11.42,Printing & Stationary,5999,MISCELLANEOUS & SPECIALTY STORES
CCC_10002219_4,13/04/2023,Parks & Green Spaces,WM MORRISONS STORE CHELMSFORD,7.78,General Expense,5411,GROCERY STORES OR SUPERMARKETS
CCC_10002287_8,13/04/2023,Human Resources,AMZNMKTPLACE AMAZON.CO.UK,16.49,Printing & Stationary,5999,MISCELLANEOUS & SPECIALTY STORES
CCC_10002279_2,13/04/2023,Leisure & Heritage Services,TESCO STORES 3060 PITSEA,12.00,New Equipment,5411,GROCERY STORES OR SUPERMARKETS
CCC_10002181_4,13/04/2023,Marketing & Communications Team,THE DELI HYLANDS CHELMSFORD,50.00,Advertising,5812,RESTAURANTS OR EATING PLACES
CCC_10002177_6,13/04/2023,Leisure & Heritage Services,AMZNMKTPLACE AMAZON.CO AMAZON.CO.UK,94.17,General Expense,5999,MISCELLANEOUS & SPECIALTY STORES
CCC_10002165_3,13/04/2023,Street Care & Performance,THREE STORE CHELMSFORD,55.00,New Equipment,4814,TELECOMMUNCATIONS SERV INCL LOCA/LONG DIST CREDIT & FAX
CCC_10002165_1,13/04/2023,Street Care & Performance,AMZNMKTPLACE AMAZON.CO.UK,22.47,General Expense,5999,MISCELLANEOUS & SPECIALTY STORES
CCC_10002287_11,13/04/2023,Human Resources,AMZNMKTPLACE AMAZON.CO.UK,13.70,Printing & Stationary,5999,MISCELLANEOUS & SPECIALTY STORES
CCC_10002175_2,13/04/2023,Development Management,AMZNMKTPLACE AMAZON.CO.UK,14.95,Printing & Stationary,5999,MISCELLANEOUS & SPECIALTY STORES
CCC_10002165_2,13/04/2023,Street Care & Performance,AMZNMKTPLACE AMAZON.CO.UK,17.96,General Expense,5999,MISCELLANEOUS & SPECIALTY STORES
CCC_10002279_3,13/04/2023,Leisure & Heritage Services,TESCO STORES 3060 PITSEA,49.70,New Equipment,5411,GROCERY STORES OR SUPERMARKETS
CCC_10002171_3,13/04/2023,Leisure & Heritage Services,SP PRIMAL STRENGTH NORTHERN IREL,183.16,New Equipment,5941,SPORTING GOODS STORES
CCC_10002216_2,13/04/2023,Leisure & Heritage Services,AMZNMKTPLACE AMAZON.CO.UK,8.31,General Expense,5999,MISCELLANEOUS & SPECIALTY STORES
CCC_10002171_2,13/04/2023,Leisure & Heritage Services,BOUNCE PURCHASE HARLOW,112.00,New Equipment,5691,MEN'S AND WOMEN'S CLOTHING STORES
CCC_10002287_9,13/04/2023,Human Resources,AMZNMKTPLACE AMAZON.CO AMAZON.CO.UK,29.92,Printing & Stationary,5999,MISCELLANEOUS & SPECIALTY STORES
CCC_10002798_1,13/04/2023,Marketing & Communications Team,QR-CODE-GENERATOR.COM BIELEFELD,163.47,Employee Subscriptions,5734,COMPUTER SOFTWARE STORES
CCC_10002364_1,13/04/2023,Parks & Green Spaces,T&M B2C ECOMM WWW.THOMPSON-,47.67,General Expense,5261,GARDEN AND LAWN SUPPLY STORES OR NURSERIES
CCC_10002426_3,13/04/2023,Housing Services,TRAVELODGE GB0000 THAME,254.97,General Expense,3615,TRAVELODGE
CCC_10002705_1,14/04/2023,"Museums, Theatres & Cultural Services",SQ  CHELMSFORD CVS CHELMSFORD,50.00,General Expense,8398,CHARITABLE OR SOCIAL SERVICES ORGANIZATIONS
CCC_10002318_9,14/04/2023,Parks & Green Spaces,D. BYFORD & SONS COLCHESTER CO,33.50,Grounds Maintenance Materials,5193," FLORIST SUPPLIES, NURSERY STOCK AND FLOWERS "
CCC_10002340_1,14/04/2023,Leisure & Heritage Services,CONTENDER UK FAREHAM,197.31,New Equipment,5551,BOAT DEALERS
CCC_10002204_1,14/04/2023,Marketing & Communications Team,FACEBK  M9THANKY52 FB.ME/ADS,400.00,Advertising,7311,ADVERTISING SERVICES
CCC_10002171_1,14/04/2023,Leisure & Heritage Services,WWW.GLENDINING.CO.UK INTERNET,32.79,General Expense,5099,DURABLE GOODS (NEC)
CCC_10002637_12,14/04/2023,Housing Services,BRAINTREE DC BRAINTREE,92.37,General Expense,9399,GOVERNMENT SERVICES (NEC) OR FIRE DEPARTMENTS
CCC_10003169_21,14/04/2023,Leisure & Heritage Services,GEAR4MUSIC 01,26.23,New Equipment,5733," MUSIC STORES, MUSICAL INSTRUMENTS, PIANOS, SHEET MUSIC "
CCC_10002318_10,14/04/2023,Parks & Green Spaces,CHANDLER MATERIALS CHELMSFORD,29.74,New Equipment,5211,LUMBER AND BUILDING MATERIALS STORES
CCC_10002177_7,14/04/2023,Leisure & Heritage Services,AMZNMKTPLACE AMAZON.CO AMAZON.CO.UK,12.24,General Expense,5999,MISCELLANEOUS & SPECIALTY STORES
CCC_10002411_36,14/04/2023,South Essex Parking Partnership,WWW.ARCO.CO.UK 01483383295,102.67,Clothing & Uniforms,5085,INDUSTRIAL SUPPLIES (NEC)
CCC_10002255_13,14/04/2023,South Essex Parking Partnership,COSTA COFFEE 43010986 BASILDON,13.87,General Expense,5814,FAST FOOD RESTAURANTS
CCC_10002177_9,15/04/2023,Leisure & Heritage Services,AMZNMKTPLACE AMAZON.CO AMAZON.CO.UK,11.66,General Expense,5999,MISCELLANEOUS & SPECIALTY STORES
CCC_10002177_8,15/04/2023,Leisure & Heritage Services,AMZNMKTPLACE AMAZON.CO AMAZON.CO.UK,10.65,General Expense,5999,MISCELLANEOUS & SPECIALTY STORES
CCC_10002177_10,15/04/2023,Leisure & Heritage Services,AMZNMKTPLACE AMAZON.CO AMAZON.CO.UK,28.32,General Expense,5999,MISCELLANEOUS & SPECIALTY STORES
CCC_10002194_4,15/04/2023,Leisure & Heritage Services,TESCO STORES 2882 MALDON,14.95,General Expense,5411,GROCERY STORES OR SUPERMARKETS
CCC_10002342_2,15/04/2023,Leisure & Heritage Services,EBAY O 10-09945-45032 LONDON,19.98,New Equipment,5311,DEPARTMENT STORES
CCC_10003392_10,15/04/2023,Leisure & Heritage Services,SPOTIFY P226877FAD LONDON,9.99,General Expense,5815," DIGITAL GOODS MEDIA: BOOKS, MOVIES, MUSIC "
CCC_10002288_1,16/04/2023,Parks & Green Spaces,WILKO RETAIL LIMITED CHELMSFORD,6.46,Printing & Stationary,5399,GENERAL MERCHANDISE OR CONVENIENCE FOOD STORES
CCC_10003501_13,16/04/2023,Parks & Green Spaces,AMZNMKTPLACE AMAZON.CO.UK,98.17,Grounds Maintenance Materials,5999,MISCELLANEOUS & SPECIALTY STORES
CCC_10002177_11,16/04/2023,Leisure & Heritage Services,AMZNMKTPLACE AMAZON.CO AMAZON.CO.UK,22.98,General Expense,5999,MISCELLANEOUS & SPECIALTY STORES
CCC_10002278_2,17/04/2023,Leisure & Heritage Services,AMZNMKTPLACE AMAZON.CO.UK,30.97,General Expense,5999,MISCELLANEOUS & SPECIALTY STORES
CCC_10002188_1,17/04/2023,Development Management,AMZNMKTPLACE AMAZON.CO.UK,24.95,Printing & Stationary,5999,MISCELLANEOUS & SPECIALTY STORES
CCC_10003501_3,17/04/2023,Parks & Green Spaces,TESCO STORES 2330 CHELMSFORD 2,40.00,Grounds Maintenance Materials,5411,GROCERY STORES OR SUPERMARKETS
CCC_10003530_3,17/04/2023,Legal & Democratic Services,AMZNMKTPLACE AMAZON.CO AMAZON.CO.UK,18.62,New Equipment,5999,MISCELLANEOUS & SPECIALTY STORES
CCC_10002179_2,17/04/2023,Operational Services,AMZNMKTPLACE AMAZON.CO.UK,17.98,General Expense,5999,MISCELLANEOUS & SPECIALTY STORES
CCC_10002205_1,17/04/2023,Parks & Green Spaces,AMZNMKTPLACE AMAZON.CO AMAZON.CO.UK,8.62,General Expense,5999,MISCELLANEOUS & SPECIALTY STORES
CCC_10003098_19,17/04/2023,Public Health & Protection Services,PAYBYPHONE RE BRITANNI HATFIELD,8.20,Car Parking,7523,AUTOMOBILE PARKING OR PARKING LOTS
CCC_10002179_1,17/04/2023,Operational Services,AMZNMKTPLACE AMAZON.CO.UK,45.50,General Expense,5999,MISCELLANEOUS & SPECIALTY STORES
CCC_10002180_3,17/04/2023,Revenue and Benefit Services,AMZNMKTPLACE AMAZON.CO.UK,8.82,Printing & Stationary,5999,MISCELLANEOUS & SPECIALTY STORES
CCC_10002234_9,17/04/2023,"Museums, Theatres & Cultural Services",RCB LOGIC 35314369001,186.60,New Equipment,5946,CAMERA AND/OR PHOTOGRAPHIC SUPPLY STORES
CCC_10002169_2,17/04/2023,"Museums, Theatres & Cultural Services",AMZNMKTPLACE AMAZON.CO AMAZON.CO.UK,12.23,General Expense,5999,MISCELLANEOUS & SPECIALTY STORES
CCC_10003530_2,17/04/2023,Legal & Democratic Services,AMZNMKTPLACE AMAZON.CO AMAZON.CO.UK,122.80,New Equipment,5999,MISCELLANEOUS & SPECIALTY STORES
CCC_10003581_23,17/04/2023,South Essex Parking Partnership,LAND REGISTRY ECOM CCC LONDON,6.00,General Expense,9399,GOVERNMENT SERVICES (NEC) OR FIRE DEPARTMENTS
CCC_10003098_20,17/04/2023,Public Health & Protection Services,GREATER ANGLIA T/O WITHAM 6844,37.35,Public Transport,4112,PASSENGER RAILWAYS
CCC_10002185_1,17/04/2023,"Museums, Theatres & Cultural Services",AMZNMKTPLACE AMAZON.CO AMAZON.CO.UK,24.99,New Equipment,5999,MISCELLANEOUS & SPECIALTY STORES
CCC_10002201_5,17/04/2023,Leisure & Heritage Services,TESCO STORES 2172 BRAINTREE,15.20,General Expense,5411,GROCERY STORES OR SUPERMARKETS
CCC_10002169_3,17/04/2023,"Museums, Theatres & Cultural Services",TESCO STORES 5408 CHELMSFORD,6.60,General Expense,5411,GROCERY STORES OR SUPERMARKETS
CCC_10002427_2,17/04/2023,Housing Services,TRAVELODG TRAVELODGE G THAME,204.98,General Expense,3615,TRAVELODGE
CCC_10002426_1,17/04/2023,Housing Services,TRAVELODG TRAVELODGE G THAME,48.32,General Expense,3615,TRAVELODGE
CCC_10002180_4,17/04/2023,Revenue and Benefit Services,AMZNMKTPLACE AMAZON.CO.UK,4.50,Printing & Stationary,5999,MISCELLANEOUS & SPECIALTY STORES
CCC_10002201_4,17/04/2023,Leisure & Heritage Services,AMZNBUSINESS 347270NB5 AMAZON.CO.UK,24.41,General Expense,5999,MISCELLANEOUS & SPECIALTY STORES
CCC_10002278_3,17/04/2023,Leisure & Heritage Services,HIGH STREET VOUCHERS LIVERPOOL,50.00,General Expense,5311,DEPARTMENT STORES
CCC_10002244_4,17/04/2023,Parks & Green Spaces,PAYPAL  TARPAULINSD TA 01904691169,485.44,Grounds Maintenance Materials,5251,HARDWARE STORES
CCC_10002361_1,17/04/2023,Leisure & Heritage Services,AMZNMKTPLACE AMAZON.CO.UK,9.07,New Equipment,5999,MISCELLANEOUS & SPECIALTY STORES
CCC_10002193_1,17/04/2023,Parks & Green Spaces,TESCO-STORES 6724 CHELMSFORD,2.25,General Expense,5411,GROCERY STORES OR SUPERMARKETS
CCC_10002221_2,17/04/2023,"Museums, Theatres & Cultural Services",B & Q 1188 CHELMSFORD,48.33,Grounds Maintenance Materials,5200,HOME SUPPLY WAREHOUSE STORES
CCC_10002427_1,17/04/2023,Housing Services,TRAVELODG TRAVELODGE G THAME,96.65,General Expense,3615,TRAVELODGE
CCC_10002205_2,17/04/2023,Parks & Green Spaces,AMZNMKTPLACE AMAZON.CO AMAZON.CO.UK,3.50,General Expense,5999,MISCELLANEOUS & SPECIALTY STORES
CCC_10002193_2,17/04/2023,Parks & Green Spaces,WILKO RETAIL LIMITED CHELMSFORD,18.71,General Expense,5399,GENERAL MERCHANDISE OR CONVENIENCE FOOD STORES
CCC_10002254_6,17/04/2023,Operational Services,FACEBK 83VH4M7ZA2 FB.ME/ADS,59.75,Advertising,7311,ADVERTISING SERVICES
CCC_10002317_1,18/04/2023,"Museums, Theatres & Cultural Services",AMZNMKTPLACE AMAZON.CO AMAZON.CO.UK,20.82,Printing & Stationary,5999,MISCELLANEOUS & SPECIALTY STORES
CCC_10003501_4,18/04/2023,Parks & Green Spaces,HSFLORALDESIGNS.CO.UK BLACKMORE IN,98.00,Grounds Maintenance Materials,5992,FLORISTS
CCC_10002313_16,18/04/2023,"Museums, Theatres & Cultural Services",AMZNMKTPLACE AMAZON.CO.UK,8.49,General Expense,5999,MISCELLANEOUS & SPECIALTY STORES
CCC_10002244_3,18/04/2023,Parks & Green Spaces,WWW.AGRI-GEM.CO.UK 0152 2754893,854.95,Grounds Maintenance Materials,5085,INDUSTRIAL SUPPLIES (NEC)
CCC_10003806_3,18/04/2023,Building Services,AMZNMKTPLACE AMAZON.CO.UK,41.66,General Expense,5999,MISCELLANEOUS & SPECIALTY STORES
CCC_10002313_14,18/04/2023,"Museums, Theatres & Cultural Services",AMZNMKTPLACE AMAZON.CO.UK,21.78,General Expense,5999,MISCELLANEOUS & SPECIALTY STORES
CCC_10002230_4,18/04/2023,Leisure & Heritage Services,SP THE PVC SHOP MAIDSTONE,186.28,Grounds Maintenance Materials,5734,COMPUTER SOFTWARE STORES
CCC_10003581_22,18/04/2023,South Essex Parking Partnership,LAND REGISTRY ECOM CCC LONDON,6.00,General Expense,9399,GOVERNMENT SERVICES (NEC) OR FIRE DEPARTMENTS
CCC_10002427_4,18/04/2023,Housing Services,TRAVELODG TRAVELODGE G THAME,523.28,General Expense,3615,TRAVELODGE
CCC_10002202_3,18/04/2023,Customer Services,AMZNMKTPLACE AMAZON.CO AMAZON.CO.UK,5.95,Printing & Stationary,5999,MISCELLANEOUS & SPECIALTY STORES
CCC_10002180_2,18/04/2023,Revenue and Benefit Services,AMZNMKTPLACE AMAZON.CO.UK,8.27,Printing & Stationary,5999,MISCELLANEOUS & SPECIALTY STORES
CCC_10002313_15,18/04/2023,"Museums, Theatres & Cultural Services",AMZNMKTPLACE AMAZON.CO.UK,14.90,General Expense,5999,MISCELLANEOUS & SPECIALTY STORES
CCC_10002202_4,18/04/2023,Customer Services,AMZNMKTPLACE AMAZON.CO AMAZON.CO.UK,16.65,Printing & Stationary,5999,MISCELLANEOUS & SPECIALTY STORES
CCC_10002191_4,18/04/2023,Public Health & Protection Services,AMZNMKTPLACE AMAZON.CO AMAZON.CO.UK,7.45,Printing & Stationary,5999,MISCELLANEOUS & SPECIALTY STORES
CCC_10002164_1,18/04/2023,Public Health & Protection Services,TESCO STORES 5408 CHELMSFORD,14.67,Printing & Stationary,5411,GROCERY STORES OR SUPERMARKETS
CCC_10002169_1,18/04/2023,"Museums, Theatres & Cultural Services",TESCO STORES 5408 CHELMSFORD,9.20,General Expense,5411,GROCERY STORES OR SUPERMARKETS
CCC_10002167_1,18/04/2023,Marketing & Communications Team,EPH RECEPTION BIRMINGHAM,240.00,Accommodation,7011," LODGING,HOTELS,MOTELS,RESORTS "
CCC_10002201_3,18/04/2023,Leisure & Heritage Services,B&M 051 - BRAINTREE BRAINTREE,4.99,General Expense,5399,GENERAL MERCHANDISE OR CONVENIENCE FOOD STORES
CCC_10003583_1,18/04/2023,Leisure & Heritage Services,GEAR4MUSIC 01,-9.49,New Equipment,5733," MUSIC STORES, MUSICAL INSTRUMENTS, PIANOS, SHEET MUSIC "
CCC_10002427_3,18/04/2023,Housing Services,TRAVELODG TRAVELODGE G THAME,193.32,General Expense,3615,TRAVELODGE
CCC_10002201_2,18/04/2023,Leisure & Heritage Services,AMZNMKTPLACE AMAZON.CO.UK,13.32,General Expense,5999,MISCELLANEOUS & SPECIALTY STORES
CCC_10002749_8,18/04/2023,Parks & Green Spaces,ABERCORN PLANT AND GAR ESSEX,67.50,Grounds Maintenance Materials,5261,GARDEN AND LAWN SUPPLY STORES OR NURSERIES
CCC_10002168_2,18/04/2023,Public Health & Protection Services,TRAINLINE +443332022222,48.39,Public Transport,4112,PASSENGER RAILWAYS
CCC_10002313_17,18/04/2023,"Museums, Theatres & Cultural Services",WWW.SCREWFIX.COM YEOVIL,52.48,General Expense,5211,LUMBER AND BUILDING MATERIALS STORES
CCC_10002347_1,18/04/2023,Leisure & Heritage Services,AMZNMKTPLACE AMAZON.CO.UK,8.25,New Equipment,5999,MISCELLANEOUS & SPECIALTY STORES
CCC_10002313_18,18/04/2023,"Museums, Theatres & Cultural Services",WWW.SCREWFIX.COM YEOVIL,3.07,General Expense,5211,LUMBER AND BUILDING MATERIALS STORES
CCC_10003581_21,18/04/2023,South Essex Parking Partnership,LAND REGISTRY ECOM CCC LONDON,6.00,General Expense,9399,GOVERNMENT SERVICES (NEC) OR FIRE DEPARTMENTS
CCC_10003517_3,19/04/2023,Public Health & Protection Services,WWW.PLANNING.CO BRISTOL,221.83,General Expense,7399,BUSINESS SERVICES (NEC)
CCC_10002190_1,19/04/2023,"Museums, Theatres & Cultural Services",GREATER ANGLIA T/O COLCHESTER,74.60,Public Transport,4112,PASSENGER RAILWAYS
CCC_10002427_5,19/04/2023,Housing Services,WWW.SOUTHEND.GOV.UK SOUTHEND-ON-S,11.00,General Expense,5734,COMPUTER SOFTWARE STORES
CCC_10002503_1,19/04/2023,Parking & Highways Operations,TIGER SUPPLIES BRAINTREE,76.49,General Expense,5099,DURABLE GOODS (NEC)
CCC_10002234_8,19/04/2023,"Museums, Theatres & Cultural Services",AMZNMKTPLACE AMAZON.CO.UK,2.98,New Equipment,5999,MISCELLANEOUS & SPECIALTY STORES
CCC_10002263_5,19/04/2023,Spatial Planning,AMZNMKTPLACE AMAZON.CO.UK,23.32,New Equipment,5999,MISCELLANEOUS & SPECIALTY STORES
CCC_10002421_5,19/04/2023,Parking & Highways Operations,AMZNMKTPLACE AMAZON.CO.UK,14.01,General Expense,5999,MISCELLANEOUS & SPECIALTY STORES
CCC_10002194_1,19/04/2023,Leisure & Heritage Services,AMZNMKTPLACE AMAZON.CO.UK,62.57,General Expense,5999,MISCELLANEOUS & SPECIALTY STORES
CCC_10002178_2,19/04/2023,"Museums, Theatres & Cultural Services",WWW.TTS-GROUPS.CO.UK INTERNET,13.43,New Equipment,5943," STATIONERY STORES, OFFICE & SCHOOL SUPPLY STORES "
CCC_10002421_6,19/04/2023,Parking & Highways Operations,AMZNMKTPLACE AMAZON.CO.UK,13.66,General Expense,5999,MISCELLANEOUS & SPECIALTY STORES
CCC_10002180_1,19/04/2023,Revenue and Benefit Services,AMZNMKTPLACE AMAZON.CO.UK,4.22,Printing & Stationary,5999,MISCELLANEOUS & SPECIALTY STORES
CCC_10002239_4,19/04/2023,Parks & Green Spaces,AMZNMKTPLACE AMAZON.CO.UK,18.95,Grounds Maintenance Materials,5999,MISCELLANEOUS & SPECIALTY STORES
CCC_10002191_2,19/04/2023,Public Health & Protection Services,AMZNMKTPLACE AMAZON.CO AMAZON.CO.UK,5.79,Printing & Stationary,5999,MISCELLANEOUS & SPECIALTY STORES
CCC_10002291_1,19/04/2023,Leisure & Heritage Services,POST OFFICE COUNTER BASILDON,15.45,Printing & Stationary,9402,POSTAGE STAMPS
CCC_10002184_1,19/04/2023,Building Control,AMZNMKTPLACE AMAZON.CO.UK,71.92,New Equipment,5999,MISCELLANEOUS & SPECIALTY STORES
CCC_10002255_12,19/04/2023,South Essex Parking Partnership,POST OFFICE COUNTER BASILDON,2.65,General Expense,9402,POSTAGE STAMPS
CCC_10002194_3,19/04/2023,Leisure & Heritage Services,AMZNMKTPLACE AMAZON.CO.UK,12.07,General Expense,5999,MISCELLANEOUS & SPECIALTY STORES
CCC_10002254_5,19/04/2023,Operational Services,ADOBE   ADOBE DUBLIN,35.94,General Expense,5734,COMPUTER SOFTWARE STORES
CCC_10002191_1,19/04/2023,Public Health & Protection Services,AMZNMKTPLACE AMAZON.CO AMAZON.CO.UK,6.10,Printing & Stationary,5999,MISCELLANEOUS & SPECIALTY STORES
CCC_10002427_6,19/04/2023,Housing Services,TRAVELODG TRAVELODGE G THAME,66.66,General Expense,3615,TRAVELODGE
CCC_10002202_1,19/04/2023,Customer Services,AMZNMKTPLACE AMAZON.CO AMAZON.CO.UK,12.62,Printing & Stationary,5999,MISCELLANEOUS & SPECIALTY STORES
CCC_10002194_2,19/04/2023,Leisure & Heritage Services,AMZNMKTPLACE AMAZON.CO.UK,12.04,General Expense,5999,MISCELLANEOUS & SPECIALTY STORES
CCC_10002255_11,19/04/2023,South Essex Parking Partnership,TESCO STORES 3060 PITSEA,16.25,General Expense,5411,GROCERY STORES OR SUPERMARKETS
CCC_10002568_7,19/04/2023,Marketing & Communications Team,WORDPRESS ELFZ2KDP46 DUBLIN,10.00,Advertising,5734,COMPUTER SOFTWARE STORES
CCC_10002229_2,19/04/2023,Leisure & Heritage Services,J P LENNARD LTD RUGBY,166.21,New Equipment,5941,SPORTING GOODS STORES
CCC_10002191_3,19/04/2023,Public Health & Protection Services,AMZNMKTPLACE AMAZON.CO AMAZON.CO.UK,4.12,Printing & Stationary,5999,MISCELLANEOUS & SPECIALTY STORES
CCC_10002254_4,19/04/2023,Operational Services,SQ  MONARCH SPRINGFIELD,34.00,Clothing & Uniforms,7230,BARBER OR BEAUTY SHOPS
CCC_10002318_8,19/04/2023,Parks & Green Spaces,AMZNMKTPLACE AMAZON.CO.UK,37.39,New Equipment,5999,MISCELLANEOUS & SPECIALTY STORES
CCC_10002202_2,19/04/2023,Customer Services,AMZNMKTPLACE AMAZON.CO AMAZON.CO.UK,28.15,Printing & Stationary,5999,MISCELLANEOUS & SPECIALTY STORES
CCC_10002189_1,19/04/2023,"Museums, Theatres & Cultural Services",NCP COLCHESTER STATION GREATER ANGLI,11.00,Car Parking,7523,AUTOMOBILE PARKING OR PARKING LOTS
CCC_10002348_1,19/04/2023,Leisure & Heritage Services,AMZNMKTPLACE AMAZON.CO.UK,4.54,New Equipment,5999,MISCELLANEOUS & SPECIALTY STORES
CCC_10002174_1,20/04/2023,Parking & Highways Operations,AMZNMKTPLACE AMAZON.CO.UK,25.38,General Expense,5999,MISCELLANEOUS & SPECIALTY STORES
CCC_10002182_1,20/04/2023,Leisure & Heritage Services,AMZNMKTPLACE AMAZON.CO AMAZON.CO.UK,47.49,New Equipment,5999,MISCELLANEOUS & SPECIALTY STORES
CCC_10002239_5,20/04/2023,Parks & Green Spaces,SETON BANBURY,55.94,Grounds Maintenance Materials,5099,DURABLE GOODS (NEC)
CCC_10003939_10,20/04/2023,Operational Services,AMAZON PRIME TT6IF9D55 AMZN.CO.UK/PM,8.99,General Expense,5968,CONTINUITY/SUBSCRIPTION MERCHANT
CCC_10002263_4,20/04/2023,Spatial Planning,AMZNMKTPLACE AMAZON.CO.UK,6.65,New Equipment,5999,MISCELLANEOUS & SPECIALTY STORES
CCC_10002253_1,20/04/2023,Parking & Highways Operations,AMZNMKTPLACE AMAZON.CO.UK,12.50,General Expense,5999,MISCELLANEOUS & SPECIALTY STORES
CCC_10002254_3,20/04/2023,Operational Services,ZETTLE_ GREEDYVEGAN CHELMSFORD,24.50,Conference Expenses,5812,RESTAURANTS OR EATING PLACES
CCC_10002292_8,20/04/2023,Leisure & Heritage Services,VIKING OFFICE UK LIMIT LEICESTER,84.83,Printing & Stationary,5111," STATIONERY, OFFICE SUPPLIES, PRINTING AND WRITING PAPER "
CCC_10002253_2,20/04/2023,Parking & Highways Operations,AMZNMKTPLACE AMAZON.CO.UK,16.50,General Expense,5999,MISCELLANEOUS & SPECIALTY STORES
CCC_10002178_1,20/04/2023,"Museums, Theatres & Cultural Services",AMZNMKTPLACE AMAZON.CO.UK,24.99,New Equipment,5999,MISCELLANEOUS & SPECIALTY STORES
CCC_10002234_7,20/04/2023,"Museums, Theatres & Cultural Services",PREMIER FARNELL PRESTON,31.12,New Equipment,5065,ELECTRICAL PARTS AND EQUIPMENT
CCC_10002263_2,20/04/2023,Spatial Planning,AMZNMKTPLACE AMAZON.CO.UK,37.47,New Equipment,5999,MISCELLANEOUS & SPECIALTY STORES
CCC_10002170_2,20/04/2023,Development Management,THE ARBORICULTURAL ASS INTERNET,194.00,Training Expenses,8398,CHARITABLE OR SOCIAL SERVICES ORGANIZATIONS
CCC_10002263_3,20/04/2023,Spatial Planning,AMZNMKTPLACE AMAZON.CO.UK,31.67,New Equipment,5999,MISCELLANEOUS & SPECIALTY STORES
CCC_10002238_6,20/04/2023,Leisure & Heritage Services,AMZNMKTPLACE AMAZON.CO AMAZON.CO.UK,23.32,General Expense,5999,MISCELLANEOUS & SPECIALTY STORES
CCC_10002173_1,20/04/2023,Digital Services,AMZNMKTPLACE AMAZON.CO AMAZON.CO.UK,101.94,New Equipment,5999,MISCELLANEOUS & SPECIALTY STORES
CCC_10002502_1,20/04/2023,Parking & Highways Operations,SCREWFIX DIR LTD CHELMFOR1066,72.37,General Expense,5211,LUMBER AND BUILDING MATERIALS STORES
CCC_10003646_2,20/04/2023,Operational Services,DVLA TACHOGRAPH WEB SWANSEA,19.00,Vehicle Repairs,9399,GOVERNMENT SERVICES (NEC) OR FIRE DEPARTMENTS
CCC_10002292_7,20/04/2023,Leisure & Heritage Services,WWW.ARGOS.CO.UK MILTON KEYNES,83.32,New Equipment,5311,DEPARTMENT STORES
CCC_10002168_1,20/04/2023,Public Health & Protection Services,TESCO STORES 5408 CHELMSFORD,5.75,General Expense,5411,GROCERY STORES OR SUPERMARKETS
CCC_10002201_1,20/04/2023,Leisure & Heritage Services,AMZNMKTPLACE AMAZON.CO AMAZON.CO.UK,16.32,General Expense,5999,MISCELLANEOUS & SPECIALTY STORES
CCC_10002170_1,20/04/2023,Development Management,THE ARBORICULTURAL ASS INTERNET,194.00,Training Expenses,8398,CHARITABLE OR SOCIAL SERVICES ORGANIZATIONS
CCC_10002255_10,20/04/2023,South Essex Parking Partnership,POST OFFICE COUNTER SOUTHEND-ON-S,4.49,General Expense,9402,POSTAGE STAMPS
CCC_10002427_7,21/04/2023,Housing Services,TRAVELODG TRAVELODGE G THAME,383.28,General Expense,3615,TRAVELODGE
CCC_10002220_1,21/04/2023,Public Health & Protection Services,AMZNMKTPLACE AMAZON.CO AMAZON.CO.UK,9.57,General Expense,5999,MISCELLANEOUS & SPECIALTY STORES
CCC_10002234_6,21/04/2023,"Museums, Theatres & Cultural Services",CHANTELLE LIGHTING NELSON,67.22,New Equipment,5999,MISCELLANEOUS & SPECIALTY STORES
CCC_10002212_1,21/04/2023,Spatial Planning,PPOINT_ PARK STORES 62 WITHAM,28.60,Publications,5499,MISC FOOD STORES - SPECIALTY MARKETS & CONVENIENCE
CCC_10003646_5,21/04/2023,Operational Services,WWW.HGVDIRECT.CO.UK INTERNET,164.81,Vehicle Repairs,5533," AUTOMOTIVE PARTS, ACCESSORIES STORES "
CCC_10002313_13,21/04/2023,"Museums, Theatres & Cultural Services",WWW.SCREWFIX.COM YEOVIL,19.98,General Expense,5211,LUMBER AND BUILDING MATERIALS STORES
CCC_10002744_1,21/04/2023,Leisure & Heritage Services,THOMSONS GREAT BADDOW,20.00,New Equipment,5722,APPLIANCE STORES (NEC) OR HOUSEHOLD APPLIANCE STORES
CCC_10003646_3,21/04/2023,Operational Services,PAYPAL  PRIMETOOLS 01761410918,89.95,Vehicle Repairs,5251,HARDWARE STORES
CCC_10002292_6,21/04/2023,Leisure & Heritage Services,AMZNMKTPLACE AMAZON.CO.UK,1.59,Printing & Stationary,5999,MISCELLANEOUS & SPECIALTY STORES
CCC_10003646_4,21/04/2023,Operational Services,MIDLAND AIR TOOLS LTD CANNOCK,583.10,Vehicle Repairs,5251,HARDWARE STORES
CCC_10002215_3,21/04/2023,Digital Services,AMZNMKTPLACE AMAZON.CO.UK,71.10,New Equipment,5999,MISCELLANEOUS & SPECIALTY STORES
CCC_10002364_2,21/04/2023,Parks & Green Spaces,LONGACRES GC CHELMSFOR CHELMSFORD,34.19,General Expense,5261,GARDEN AND LAWN SUPPLY STORES OR NURSERIES
CCC_10002704_1,21/04/2023,"Museums, Theatres & Cultural Services",ZETTLE_ IDEAS HUB CHEL CHELMSFORD,12.99,Museum Exhibits,8398,CHARITABLE OR SOCIAL SERVICES ORGANIZATIONS
CCC_10002215_2,21/04/2023,Digital Services,DHL PARCEL UK BOLTON,39.89,General Expense,4215," COURIER SERVICES-AIR OR GROUND, FREIGHT "
CCC_10002275_6,22/04/2023,"Museums, Theatres & Cultural Services",TESCO STORES 5408 CHELMSFORD,6.90,General Expense,5411,GROCERY STORES OR SUPERMARKETS
CCC_10002313_12,22/04/2023,"Museums, Theatres & Cultural Services",B & Q 1188 CHELMSFORD,17.72,General Expense,5200,HOME SUPPLY WAREHOUSE STORES
CCC_10002275_7,22/04/2023,"Museums, Theatres & Cultural Services",DUKE STREET COOP 01245 345490,8.00,General Expense,5311,DEPARTMENT STORES
CCC_10002364_3,22/04/2023,Parks & Green Spaces,TESCO-STORES 6724 CHELMSFORD,0.90,General Expense,5411,GROCERY STORES OR SUPERMARKETS
CCC_10002275_5,22/04/2023,"Museums, Theatres & Cultural Services",TESCO STORES 5408 CHELMSFORD,3.15,General Expense,5411,GROCERY STORES OR SUPERMARKETS
CCC_10002292_1,23/04/2023,Leisure & Heritage Services,AMZNMKTPLACE AMAZON.CO.UK,7.49,New Equipment,5999,MISCELLANEOUS & SPECIALTY STORES
CCC_10002292_2,23/04/2023,Leisure & Heritage Services,AMZNMKTPLACE AMAZON.CO.UK,41.66,Printing & Stationary,5999,MISCELLANEOUS & SPECIALTY STORES
CCC_10002292_5,23/04/2023,Leisure & Heritage Services,AMZNMKTPLACE AMAZON.CO.UK,5.00,Printing & Stationary,5999,MISCELLANEOUS & SPECIALTY STORES
CCC_10002292_4,23/04/2023,Leisure & Heritage Services,AMZNMKTPLACE AMAZON.CO.UK,19.83,Printing & Stationary,5999,MISCELLANEOUS & SPECIALTY STORES
CCC_10002318_6,23/04/2023,Parks & Green Spaces,AMZNMKTPLACE AMAZON.CO AMAZON.CO.UK,58.32,New Equipment,5999,MISCELLANEOUS & SPECIALTY STORES
CCC_10002292_3,23/04/2023,Leisure & Heritage Services,AMZNMKTPLACE AMAZON.CO.UK,38.33,Printing & Stationary,5999,MISCELLANEOUS & SPECIALTY STORES
CCC_10002318_7,23/04/2023,Parks & Green Spaces,AMZNMKTPLACE AMAZON.CO.UK,37.46,New Equipment,5999,MISCELLANEOUS & SPECIALTY STORES
CCC_10003501_5,24/04/2023,Parks & Green Spaces,TESCO STORES 2330 CHELMSFORD 2,45.00,Grounds Maintenance Materials,5411,GROCERY STORES OR SUPERMARKETS
CCC_10002246_3,24/04/2023,Leisure & Heritage Services,AMZNMKTPLACE AMAZON.CO AMAZON.CO.UK,9.95,General Expense,5999,MISCELLANEOUS & SPECIALTY STORES
CCC_10002230_3,24/04/2023,Leisure & Heritage Services,WWW.SCREWFIX.COM YEOVIL,164.02,Grounds Maintenance Materials,5211,LUMBER AND BUILDING MATERIALS STORES
CCC_10002222_5,24/04/2023,Leisure & Heritage Services,MAGRINI LIMITED WALSALL,41.94,General Expense,5046,COMMERCIAL EQUIPMENT (NEC)
CCC_10003939_9,24/04/2023,Operational Services,MIDLAND AIR TOOLS LTD CANNOCK,-49.23,General Expense,5251,HARDWARE STORES
CCC_10002238_5,24/04/2023,Leisure & Heritage Services,TESCO STORES 2172 BRAINTREE,19.00,General Expense,5411,GROCERY STORES OR SUPERMARKETS
CCC_10002228_4,24/04/2023,Operational Services,DVLA VEHICLE TAX 0300 1234321,167.50,Vehicle Tax,9311,TAX PAYMENTS
CCC_10002255_9,24/04/2023,South Essex Parking Partnership,AMZNMKTPLACE AMAZON.CO.UK,117.48,New Equipment,5999,MISCELLANEOUS & SPECIALTY STORES
CCC_10002275_9,24/04/2023,"Museums, Theatres & Cultural Services",TESCO STORES 5408 CHELMSFORD,3.60,General Expense,5411,GROCERY STORES OR SUPERMARKETS
CCC_10002275_8,24/04/2023,"Museums, Theatres & Cultural Services",TESCO STORES 5408 CHELMSFORD,1.05,General Expense,5411,GROCERY STORES OR SUPERMARKETS
CCC_10002228_2,24/04/2023,Operational Services,DVLA VEHICLE TAX 0300 1234321,322.50,Vehicle Tax,9311,TAX PAYMENTS
CCC_10002228_3,24/04/2023,Operational Services,DVLA VEHICLE TAX 0300 1234321,302.50,Vehicle Tax,9311,TAX PAYMENTS
CCC_10002216_1,24/04/2023,Leisure & Heritage Services,SAFETY SIGNS 4 LESS POOLE,51.92,General Expense,5046,COMMERCIAL EQUIPMENT (NEC)
CCC_10002230_2,24/04/2023,Leisure & Heritage Services,TOOLSTATION LTD CHELMSFORD,14.15,Grounds Maintenance Materials,5211,LUMBER AND BUILDING MATERIALS STORES
CCC_10002344_2,24/04/2023,Leisure & Heritage Services,AMZNMKTPLACE AMAZON.CO AMAZON.CO.UK,89.99,New Equipment,5999,MISCELLANEOUS & SPECIALTY STORES
CCC_10002318_5,24/04/2023,Parks & Green Spaces,AMZNMKTPLACE AMAZON.CO AMAZON.CO.UK,74.13,New Equipment,5999,MISCELLANEOUS & SPECIALTY STORES
CCC_10002364_4,24/04/2023,Parks & Green Spaces,ASDA SUPERSTORE CHELMSFORD,65.67,General Expense,5411,GROCERY STORES OR SUPERMARKETS
CCC_10002228_5,24/04/2023,Operational Services,DVLA VEHICLE TAX 0300 1234321,167.50,Vehicle Tax,9311,TAX PAYMENTS
CCC_10002234_4,24/04/2023,"Museums, Theatres & Cultural Services",AMZNMKTPLACE AMAZON.CO.UK,16.31,New Equipment,5999,MISCELLANEOUS & SPECIALTY STORES
CCC_10002798_2,24/04/2023,Marketing & Communications Team,WWW.ARGOS.CO.UK MILTON KEYNES,75.97,New Equipment,5311,DEPARTMENT STORES
CCC_10002234_5,24/04/2023,"Museums, Theatres & Cultural Services",SOLENT PLASTICS ROMSEY,47.75,New Equipment,5943," STATIONERY STORES, OFFICE & SCHOOL SUPPLY STORES "
CCC_10002255_8,25/04/2023,South Essex Parking Partnership,AMZNMKTPLACE AMAZON.CO.UK,159.14,New Equipment,5999,MISCELLANEOUS & SPECIALTY STORES
CCC_10002222_4,25/04/2023,Leisure & Heritage Services,AMZNMKTPLACE AMAZON.CO.UK,11.63,General Expense,5999,MISCELLANEOUS & SPECIALTY STORES
CCC_10002222_2,25/04/2023,Leisure & Heritage Services,AMZNMKTPLACE AMAZON.CO.UK,39.98,General Expense,5999,MISCELLANEOUS & SPECIALTY STORES
CCC_10002210_1,25/04/2023,Operational Services,AMZNMKTPLACE AMAZON.CO.UK,94.93,New Equipment,5999,MISCELLANEOUS & SPECIALTY STORES
CCC_10002210_2,25/04/2023,Operational Services,BOOKER LTD - 38622734 WELLINGBOROUG,920.95,General Expense,5411,GROCERY STORES OR SUPERMARKETS
CCC_10002277_2,25/04/2023,Corporate Property Services,AMZNMKTPLACE AMAZON.CO AMAZON.CO.UK,17.32,Printing & Stationary,5999,MISCELLANEOUS & SPECIALTY STORES
CCC_10003501_11,25/04/2023,Parks & Green Spaces,AMZNMKTPLACE AMAZON.CO.UK,26.03,Grounds Maintenance Materials,5999,MISCELLANEOUS & SPECIALTY STORES
CCC_10002318_4,25/04/2023,Parks & Green Spaces,EBAY O 15-09981-43075 LONDON,98.04,Vehicle Repairs,5311,DEPARTMENT STORES
CCC_10002244_2,25/04/2023,Parks & Green Spaces,TAYNA LTD ABERGELE,43.24,Grounds Maintenance Materials,5533," AUTOMOTIVE PARTS, ACCESSORIES STORES "
CCC_10002222_1,25/04/2023,Leisure & Heritage Services,AMZNMKTPLACE AMAZON.CO.UK,7.40,General Expense,5999,MISCELLANEOUS & SPECIALTY STORES
CCC_10002234_3,25/04/2023,"Museums, Theatres & Cultural Services",AMZNMKTPLACE AMAZON.CO.UK,10.82,New Equipment,5999,MISCELLANEOUS & SPECIALTY STORES
CCC_10002238_4,25/04/2023,Leisure & Heritage Services,AMZNMKTPLACE AMAZON.CO.UK,7.46,General Expense,5999,MISCELLANEOUS & SPECIALTY STORES
CCC_10003501_9,25/04/2023,Parks & Green Spaces,AMZNMKTPLACE AMAZON.CO.UK,39.97,General Expense,5999,MISCELLANEOUS & SPECIALTY STORES
CCC_10003501_10,25/04/2023,Parks & Green Spaces,AMZNMKTPLACE AMAZON.CO.UK,26.62,General Expense,5999,MISCELLANEOUS & SPECIALTY STORES
CCC_10003501_12,25/04/2023,Parks & Green Spaces,AMZNMKTPLACE AMAZON.CO.UK,13.82,Grounds Maintenance Materials,5999,MISCELLANEOUS & SPECIALTY STORES
CCC_10003806_4,25/04/2023,Building Services,SAINSBURYS.CO.UK 0800 328 1700,60.75,General Expense,5411,GROCERY STORES OR SUPERMARKETS
CCC_10002312_1,25/04/2023,"Museums, Theatres & Cultural Services",SWORDERS FINE ART AUCT ESSEX,"6,160.00",Museum Exhibits,8999,PROFESSIONAL SERVICES (NEC)
CCC_10002234_2,25/04/2023,"Museums, Theatres & Cultural Services",AMZNMKTPLACE AMAZON.CO.UK,24.99,General Expense,5999,MISCELLANEOUS & SPECIALTY STORES
CCC_10002255_7,25/04/2023,South Essex Parking Partnership,SUMUP   JULIE DRESOU BILLERICAY,3.33,General Expense,5811,CATERERS
CCC_10003501_8,25/04/2023,Parks & Green Spaces,AMZNMKTPLACE AMAZON.CO.UK,13.82,General Expense,5999,MISCELLANEOUS & SPECIALTY STORES
CCC_10002364_5,25/04/2023,Parks & Green Spaces,JAMES ODDY AND SON CHELMSFORD,192.50,General Expense,5211,LUMBER AND BUILDING MATERIALS STORES
CCC_10002169_14,25/04/2023,"Museums, Theatres & Cultural Services",DUKE STREET COOP 01245 345490,2.50,General Expense,5311,DEPARTMENT STORES
CCC_10002230_1,25/04/2023,Leisure & Heritage Services,WWW.MAD4TOOLS.COM BISHOPSWORTH,31.17,Clothing & Uniforms,5072," HARDWARE, PLUMBING, HEATING EQUIPMENT AND SUPPLIES "
CCC_10002246_2,25/04/2023,Leisure & Heritage Services,AMAZON PRIME D389J3Z35 AMZN.CO.UK/PM,8.99,General Expense,5968,CONTINUITY/SUBSCRIPTION MERCHANT
CCC_10002222_3,25/04/2023,Leisure & Heritage Services,AMZNMKTPLACE AMAZON.CO.UK,5.42,General Expense,5999,MISCELLANEOUS & SPECIALTY STORES
CCC_10002169_13,26/04/2023,"Museums, Theatres & Cultural Services",TESCO STORES 5408 CHELMSFORD,5.80,General Expense,5411,GROCERY STORES OR SUPERMARKETS
CCC_10002287_7,26/04/2023,Human Resources,AMZNMKTPLACE AMAZON.CO AMAZON.CO.UK,10.78,Printing & Stationary,5999,MISCELLANEOUS & SPECIALTY STORES
CCC_10003806_5,26/04/2023,Building Services,RS COMPONENTS 08457 201201,42.20,General Expense,5065,ELECTRICAL PARTS AND EQUIPMENT
CCC_10002284_5,26/04/2023,"Museums, Theatres & Cultural Services",HOBBYCRAFT CHELMSFORD,1.50,Museum Exhibits,5970,CRAFT OR ARTIST'S SUPPLY SHOPS
CCC_10002245_1,26/04/2023,"Museums, Theatres & Cultural Services",TESCO STORES 2330 CHELMSFORD 2,3.83,General Expense,5411,GROCERY STORES OR SUPERMARKETS
CCC_10002214_1,26/04/2023,Legal & Democratic Services,AMZNMKTPLACE AMAZON.CO.UK,99.98,Printing & Stationary,5999,MISCELLANEOUS & SPECIALTY STORES
CCC_10003169_20,26/04/2023,Leisure & Heritage Services,ROTACLOUD YORK,49.00,General Expense,5734,COMPUTER SOFTWARE STORES
CCC_10002246_1,26/04/2023,Leisure & Heritage Services,CHAPMAN STORES SOUTHMINSTER,14.59,General Expense,5499,MISC FOOD STORES - SPECIALTY MARKETS & CONVENIENCE
CCC_10002262_1,26/04/2023,Public Health & Protection Services,AMZNMKTPLACE AMAZON.CO.UK,37.02,New Equipment,5999,MISCELLANEOUS & SPECIALTY STORES
CCC_10002219_1,26/04/2023,Parks & Green Spaces,ESSEX WILDLIFE SALES L COLCHESTER CO,30.00,General Expense,7999,AMUSEMENT/RECREATIONAL SERVICES NOT ELSEWHERE CLASSIFIED
CCC_10002287_6,26/04/2023,Human Resources,AMZNMKTPLACE AMAZON.CO AMAZON.CO.UK,16.67,Printing & Stationary,5999,MISCELLANEOUS & SPECIALTY STORES
CCC_10002263_1,26/04/2023,Spatial Planning,GREATER ANGLIA T/O CHLMSFRD 6836,35.10,Public Transport,4112,PASSENGER RAILWAYS
CCC_10002231_1,26/04/2023,Public Health & Protection Services,PETS AT HOME LTD CHELMSFORD,81.58,New Equipment,5995," PET SHOPS, PET FOODS AND SUPPLIES STORES "
CCC_10002206_1,26/04/2023,Digital Services,GREATER ANGLIA 2647,131.00,Public Transport,4112,PASSENGER RAILWAYS
CCC_10002207_1,26/04/2023,Parks & Green Spaces,DVLA VEHICLE TAX 0300 1234321,322.50,Vehicle Tax,9311,TAX PAYMENTS
CCC_10003501_7,26/04/2023,Parks & Green Spaces,AMZNMKTPLACE AMAZON.CO.UK,13.82,Grounds Maintenance Materials,5999,MISCELLANEOUS & SPECIALTY STORES
CCC_10002214_2,26/04/2023,Legal & Democratic Services,AMZNMKTPLACE AMAZON.CO.UK,25.90,Printing & Stationary,5999,MISCELLANEOUS & SPECIALTY STORES
CCC_10002318_3,26/04/2023,Parks & Green Spaces,AMZNMKTPLACE AMAZON.CO.UK,48.25,Vehicle Repairs,5999,MISCELLANEOUS & SPECIALTY STORES
CCC_10002749_3,26/04/2023,Parks & Green Spaces,B & Q 1188 CHELMSFORD,45.00,Grounds Maintenance Materials,5200,HOME SUPPLY WAREHOUSE STORES
CCC_10002232_1,26/04/2023,Spatial Planning,AZTEC SHOWS LLP ROCHFORD,26.75,General Expense,7999,AMUSEMENT/RECREATIONAL SERVICES NOT ELSEWHERE CLASSIFIED
CCC_10002287_5,26/04/2023,Human Resources,FACEBK AM9EEM3D82 FB.ME/ADS,120.95,General Expense,7311,ADVERTISING SERVICES
CCC_10002209_1,26/04/2023,Operational Services,ROYAL MAIL GROUP LTD CHESTERFIELD,4.89,General Expense,9402,POSTAGE STAMPS
CCC_10002233_2,26/04/2023,Street Care & Performance,AMZNMKTPLACE AMAZON.CO AMAZON.CO.UK,45.82,Clothing & Uniforms,5999,MISCELLANEOUS & SPECIALTY STORES
CCC_10003494_3,26/04/2023,"Procurement, Risk and Insurance",GREATER ANGLIA 4278,35.70,Public Transport,4112,PASSENGER RAILWAYS
CCC_10002213_1,26/04/2023,Accountancy Services,GREATER ANGLIA T/O CHLMSFRD 6836,46.00,Public Transport,4112,PASSENGER RAILWAYS
CCC_10002749_2,26/04/2023,Parks & Green Spaces,HALFORDS 0566 CHELMSFORD,80.40,Vehicle Repairs,5940,BICYCLE SHOPS -- SALES AND SERVICE
CCC_10002249_2,27/04/2023,Public Health & Protection Services,AMZNMKTPLACE AMAZON.CO AMAZON.CO.UK,75.67,Printing & Stationary,5999,MISCELLANEOUS & SPECIALTY STORES
CCC_10002227_1,27/04/2023,Development Management,AMZNMKTPLACE AMAZON.CO.UK,3.06,Printing & Stationary,5999,MISCELLANEOUS & SPECIALTY STORES
CCC_10002304_4,27/04/2023,Leisure & Heritage Services,THE DELI HYLANDS CHELMSFORD,5.12,General Expense,5812,RESTAURANTS OR EATING PLACES
CCC_10002228_1,27/04/2023,Operational Services,POST OFFICE COUNTER CHELMSFORD,181.25,Vehicle Tax,9402,POSTAGE STAMPS
CCC_10003314_12,27/04/2023,Marketing & Communications Team,CHELMSFORD CITY COUNCI 01245606861,3.00,Car Parking,7523,AUTOMOBILE PARKING OR PARKING LOTS
CCC_10002749_5,27/04/2023,Parks & Green Spaces,RONTEC WEST CHELMS CHELMSFORD,49.68,Fuel,5541,GAS/SERVICE STATIONS WITH/WITHOUT ANCILLARY SERVICES
CCC_10003501_6,27/04/2023,Parks & Green Spaces,DUNELM LTD CHELMSFORD,55.00,General Expense,5714," DRAPERY, WINDOWCOVERING, AND UPHOLSTERY STORES "
CCC_10002226_1,27/04/2023,"Museums, Theatres & Cultural Services",ETSY.COM - MULTIPLE SH DUBLIN,24.00,New Equipment,5699,APPAREL AND ACCESSORY SHOPS -- MISCELLANEOUS
CCC_10002187_3,27/04/2023,"Museums, Theatres & Cultural Services",AMZNMKTPLACE AMAZON.CO AMAZON.CO.UK,4.99,Printing & Stationary,5999,MISCELLANEOUS & SPECIALTY STORES
CCC_10002204_8,27/04/2023,Marketing & Communications Team,CANVA  I03769-0781294 CAMDEN,247.62,Advertising,7221,PHOTOGRAPHIC STUDIOS
CCC_10002545_11,27/04/2023,Human Resources,WWW.CIPFA.ORG.UK LONDON  WC2N,233.25,Employee Subscriptions,8699,MEMBERSHIP ORGANIZATIONS NOT ELSEWHERE CLASSIFIED
CCC_10002244_1,27/04/2023,Parks & Green Spaces,AMZNMKTPLACE AMAZON.CO AMAZON.CO.UK,78.32,Grounds Maintenance Materials,5999,MISCELLANEOUS & SPECIALTY STORES
CCC_10002218_2,27/04/2023,"Museums, Theatres & Cultural Services",ETSY.COM - KILTFIT DUBLIN,56.25,New Equipment,5699,APPAREL AND ACCESSORY SHOPS -- MISCELLANEOUS
CCC_10002238_2,27/04/2023,Leisure & Heritage Services,AMZNMKTPLACE AMAZON.CO AMAZON.CO.UK,47.17,Printing & Stationary,5999,MISCELLANEOUS & SPECIALTY STORES
CCC_10002211_1,27/04/2023,Leisure & Heritage Services,TESCO STORES 2327 CHELMSFORD 1,10.00,General Expense,5411,GROCERY STORES OR SUPERMARKETS
CCC_10002287_4,27/04/2023,Human Resources,AMZNMKTPLACE AMAZON.CO AMAZON.CO.UK,16.62,General Expense,5999,MISCELLANEOUS & SPECIALTY STORES
CCC_10002749_4,27/04/2023,Parks & Green Spaces,UK ELECTRICAL WHOLESAL CHELMSFORD,76.68,Grounds Maintenance Materials,5065,ELECTRICAL PARTS AND EQUIPMENT
CCC_10002427_8,27/04/2023,Housing Services,TRAVELODG TRAVELODGE G THAME,61.66,General Expense,3615,TRAVELODGE
CCC_10002256_1,27/04/2023,Chief Executive's Office,AMZNBUSINESS X62MA5J25 LUXEMBOURG L,14.15,Printing & Stationary,5999,MISCELLANEOUS & SPECIALTY STORES
CCC_10002208_1,27/04/2023,Marketing & Communications Team,WWW.SOLOPRESS.COM SOUTHEND-ON-S,302.66,Printing & Stationary,2741,MISCELLANEOUS PUBLISHING AND PRINTING
CCC_10002223_1,27/04/2023,Development Management,AMZNMKTPLACE AMAZON.CO.UK,46.65,New Equipment,5999,MISCELLANEOUS & SPECIALTY STORES
CCC_10002218_1,27/04/2023,"Museums, Theatres & Cultural Services",ETSY.COM - DAEGRAD DUBLIN,39.92,New Equipment,5699,APPAREL AND ACCESSORY SHOPS -- MISCELLANEOUS
CCC_10002215_1,27/04/2023,Digital Services,THE LABEL PEOPLE LTD BRIDGNORTH E,-346.22,Printing & Stationary,2741,MISCELLANEOUS PUBLISHING AND PRINTING
CCC_10003243_9,27/04/2023,"Procurement, Risk and Insurance",GREATER ANGLIA 4278,29.75,Public Transport,4112,PASSENGER RAILWAYS
CCC_10002238_3,27/04/2023,Leisure & Heritage Services,AMZNMKTPLACE AMAZON.CO AMAZON.CO.UK,16.04,Printing & Stationary,5999,MISCELLANEOUS & SPECIALTY STORES
CCC_10002233_1,27/04/2023,Street Care & Performance,AMZNMKTPLACE AMAZON.CO.UK,25.40,General Expense,5999,MISCELLANEOUS & SPECIALTY STORES
CCC_10002255_6,27/04/2023,South Essex Parking Partnership,TESCO STORES 5408 CHELMSFORD,4.17,General Expense,5411,GROCERY STORES OR SUPERMARKETS
CCC_10002241_1,28/04/2023,Operational Services,10TO8.COM CAMBRIDGE,59.00,General Expense,5817,DIGITAL GOODS: APPLICATIONS (EXCLUDES GAMES)
CCC_10002261_1,28/04/2023,Leisure & Heritage Services,MANOMANO PARIS,357.49,New Equipment,5722,APPLIANCE STORES (NEC) OR HOUSEHOLD APPLIANCE STORES
CCC_10002342_1,28/04/2023,Leisure & Heritage Services,EBAY O 10-09945-45032 LONDON,-16.63,New Equipment,5311,DEPARTMENT STORES
CCC_10002257_2,28/04/2023,Leisure & Heritage Services,IKEA LTD SHOP ONLINE LONDON,307.50,New Equipment,5712," FURNITURE, HOME FURNISHINGS & EQUIP STORES EXCL APPLIANCES "
CCC_10002255_4,28/04/2023,South Essex Parking Partnership,MFG CASTLE POINT CANVEY ISLAND,10.83,General Expense,5541,GAS/SERVICE STATIONS WITH/WITHOUT ANCILLARY SERVICES
CCC_10002366_2,28/04/2023,"Museums, Theatres & Cultural Services",ARTS PROFESSIONAL CAMBRIDGE,55.00,Employee Subscriptions,5815," DIGITAL GOODS MEDIA: BOOKS, MOVIES, MUSIC "
CCC_10002427_10,28/04/2023,Housing Services,TRAVELODG TRAVELODGE G THAME,441.95,General Expense,3615,TRAVELODGE
CCC_10002313_11,28/04/2023,"Museums, Theatres & Cultural Services",AMZNMKTPLACE AMAZON.CO.UK,9.29,General Expense,5999,MISCELLANEOUS & SPECIALTY STORES
CCC_10003806_6,28/04/2023,Building Services,FIREPROTECT 35314369001,265.04,General Expense,5732,ELECTRONIC SALES
CCC_10002318_2,28/04/2023,Parks & Green Spaces,D. BYFORD & SONS COLCHESTER CO,61.40,Grounds Maintenance Materials,5193," FLORIST SUPPLIES, NURSERY STOCK AND FLOWERS "
CCC_10002427_9,28/04/2023,Housing Services,DEED POLL OFFICE ILMINSTER,29.00,General Expense,7277," COUNSELING SERVICE -- DEBT, MARRIAGE, PERSONAL "
CCC_10002366_3,28/04/2023,"Museums, Theatres & Cultural Services",EB  THEATRE AMP TOURIN 801-413-7200,420.00,Training Expenses,7399,BUSINESS SERVICES (NEC)
CCC_10002447_1,28/04/2023,"Museums, Theatres & Cultural Services",B & Q 1188 CHELMSFORD,75.00,Grounds Maintenance Materials,5200,HOME SUPPLY WAREHOUSE STORES
CCC_10002254_1,28/04/2023,Operational Services,FACEBK YBRMXP7RM2 FB.ME/ADS,3.56,Advertising,7311,ADVERTISING SERVICES
CCC_10002282_1,28/04/2023,"Museums, Theatres & Cultural Services",WWW.PRESERVATIONEQUIPM 01379647400,64.70,Museum Exhibits,4225," PUBLIC WAREHOUSING-FARM PROD,REFRIDGERAT "
CCC_10002254_2,28/04/2023,Operational Services,MAGZTER INC. NEW YORK,9.99,Employee Subscriptions,5815," DIGITAL GOODS MEDIA: BOOKS, MOVIES, MUSIC "
CCC_10002255_3,28/04/2023,South Essex Parking Partnership,STARBUCKS CANVEY ISLAN ESSEX,6.17,General Expense,5814,FAST FOOD RESTAURANTS
CCC_10002255_5,28/04/2023,South Essex Parking Partnership,ROXWELL RD HAND CAR WA CHELMSFORD,16.67,General Expense,7542,CAR WASHES
CCC_10002169_12,29/04/2023,"Museums, Theatres & Cultural Services",TESCO STORES 5408 CHELMSFORD,4.95,General Expense,5411,GROCERY STORES OR SUPERMARKETS
CCC_10002313_10,29/04/2023,"Museums, Theatres & Cultural Services",AMZNMKTPLACE AMAZON.CO.UK,11.43,General Expense,5999,MISCELLANEOUS & SPECIALTY STORES
CCC_10002237_1,30/04/2023,Marketing & Communications Team,FACEBK KVR2QMKL92 FB.ME/ADS,19.82,Advertising,7311,ADVERTISING SERVICES
CCC_10002461_2,30/04/2023,Marketing & Communications Team,FACEBK  LAPRRPBAK2 FB.ME/ADS,99.99,Advertising,7311,ADVERTISING SERVICES
CCC_10002257_1,30/04/2023,Leisure & Heritage Services,WWW.CDPOOL.COM LONDON,234.35,Employee Subscriptions,5733," MUSIC STORES, MUSICAL INSTRUMENTS, PIANOS, SHEET MUSIC "
CCC_10002204_7,30/04/2023,Marketing & Communications Team,FACEBK  VDHJQNKY52 FB.ME/ADS,113.15,Advertising,7311,ADVERTISING SERVICES
CCC_10002278_1,30/04/2023,Leisure & Heritage Services,FACEBK L386UMB242 FB.ME/ADS,27.59,Advertising,7311,ADVERTISING SERVICES
CCC_10002252_2,30/04/2023,Parking & Highways Operations,AMZ AMAZON.CO.UK AMAZON.CO.UK,-12.50,General Expense,5999,MISCELLANEOUS & SPECIALTY STORES
CCC_10002287_3,01/05/2023,Human Resources,GOOGLE ADS2733035999 DUBLIN,48.28,General Expense,7311,ADVERTISING SERVICES
CCC_10003816_1,01/05/2023,"Museums, Theatres & Cultural Services",TESCO STORES 2330 CHELMSFORD 2,-19.29,General Expense,5411,GROCERY STORES OR SUPERMARKETS
CCC_10002247_2,01/05/2023,Street Care & Performance,AMZNMKTPLACE AMAZON.CO AMAZON.CO.UK,33.32,Clothing & Uniforms,5999,MISCELLANEOUS & SPECIALTY STORES
CCC_10002419_8,01/05/2023,"Museums, Theatres & Cultural Services",TESCO STORES 2330 CHELMSFORD 2,16.07,General Expense,5411,GROCERY STORES OR SUPERMARKETS
CCC_10002313_9,01/05/2023,"Museums, Theatres & Cultural Services",AMZNMKTPLACE AMAZON.CO.UK,6.66,General Expense,5999,MISCELLANEOUS & SPECIALTY STORES
CCC_10002414_1,01/05/2023,Parks & Green Spaces,AMZNMKTPLACE AMAZON.CO AMAZON.CO.UK,99.97,Grounds Maintenance Materials,5999,MISCELLANEOUS & SPECIALTY STORES
CCC_10002252_1,01/05/2023,Parking & Highways Operations,AMZ BLUKOO 020-35989808,-16.50,General Expense,5999,MISCELLANEOUS & SPECIALTY STORES
CCC_10002360_1,01/05/2023,Leisure & Heritage Services,AMZNMKTPLACE AMAZON.CO AMAZON.CO.UK,5.82,New Equipment,5999,MISCELLANEOUS & SPECIALTY STORES
CCC_10002346_1,01/05/2023,Leisure & Heritage Services,AMZNMKTPLACE AMAZON.CO.UK,95.82,New Equipment,5999,MISCELLANEOUS & SPECIALTY STORES
CCC_10002462_3,01/05/2023,Marketing & Communications Team,GOOGLE ADS8205095539 DUBLIN,182.77,Advertising,7311,ADVERTISING SERVICES
CCC_10002255_2,01/05/2023,South Essex Parking Partnership,AMZNMKTPLACE AMAZON.CO.UK,46.58,Clothing & Uniforms,5999,MISCELLANEOUS & SPECIALTY STORES
CCC_10002236_1,01/05/2023,Marketing & Communications Team,GOOGLE ADS3539603203 DUBLIN,154.74,Advertising,7311,ADVERTISING SERVICES
CCC_10002313_8,01/05/2023,"Museums, Theatres & Cultural Services",AMZNMKTPLACE AMAZON.CO.UK,38.03,General Expense,5999,MISCELLANEOUS & SPECIALTY STORES
CCC_10002204_6,01/05/2023,Marketing & Communications Team,GOOGLE ADS9290904130 DUBLIN,51.00,Advertising,7311,ADVERTISING SERVICES
CCC_10002304_3,01/05/2023,Leisure & Heritage Services,AMZNMKTPLACE AMAZON.CO AMAZON.CO.UK,9.15,General Expense,5999,MISCELLANEOUS & SPECIALTY STORES
CCC_10002352_1,01/05/2023,Leisure & Heritage Services,SPORTSDIRECT SHIREBROOK,44.49,New Equipment,5655,RIDING OR SPORTS APPAREL STORES
CCC_10002313_7,02/05/2023,"Museums, Theatres & Cultural Services",AMZNMKTPLACE AMAZON.CO.UK,13.33,General Expense,5999,MISCELLANEOUS & SPECIALTY STORES
CCC_10002304_2,02/05/2023,Leisure & Heritage Services,AMZNMKTPLACE AMAZON.CO AMAZON.CO.UK,2.87,General Expense,5999,MISCELLANEOUS & SPECIALTY STORES
CCC_10002365_1,02/05/2023,Parks & Green Spaces,TESCO-STORES 6724 CHELMSFORD,3.00,General Expense,5411,GROCERY STORES OR SUPERMARKETS
CCC_10003930_2,02/05/2023,Building Services,FIREPROTECT 35314369001,-77.36,General Expense,5732,ELECTRONIC SALES
CCC_10002414_2,02/05/2023,Parks & Green Spaces,TESCO-STORES 6724 CHELMSFORD,5.00,Grounds Maintenance Materials,5411,GROCERY STORES OR SUPERMARKETS
CCC_10002235_2,02/05/2023,Operational Services,BOOKER LTD - 38548144 WELLINGBOROUG,80.06,General Expense,5411,GROCERY STORES OR SUPERMARKETS
CCC_10002234_1,02/05/2023,"Museums, Theatres & Cultural Services",AMZNMKTPLACE AMAZON.CO AMAZON.CO.UK,7.83,General Expense,5999,MISCELLANEOUS & SPECIALTY STORES
CCC_10002290_4,02/05/2023,Public Health & Protection Services,B&M 560 - CHELMSFORD CHELMSFORD,12.50,New Equipment,5399,GENERAL MERCHANDISE OR CONVENIENCE FOOD STORES
CCC_10002419_7,02/05/2023,"Museums, Theatres & Cultural Services",SCREWFIX DIR LTD CHELMFOR1867,4.69,Grounds Maintenance Materials,5211,LUMBER AND BUILDING MATERIALS STORES
CCC_10002169_11,02/05/2023,"Museums, Theatres & Cultural Services",DUKE STREET COOP 01245 345490,2.50,General Expense,5311,DEPARTMENT STORES
CCC_10002251_2,02/05/2023,Development Management,AMZNMKTPLACE AMAZON.CO.UK,21.65,Printing & Stationary,5999,MISCELLANEOUS & SPECIALTY STORES
CCC_10002355_1,02/05/2023,Leisure & Heritage Services,AMZNMKTPLACE AMAZON.CO.UK,9.99,New Equipment,5999,MISCELLANEOUS & SPECIALTY STORES
CCC_10003503_12,02/05/2023,Parks & Green Spaces,TESCO STORES 2330 CHELMSFORD 2,44.17,Grounds Maintenance Materials,5411,GROCERY STORES OR SUPERMARKETS
CCC_10003806_7,02/05/2023,Building Services,AMZNMKTPLACE AMAZON.CO AMAZON.CO.UK,13.31,General Expense,5999,MISCELLANEOUS & SPECIALTY STORES
CCC_10002243_1,02/05/2023,Digital Services,JEFFNET 4029357733,41.23,General Expense,5734,COMPUTER SOFTWARE STORES
CCC_10002238_1,03/05/2023,Leisure & Heritage Services,AMZNMKTPLACE AMAZON.CO.UK,115.16,General Expense,5999,MISCELLANEOUS & SPECIALTY STORES
CCC_10002374_3,03/05/2023,Leisure & Heritage Services,CHELMSFORD DW 03439092725,24.17,New Equipment,5941,SPORTING GOODS STORES
CCC_10002249_1,03/05/2023,Public Health & Protection Services,AMZNMKTPLACE AMAZON.CO.UK,19.94,Printing & Stationary,5999,MISCELLANEOUS & SPECIALTY STORES
CCC_10002251_1,03/05/2023,Development Management,AMZNBUSINESS 0R9LL7HG5 LUXEMBOURG L,51.25,Printing & Stationary,5999,MISCELLANEOUS & SPECIALTY STORES
CCC_10002334_1,03/05/2023,Parking & Highways Operations,HALFORDS 0566 CHELMSFORD,25.66,General Expense,5940,BICYCLE SHOPS -- SALES AND SERVICE
CCC_10002414_3,03/05/2023,Parks & Green Spaces,AMZNMKTPLACE AMAZON.CO AMAZON.CO.UK,11.63,Grounds Maintenance Materials,5999,MISCELLANEOUS & SPECIALTY STORES
CCC_10002290_3,03/05/2023,Public Health & Protection Services,AMZNMKTPLACE AMAZON.CO.UK,133.00,New Equipment,5999,MISCELLANEOUS & SPECIALTY STORES
CCC_10002242_1,03/05/2023,Digital Services,UDEMY UDEMY.COM,15.99,General Expense,7372," COMPUTER PROGRAMMING, SYSTEMS DESIGN OR DATA PROCESSING SERV "
CCC_10002349_1,03/05/2023,Leisure & Heritage Services,ONEDIRECT ST ESTEVE,276.00,New Equipment,5965,COMBINATION CATALOG AND RETAIL MERCHANT
CCC_10002235_1,03/05/2023,Operational Services,SAINSBURYS S/MKTS CHELMSFORD 41,8.40,General Expense,5411,GROCERY STORES OR SUPERMARKETS
CCC_10003806_8,03/05/2023,Building Services,AMZNMKTPLACE AMAZON.CO AMAZON.CO.UK,58.95,General Expense,5999,MISCELLANEOUS & SPECIALTY STORES
CCC_10002365_2,03/05/2023,Parks & Green Spaces,TESCO-STORES 6724 CHELMSFORD,0.75,General Expense,5411,GROCERY STORES OR SUPERMARKETS
CCC_10002351_1,03/05/2023,Leisure & Heritage Services,AMZNMKTPLACE AMAZON.CO.UK,59.99,New Equipment,5999,MISCELLANEOUS & SPECIALTY STORES
CCC_10003503_11,03/05/2023,Parks & Green Spaces,HSFLORALDESIGNS.CO.UK BLACKMORE IN,90.50,Grounds Maintenance Materials,5992,FLORISTS
CCC_10002248_1,04/05/2023,Parks & Green Spaces,AMZNMKTPLACE AMAZON.CO.UK,56.50,New Equipment,5999,MISCELLANEOUS & SPECIALTY STORES
CCC_10002749_6,04/05/2023,Parks & Green Spaces,UK ELECTRICAL WHOLESAL CHELMSFORD,5.60,Grounds Maintenance Materials,5065,ELECTRICAL PARTS AND EQUIPMENT
CCC_10002323_9,04/05/2023,Leisure & Heritage Services,AMZNMKTPLACE AMAZON.CO AMAZON.CO.UK,29.02,General Expense,5999,MISCELLANEOUS & SPECIALTY STORES
CCC_10002359_1,04/05/2023,Leisure & Heritage Services,AMZNMKTPLACE AMAZON.CO AMAZON.CO.UK,55.82,New Equipment,5999,MISCELLANEOUS & SPECIALTY STORES
CCC_10002335_1,04/05/2023,Parking & Highways Operations,SCREWFIX DIR LTD CHELMFOR1066,152.96,General Expense,5211,LUMBER AND BUILDING MATERIALS STORES
CCC_10002259_1,04/05/2023,Leisure & Heritage Services,PRINT MARKETPLACE 40 2802345,122.03,Printing & Stationary,7338," PRINT SHOPS, QUICK COPY SERVICES OR REPRODUCTION SERVICES "
CCC_10002313_6,04/05/2023,"Museums, Theatres & Cultural Services",TOOLSTATION UK NORTHAMPTON,39.94,General Expense,5251,HARDWARE STORES
CCC_10002260_1,04/05/2023,Leisure & Heritage Services,PRINT MARKETPLACE 40 2802345,33.00,Printing & Stationary,7338," PRINT SHOPS, QUICK COPY SERVICES OR REPRODUCTION SERVICES "
CCC_10002250_2,04/05/2023,"Museums, Theatres & Cultural Services",ETSY.COM - PERAPERIS LONDON,40.47,New Equipment,5399,GENERAL MERCHANDISE OR CONVENIENCE FOOD STORES
CCC_10002247_1,04/05/2023,Street Care & Performance,SQ  SQUARE CACTUS LIMI BLACKBURN,187.66,Advertising,8999,PROFESSIONAL SERVICES (NEC)
CCC_10002255_1,04/05/2023,South Essex Parking Partnership,GREGGS BRENTWOOD,2.58,General Expense,5812,RESTAURANTS OR EATING PLACES
CCC_10002250_1,04/05/2023,"Museums, Theatres & Cultural Services",AMZ ABSU AMAZON.CO.UK,-21.64,New Equipment,5999,MISCELLANEOUS & SPECIALTY STORES
CCC_10002633_3,04/05/2023,"Museums, Theatres & Cultural Services",PAYPAL  STAGE DEPOT 01173250336,18.25,General Expense,5946,CAMERA AND/OR PHOTOGRAPHIC SUPPLY STORES
CCC_10003646_6,04/05/2023,Operational Services,SAFETY GLOVES LONDON,183.20,Vehicle Repairs,5047," MEDICAL, DENTAL, OPHTHALMIC AND HOSPITAL EQUIP "
CCC_10002414_4,04/05/2023,Parks & Green Spaces,AMZNMKTPLACE AMAZON.CO AMAZON.CO.UK,22.48,Grounds Maintenance Materials,5999,MISCELLANEOUS & SPECIALTY STORES
CCC_10002169_10,04/05/2023,"Museums, Theatres & Cultural Services",TESCO STORES 5408 CHELMSFORD,16.10,General Expense,5411,GROCERY STORES OR SUPERMARKETS
CCC_10002538_1,04/05/2023,"Museums, Theatres & Cultural Services",ROTACLOUD YORK,40.00,Employee Subscriptions,5734,COMPUTER SOFTWARE STORES
CCC_10002249_3,04/05/2023,Public Health & Protection Services,AMZNMKTPLACE AMAZON.CO.UK,22.33,Printing & Stationary,5999,MISCELLANEOUS & SPECIALTY STORES
CCC_10002323_8,05/05/2023,Leisure & Heritage Services,AMZNMKTPLACE AMAZON.CO AMAZON.CO.UK,15.83,General Expense,5999,MISCELLANEOUS & SPECIALTY STORES
CCC_10002235_3,05/05/2023,Operational Services,SPECSAVERS CHELMSFORD,258.00,General Expense,8043,OPTICIANS
CCC_10002633_2,05/05/2023,"Museums, Theatres & Cultural Services",GOBOPLUS LIMITED AYLESBURY,28.85,General Expense,7333," PHOTOGRAPHY, ART AND GRAPHIC -- COMMERCIAL "
CCC_10003517_2,05/05/2023,Public Health & Protection Services,FASTSIGNS CHELMSFORD CHELMSFORD,108.36,General Expense,5943," STATIONERY STORES, OFFICE & SCHOOL SUPPLY STORES "
CCC_10002270_1,05/05/2023,Parking & Highways Operations,AMAZON.CO.UK RB3K71T55 AMAZON.CO.UK,8.17,Printing & Stationary,5969,DIRECT MARKETERS (NEC)
CCC_10002275_10,05/05/2023,"Museums, Theatres & Cultural Services",TESCO STORES 5408 CHELMSFORD,3.30,General Expense,5411,GROCERY STORES OR SUPERMARKETS
CCC_10002287_2,05/05/2023,Human Resources,CHARTERED ASSOCIATION NORTHAMPTON,25.00,Employee Subscriptions,8220," UNIVERSITIES, COLLEGES, SR COLLEGES OR PROFESSIONAL SCHOOLS "
CCC_10002365_12,05/05/2023,Parks & Green Spaces,ENGELBERT STRAUSS LTD FARNBOROUGH,143.76,Grounds Maintenance Materials,5211,LUMBER AND BUILDING MATERIALS STORES
CCC_10003806_9,05/05/2023,Building Services,KINGDOM COFFEE READING,174.61,General Expense,5499,MISC FOOD STORES - SPECIALTY MARKETS & CONVENIENCE
CCC_10002266_1,05/05/2023,Public Health & Protection Services,ESSEX COUNTY COUNCI EC CHELMSFORD,11.00,Printing & Stationary,9399,GOVERNMENT SERVICES (NEC) OR FIRE DEPARTMENTS
CCC_10002313_5,05/05/2023,"Museums, Theatres & Cultural Services",TOOLSTATION UK NORTHAMPTON,5.30,General Expense,5251,HARDWARE STORES
CCC_10003806_10,05/05/2023,Building Services,TESCO STORES 2327 CHELMSFORD 1,6.80,General Expense,5411,GROCERY STORES OR SUPERMARKETS
CCC_10002350_1,06/05/2023,Leisure & Heritage Services,AMZNMKTPLACE AMAZON.CO.UK,19.12,New Equipment,5999,MISCELLANEOUS & SPECIALTY STORES
CCC_10002275_11,06/05/2023,"Museums, Theatres & Cultural Services",TESCO STORES 5408 CHELMSFORD,1.65,General Expense,5411,GROCERY STORES OR SUPERMARKETS
CCC_10002283_1,06/05/2023,"Museums, Theatres & Cultural Services",AMZNMKTPLACE AMAZON.CO AMAZON.CO.UK,69.98,Museum Exhibits,5999,MISCELLANEOUS & SPECIALTY STORES
CCC_10002416_16,06/05/2023,Operational Services,DREAMSTIME.COM MIAMI,22.00,Advertising,5262,
CCC_10003169_19,07/05/2023,Leisure & Heritage Services,SOUNDTRACK YOUR BRAND STOCKHOLM,39.00,General Expense,5815," DIGITAL GOODS MEDIA: BOOKS, MOVIES, MUSIC "
CCC_10002358_1,07/05/2023,Leisure & Heritage Services,B&Q COLCHESTER TOLLGAT COLCHESTE2722,18.97,New Equipment,5211,LUMBER AND BUILDING MATERIALS STORES
CCC_10002284_4,07/05/2023,"Museums, Theatres & Cultural Services",SAINSBURYS S/MKTS CHELMSFORD 41,5.90,Museum Exhibits,5411,GROCERY STORES OR SUPERMARKETS
CCC_10002275_12,07/05/2023,"Museums, Theatres & Cultural Services",TESCO STORES 5408 CHELMSFORD,6.00,General Expense,5411,GROCERY STORES OR SUPERMARKETS
CCC_10002284_3,08/05/2023,"Museums, Theatres & Cultural Services",BP CHELMSFORD S/STN CHELMSFORD ES,6.50,Museum Exhibits,5541,GAS/SERVICE STATIONS WITH/WITHOUT ANCILLARY SERVICES
CCC_10002568_6,08/05/2023,Marketing & Communications Team,WIX.COM 1054031643 LONDON,66.62,Advertising,5817,DIGITAL GOODS: APPLICATIONS (EXCLUDES GAMES)
CCC_10002344_1,08/05/2023,Leisure & Heritage Services,AMZNMKTPLACE AMAZON.CO AMAZON.CO.UK,-89.99,New Equipment,5999,MISCELLANEOUS & SPECIALTY STORES
CCC_10002419_6,08/05/2023,"Museums, Theatres & Cultural Services",SCREWFIX DIR LTD CHELMFOR1867,7.65,Grounds Maintenance Materials,5211,LUMBER AND BUILDING MATERIALS STORES
CCC_10002343_1,08/05/2023,Leisure & Heritage Services,CURRYS ONLINE HEMEL HEMPSTE,232.50,New Equipment,5732,ELECTRONIC SALES
CCC_10002357_1,08/05/2023,Leisure & Heritage Services,ALDI 90 776 COLCHESTER,5.82,New Equipment,5411,GROCERY STORES OR SUPERMARKETS
CCC_10002285_2,08/05/2023,Digital Services,123 REG LTD 007300823 HAYES MIDDLE,26.98,Publications,4816,COMPUTER NETWORK/INFO SVCS
CCC_10003806_11,09/05/2023,Building Services,TESCO STORES 5408 CHELMSFORD,4.80,General Expense,5411,GROCERY STORES OR SUPERMARKETS
CCC_10002289_4,09/05/2023,"Museums, Theatres & Cultural Services",AMZNMKTPLACE AMAZON.CO.UK,3.32,Printing & Stationary,5999,MISCELLANEOUS & SPECIALTY STORES
CCC_10002280_1,09/05/2023,Leisure & Heritage Services,TESCO STORES 2330 CHELMSFORD 2,29.80,Printing & Stationary,5411,GROCERY STORES OR SUPERMARKETS
CCC_10002274_1,09/05/2023,Marketing & Communications Team,TRAINLINE.COM LONDON,71.12,Public Transport,4112,PASSENGER RAILWAYS
CCC_10002275_13,09/05/2023,"Museums, Theatres & Cultural Services",TESCO STORES 5408 CHELMSFORD,4.95,General Expense,5411,GROCERY STORES OR SUPERMARKETS
CCC_10002269_1,09/05/2023,Marketing & Communications Team,EPH RECEPTION BIRMINGHAM,240.00,Accommodation,7011," LODGING,HOTELS,MOTELS,RESORTS "
CCC_10002365_3,09/05/2023,Parks & Green Spaces,TESCO-STORES 6724 CHELMSFORD,3.00,General Expense,5411,GROCERY STORES OR SUPERMARKETS
CCC_10002273_4,09/05/2023,Digital Services,AMZNBUSINESS ZY6NE8LX5 LUXEMBOURG L,17.97,New Equipment,5999,MISCELLANEOUS & SPECIALTY STORES
CCC_10002266_2,09/05/2023,Public Health & Protection Services,PRINT MARKETPLACE 40 2802345,81.29,Printing & Stationary,7338," PRINT SHOPS, QUICK COPY SERVICES OR REPRODUCTION SERVICES "
CCC_10002313_4,09/05/2023,"Museums, Theatres & Cultural Services",WWW.ACORN-IND.CO.UK ROTHERHAM,210.50,General Expense,5013,MOTOR VEHICLE SUPPLIES AND NEW PARTS
CCC_10002546_2,09/05/2023,Street Care & Performance,ALDI 776 127 CHELMSFORD,5.98,General Expense,5411,GROCERY STORES OR SUPERMARKETS
CCC_10002284_1,09/05/2023,"Museums, Theatres & Cultural Services",ETSY.COM - CRAFTELLERY LONDON,13.78,Museum Exhibits,5399,GENERAL MERCHANDISE OR CONVENIENCE FOOD STORES
CCC_10002303_1,09/05/2023,"Museums, Theatres & Cultural Services",TESCO STORES 5408 CHELMSFORD,8.10,General Expense,5411,GROCERY STORES OR SUPERMARKETS
CCC_10002271_6,09/05/2023,Parks & Green Spaces,AMZNMKTPLACE AMAZON.CO.UK,101.17,Grounds Maintenance Materials,5999,MISCELLANEOUS & SPECIALTY STORES
CCC_10002289_3,09/05/2023,"Museums, Theatres & Cultural Services",AMZNMKTPLACE AMAZON.CO.UK,18.07,Printing & Stationary,5999,MISCELLANEOUS & SPECIALTY STORES
CCC_10003503_10,09/05/2023,Parks & Green Spaces,TESCO STORES 2330 CHELMSFORD 2,36.67,Grounds Maintenance Materials,5411,GROCERY STORES OR SUPERMARKETS
CCC_10002289_2,09/05/2023,"Museums, Theatres & Cultural Services",AMZNMKTPLACE AMAZON.CO.UK,24.06,Printing & Stationary,5999,MISCELLANEOUS & SPECIALTY STORES
CCC_10002284_2,09/05/2023,"Museums, Theatres & Cultural Services",PORTMEIRION GROUP UK STOKE-ON-TREN,30.82,Museum Exhibits,5712," FURNITURE, HOME FURNISHINGS & EQUIP STORES EXCL APPLIANCES "
CCC_10002271_7,09/05/2023,Parks & Green Spaces,AMZNMKTPLACE AMAZON.CO.UK,10.62,Grounds Maintenance Materials,5999,MISCELLANEOUS & SPECIALTY STORES
CCC_10002416_15,09/05/2023,Operational Services,FACEBK 6SP4BNBZA2 FB.ME/ADS,200.00,Advertising,7311,ADVERTISING SERVICES
CCC_10002289_5,09/05/2023,"Museums, Theatres & Cultural Services",AMZNMKTPLACE AMAZON.CO.UK,3.32,Printing & Stationary,5999,MISCELLANEOUS & SPECIALTY STORES
CCC_10002281_2,09/05/2023,Parks & Green Spaces,AMZNMKTPLACE AMAZON.CO.UK,8.73,Printing & Stationary,5999,MISCELLANEOUS & SPECIALTY STORES
CCC_10002267_1,09/05/2023,Development Management,AMZNMKTPLACE AMAZON.CO.UK,17.50,Printing & Stationary,5999,MISCELLANEOUS & SPECIALTY STORES
CCC_10002755_20,09/05/2023,Leisure & Heritage Services,AMZNMKTPLACE AMAZON.CO AMAZON.CO.UK,19.58,General Expense,5999,MISCELLANEOUS & SPECIALTY STORES
CCC_10002411_35,09/05/2023,South Essex Parking Partnership,INGRAVE SF CONNECT BRENTWOOD,12.56,Fuel,5541,GAS/SERVICE STATIONS WITH/WITHOUT ANCILLARY SERVICES
CCC_10002411_34,09/05/2023,South Essex Parking Partnership,POLICE SUPPLIES KIRKBY,32.04,Clothing & Uniforms,5699,APPAREL AND ACCESSORY SHOPS -- MISCELLANEOUS
CCC_10002273_3,10/05/2023,Digital Services,AMZNMKTPLACE AMAZON.CO.UK,5.99,Printing & Stationary,5999,MISCELLANEOUS & SPECIALTY STORES
CCC_10002273_5,10/05/2023,Digital Services,AMZNMKTPLACE AMAZON.CO.UK,14.00,New Equipment,5999,MISCELLANEOUS & SPECIALTY STORES
CCC_10002268_3,10/05/2023,Leisure & Heritage Services,SP RLSS UK SHOP WORCESTER,68.96,General Expense,5691,MEN'S AND WOMEN'S CLOTHING STORES
CCC_10002313_2,10/05/2023,"Museums, Theatres & Cultural Services",IRONMONGERYDIRECT LTD BASILDON,70.00,General Expense,5251,HARDWARE STORES
CCC_10002273_2,10/05/2023,Digital Services,AMZNMKTPLACE AMAZON.CO.UK,21.98,New Equipment,5999,MISCELLANEOUS & SPECIALTY STORES
CCC_10002707_1,10/05/2023,"Museums, Theatres & Cultural Services",GREATER ANGLIA T/O CHLMSFRD 6836,74.20,Public Transport,4112,PASSENGER RAILWAYS
CCC_10002303_2,10/05/2023,"Museums, Theatres & Cultural Services",BOOKER LIMITED ECOM WELLINGBOROUG,151.22,General Expense,5411,GROCERY STORES OR SUPERMARKETS
CCC_10003503_9,10/05/2023,Parks & Green Spaces,D. BYFORD & SONS COLCHESTER CO,51.00,Grounds Maintenance Materials,5193," FLORIST SUPPLIES, NURSERY STOCK AND FLOWERS "
CCC_10002273_6,10/05/2023,Digital Services,AMZNMKTPLACE AMAZON.CO.UK,22.02,New Equipment,5999,MISCELLANEOUS & SPECIALTY STORES
CCC_10002411_33,10/05/2023,South Essex Parking Partnership,CLARKS.CO.UK STREET,50.00,Clothing & Uniforms,5661,SHOE STORES
CCC_10002706_1,10/05/2023,"Museums, Theatres & Cultural Services",IKEA LTD SHOP ONLINE LONDON,41.67,New Equipment,5712," FURNITURE, HOME FURNISHINGS & EQUIP STORES EXCL APPLIANCES "
CCC_10002271_5,10/05/2023,Parks & Green Spaces,AMZNMKTPLACE AMAZON.CO.UK,10.42,Grounds Maintenance Materials,5999,MISCELLANEOUS & SPECIALTY STORES
CCC_10002294_1,10/05/2023,Legal & Democratic Services,STATIONERYU 35314369001,41.70,Printing & Stationary,5943," STATIONERY STORES, OFFICE & SCHOOL SUPPLY STORES "
CCC_10002467_3,10/05/2023,Street Care & Performance,VAX LTD DROITWICH,262.48,New Equipment,5722,APPLIANCE STORES (NEC) OR HOUSEHOLD APPLIANCE STORES
CCC_10002271_2,10/05/2023,Parks & Green Spaces,AMZNMKTPLACE AMAZON.CO.UK,64.14,Grounds Maintenance Materials,5999,MISCELLANEOUS & SPECIALTY STORES
CCC_10002268_1,10/05/2023,Leisure & Heritage Services,AMZNMKTPLACE AMAZON.CO AMAZON.CO.UK,94.15,New Equipment,5999,MISCELLANEOUS & SPECIALTY STORES
CCC_10002313_3,10/05/2023,"Museums, Theatres & Cultural Services",TOOLSTATION UK NORTHAMPTON,2.45,General Expense,5251,HARDWARE STORES
CCC_10002289_1,10/05/2023,"Museums, Theatres & Cultural Services",AMZNMKTPLACE AMAZON.CO.UK,3.48,Printing & Stationary,5999,MISCELLANEOUS & SPECIALTY STORES
CCC_10002268_2,10/05/2023,Leisure & Heritage Services,AMZNMKTPLACE AMAZON.CO AMAZON.CO.UK,9.45,New Equipment,5999,MISCELLANEOUS & SPECIALTY STORES
CCC_10002341_1,10/05/2023,Leisure & Heritage Services,AMZNMKTPLACE AMAZON.CO.UK,16.65,Printing & Stationary,5999,MISCELLANEOUS & SPECIALTY STORES
CCC_10002271_4,10/05/2023,Parks & Green Spaces,AMZNMKTPLACE AMAZON.CO.UK,9.98,Grounds Maintenance Materials,5999,MISCELLANEOUS & SPECIALTY STORES
CCC_10002290_2,10/05/2023,Public Health & Protection Services,PAYPAL  BBSPORTSBAN 35314369001,152.32,Printing & Stationary,5099,DURABLE GOODS (NEC)
CCC_10002419_5,10/05/2023,"Museums, Theatres & Cultural Services",SCREWFIX DIR LTD CHELMFOR1867,2.62,Grounds Maintenance Materials,5211,LUMBER AND BUILDING MATERIALS STORES
CCC_10002323_7,10/05/2023,Leisure & Heritage Services,BOOKER LTD - 38548144 WELLINGBOROUG,36.69,General Expense,5411,GROCERY STORES OR SUPERMARKETS
CCC_10002718_3,10/05/2023,Marketing & Communications Team,AMZNMKTPLACE AMAZON.CO AMAZON.CO.UK,15.20,Printing & Stationary,5999,MISCELLANEOUS & SPECIALTY STORES
CCC_10002271_3,10/05/2023,Parks & Green Spaces,AMZNMKTPLACE AMAZON.CO.UK,111.14,Grounds Maintenance Materials,5999,MISCELLANEOUS & SPECIALTY STORES
CCC_10002268_4,10/05/2023,Leisure & Heritage Services,TAHDAH VERIFIED LLANDUDNO,107.50,General Expense,5734,COMPUTER SOFTWARE STORES
CCC_10002273_1,10/05/2023,Digital Services,AMZNMKTPLACE AMAZON.CO.UK,6.24,New Equipment,5999,MISCELLANEOUS & SPECIALTY STORES
CCC_10002329_1,10/05/2023,Leisure & Heritage Services,AMZNMKTPLACE AMAZON.CO AMAZON.CO.UK,26.65,New Equipment,5999,MISCELLANEOUS & SPECIALTY STORES
CCC_10003635_1,10/05/2023,Housing Services,BRAINTREE DC BRAINTREE,-59.35,General Expense,9399,GOVERNMENT SERVICES (NEC) OR FIRE DEPARTMENTS
CCC_10002718_2,10/05/2023,Marketing & Communications Team,AMZNMKTPLACE AMAZON.CO AMAZON.CO.UK,13.02,Printing & Stationary,5999,MISCELLANEOUS & SPECIALTY STORES
CCC_10002411_29,11/05/2023,South Essex Parking Partnership,EBAY O 10-10046-42386 LONDON,6.12,Printing & Stationary,5311,DEPARTMENT STORES
CCC_10002285_1,11/05/2023,Digital Services,AMZNMKTPLACE AMAZON.CO.UK,16.65,New Equipment,5999,MISCELLANEOUS & SPECIALTY STORES
CCC_10002706_3,11/05/2023,"Museums, Theatres & Cultural Services",IKEA LTD 262 LAKESIDE WEST THURROCK,8.33,New Equipment,5712," FURNITURE, HOME FURNISHINGS & EQUIP STORES EXCL APPLIANCES "
CCC_10002538_2,11/05/2023,"Museums, Theatres & Cultural Services",BLUESKYPRINTING CHELMSFORD,35.75,Printing & Stationary,2741,MISCELLANEOUS PUBLISHING AND PRINTING
CCC_10002414_5,11/05/2023,Parks & Green Spaces,TESCO-STORES 6724 CHELMSFORD,4.75,Grounds Maintenance Materials,5411,GROCERY STORES OR SUPERMARKETS
CCC_10002411_32,11/05/2023,South Essex Parking Partnership,EBAY O 10-10046-42385 LONDON,8.32,Printing & Stationary,5311,DEPARTMENT STORES
CCC_10002411_27,11/05/2023,South Essex Parking Partnership,EBAY O 10-10046-42387 LONDON,4.41,New Equipment,5311,DEPARTMENT STORES
CCC_10002264_1,11/05/2023,Leisure & Heritage Services,TESCO STORES 2172 BRAINTREE,35.10,General Expense,5411,GROCERY STORES OR SUPERMARKETS
CCC_10002320_16,11/05/2023,"Museums, Theatres & Cultural Services",THAT LITTLE BOX LONDON,238.00,New Equipment,5732,ELECTRONIC SALES
CCC_10002290_1,11/05/2023,Public Health & Protection Services,PRINT MARKETPLACE 40 2802345,60.35,Printing & Stationary,7338," PRINT SHOPS, QUICK COPY SERVICES OR REPRODUCTION SERVICES "
CCC_10003806_12,11/05/2023,Building Services,TESCO STORES 5408 CHELMSFORD,8.60,General Expense,5411,GROCERY STORES OR SUPERMARKETS
CCC_10002313_1,11/05/2023,"Museums, Theatres & Cultural Services",AMZNMKTPLACE AMAZON.CO.UK,8.31,General Expense,5999,MISCELLANEOUS & SPECIALTY STORES
CCC_10002411_30,11/05/2023,South Essex Parking Partnership,EBAY O 10-10046-42388 LONDON,3.96,Printing & Stationary,5311,DEPARTMENT STORES
CCC_10002281_1,11/05/2023,Parks & Green Spaces,WWW.HALL-FAST.COM INTERNET,9.79,Clothing & Uniforms,5085,INDUSTRIAL SUPPLIES (NEC)
CCC_10002411_31,11/05/2023,South Essex Parking Partnership,EBAY O 10-10046-42384 LONDON,8.20,Printing & Stationary,5311,DEPARTMENT STORES
CCC_10002271_1,11/05/2023,Parks & Green Spaces,AMZNMKTPLACE AMAZON.CO.UK,47.42,Grounds Maintenance Materials,5999,MISCELLANEOUS & SPECIALTY STORES
CCC_10002322_14,11/05/2023,Parks & Green Spaces,WWW.HALL-FAST.COM INTERNET,66.73,Clothing & Uniforms,5085,INDUSTRIAL SUPPLIES (NEC)
CCC_10002287_1,11/05/2023,Human Resources,CHARTERED ASSOCIATION NORTHAMPTON,240.00,Employee Subscriptions,8220," UNIVERSITIES, COLLEGES, SR COLLEGES OR PROFESSIONAL SCHOOLS "
CCC_10002411_28,11/05/2023,South Essex Parking Partnership,EBAY O 10-10046-42389 LONDON,2.49,Printing & Stationary,5311,DEPARTMENT STORES
CCC_10002427_11,11/05/2023,Housing Services,TRAVELODG TRAVELODGE G THAME,47.49,General Expense,3615,TRAVELODGE
CCC_10002303_3,11/05/2023,"Museums, Theatres & Cultural Services",AMZNMKTPLACE AMAZON.CO.UK,38.25,General Expense,5999,MISCELLANEOUS & SPECIALTY STORES
CCC_10002374_2,11/05/2023,Leisure & Heritage Services,AMZNMKTPLACE AMAZON.CO AMAZON.CO.UK,10.72,Printing & Stationary,5999,MISCELLANEOUS & SPECIALTY STORES
CCC_10002276_1,11/05/2023,Parks & Green Spaces,CHELMSFORD SAFETY SUPP CHELMSFORD,55.89,General Expense,5047," MEDICAL, DENTAL, OPHTHALMIC AND HOSPITAL EQUIP "
CCC_10002706_2,11/05/2023,"Museums, Theatres & Cultural Services",STRICTLY TABLES AND CH HITCHIN,194.95,New Equipment,5021,COMMERCIAL FURNITURE
CCC_10002250_3,11/05/2023,"Museums, Theatres & Cultural Services",BABIPUR PORTHMADOG,19.54,New Equipment,5331,VARIETY STORES
CCC_10002272_1,11/05/2023,Leisure & Heritage Services,SP BEST GYM EQUIP BATH,85.10,New Equipment,5941,SPORTING GOODS STORES
CCC_10002272_2,11/05/2023,Leisure & Heritage Services,WWW.POWERHOUSEDIRECT.C INTERNET,91.65,New Equipment,5199,NON-DURABLE GOODS (NEC)
CCC_10002322_15,11/05/2023,Parks & Green Spaces,AMZNMKTPLACE AMAZON.CO.UK,14.25,Printing & Stationary,5999,MISCELLANEOUS & SPECIALTY STORES
CCC_10002371_5,12/05/2023,Parks & Green Spaces,ETSY.COM - SMELTMYHEAR LONDON,31.66,General Expense,5399,GENERAL MERCHANDISE OR CONVENIENCE FOOD STORES
CCC_10002299_2,12/05/2023,Parks & Green Spaces,AMZNMKTPLACE AMAZON.CO AMAZON.CO.UK,38.47,General Expense,5999,MISCELLANEOUS & SPECIALTY STORES
CCC_10002296_1,12/05/2023,Leisure & Heritage Services,SP BEST GYM EQUIP BATH,18.78,New Equipment,5941,SPORTING GOODS STORES
CCC_10002294_2,12/05/2023,Legal & Democratic Services,AMZNMKTPLACE AMAZON.CO.UK,24.99,Printing & Stationary,5999,MISCELLANEOUS & SPECIALTY STORES
CCC_10002298_1,12/05/2023,Leisure & Heritage Services,AMZNMKTPLACE AMAZON.CO.UK,67.96,General Expense,5999,MISCELLANEOUS & SPECIALTY STORES
CCC_10002299_3,12/05/2023,Parks & Green Spaces,AMZNMKTPLACE AMAZON.CO AMAZON.CO.UK,13.32,General Expense,5999,MISCELLANEOUS & SPECIALTY STORES
CCC_10002411_26,12/05/2023,South Essex Parking Partnership,TIMPSON LTD CHELMSFORD,10.00,General Expense,5999,MISCELLANEOUS & SPECIALTY STORES
CCC_10002306_2,12/05/2023,"Museums, Theatres & Cultural Services",ETSY.COM - MULTIPLE SH LONDON,31.20,New Equipment,5399,GENERAL MERCHANDISE OR CONVENIENCE FOOD STORES
CCC_10002411_25,12/05/2023,South Essex Parking Partnership,SPORTSDIRECT 297 08443325297,30.83,Clothing & Uniforms,5941,SPORTING GOODS STORES
CCC_10002299_1,12/05/2023,Parks & Green Spaces,WWW.MYPOSTSHOP.COM SHEFFIELD,24.96,Printing & Stationary,5111," STATIONERY, OFFICE SUPPLIES, PRINTING AND WRITING PAPER "
CCC_10002320_15,12/05/2023,"Museums, Theatres & Cultural Services",WWW.FLINTS.CO.UK LONDON  SE8,161.97,New Equipment,5691,MEN'S AND WOMEN'S CLOTHING STORES
CCC_10002356_1,12/05/2023,Leisure & Heritage Services,POST OFFICE COUNTER CHELMSFORD,5.39,New Equipment,9402,POSTAGE STAMPS
CCC_10002465_5,12/05/2023,Digital Services,TRAINLINE.COM LONDON,25.67,Public Transport,4112,PASSENGER RAILWAYS
CCC_10002465_4,12/05/2023,Digital Services,TRAINLINE +443332022222,35.86,Public Transport,4112,PASSENGER RAILWAYS
CCC_10002322_13,12/05/2023,Parks & Green Spaces,AMZNMKTPLACE AMAZON.CO AMAZON.CO.UK,29.16,New Equipment,5999,MISCELLANEOUS & SPECIALTY STORES
CCC_10002708_1,12/05/2023,"Museums, Theatres & Cultural Services",AMZNMKTPLACE AMAZON.CO.UK,44.98,Clothing & Uniforms,5999,MISCELLANEOUS & SPECIALTY STORES
CCC_10002387_6,12/05/2023,"Museums, Theatres & Cultural Services",WWW.SCREWFIX.COM YEOVIL,10.34,General Expense,5211,LUMBER AND BUILDING MATERIALS STORES
CCC_10002303_5,13/05/2023,"Museums, Theatres & Cultural Services",TESCO STORES 5408 CHELMSFORD,5.25,General Expense,5411,GROCERY STORES OR SUPERMARKETS
CCC_10002303_4,13/05/2023,"Museums, Theatres & Cultural Services",TESCO STORES 5408 CHELMSFORD,4.95,General Expense,5411,GROCERY STORES OR SUPERMARKETS
CCC_10002314_3,13/05/2023,Leisure & Heritage Services,AMZNMKTPLACE AMAZON.CO AMAZON.CO.UK,3.65,Printing & Stationary,5999,MISCELLANEOUS & SPECIALTY STORES
CCC_10002314_4,13/05/2023,Leisure & Heritage Services,AMZNMKTPLACE AMAZON.CO AMAZON.CO.UK,3.32,Printing & Stationary,5999,MISCELLANEOUS & SPECIALTY STORES
CCC_10002322_12,13/05/2023,Parks & Green Spaces,AMZNMKTPLACE AMAZON.CO AMAZON.CO.UK,12.49,New Equipment,5999,MISCELLANEOUS & SPECIALTY STORES
CCC_10002568_5,13/05/2023,Marketing & Communications Team,VYOND-GOANIMATEINC. 188-836-0963,536.34,Advertising,5045,COMPUTERS AND COMPUTER PERIPHERAL EQUIPMENT AND SOFTWARE
CCC_10002354_1,13/05/2023,Leisure & Heritage Services,SP CANNONS UK NORTH LOPHAM,29.11,New Equipment,5941,SPORTING GOODS STORES
CCC_10002322_11,13/05/2023,Parks & Green Spaces,AMZNMKTPLACE AMAZON.CO AMAZON.CO.UK,82.48,New Equipment,5999,MISCELLANEOUS & SPECIALTY STORES
CCC_10002316_1,13/05/2023,"Museums, Theatres & Cultural Services",AMZNMKTPLACE AMAZON.CO.UK,46.63,Printing & Stationary,5999,MISCELLANEOUS & SPECIALTY STORES
CCC_10002320_14,14/05/2023,"Museums, Theatres & Cultural Services",AMZNMKTPLACE AMAZON.CO.UK,24.42,New Equipment,5999,MISCELLANEOUS & SPECIALTY STORES
CCC_10002314_2,14/05/2023,Leisure & Heritage Services,AMZNMKTPLACE AMAZON.CO AMAZON.CO.UK,28.34,Printing & Stationary,5999,MISCELLANEOUS & SPECIALTY STORES
CCC_10002320_11,14/05/2023,"Museums, Theatres & Cultural Services",AMZNMKTPLACE AMAZON.CO.UK,6.35,New Equipment,5999,MISCELLANEOUS & SPECIALTY STORES
CCC_10002314_1,14/05/2023,Leisure & Heritage Services,AMZNMKTPLACE AMAZON.CO AMAZON.CO.UK,3.50,New Equipment,5999,MISCELLANEOUS & SPECIALTY STORES
CCC_10002322_10,14/05/2023,Parks & Green Spaces,AMZNMKTPLACE AMAZON.CO.UK,16.65,General Expense,5999,MISCELLANEOUS & SPECIALTY STORES
CCC_10002320_13,14/05/2023,"Museums, Theatres & Cultural Services",AMZNMKTPLACE AMAZON.CO.UK,6.82,New Equipment,5999,MISCELLANEOUS & SPECIALTY STORES
CCC_10002366_1,14/05/2023,"Museums, Theatres & Cultural Services",COSTCO WHOLESALE #129 STEVENAGE,22.47,General Expense,7278,BUYING OR SHOPPING SERVICES CLUBS
CCC_10002320_12,14/05/2023,"Museums, Theatres & Cultural Services",AMZNMKTPLACE AMAZON.CO.UK,5.30,New Equipment,5999,MISCELLANEOUS & SPECIALTY STORES
CCC_10002371_4,14/05/2023,Parks & Green Spaces,MR.FOTHERGILLS SEEDS NEWMARKET,38.43,General Expense,0780,LANDSCAPE AND HORTICULTURAL SERVICES
CCC_10002387_5,14/05/2023,"Museums, Theatres & Cultural Services",AMZNBUSINESS BW4T01Q55 AMAZON.CO.UK,8.28,General Expense,5999,MISCELLANEOUS & SPECIALTY STORES
CCC_10002365_7,15/05/2023,Parks & Green Spaces,AMZNMKTPLACE AMAZON.CO AMAZON.CO.UK,4.98,General Expense,5999,MISCELLANEOUS & SPECIALTY STORES
CCC_10002273_8,15/05/2023,Digital Services,AMZNBUSINESS B51W11RF5 LUXEMBOURG L,20.83,New Equipment,5999,MISCELLANEOUS & SPECIALTY STORES
CCC_10002395_1,15/05/2023,Operational Services,EBAY O 23-10054-55032 LONDON,8.80,General Expense,5311,DEPARTMENT STORES
CCC_10002319_3,15/05/2023,Operational Services,DVLA VEHICLE TAX 0300 1234321,202.50,Vehicle Tax,9311,TAX PAYMENTS
CCC_10002365_5,15/05/2023,Parks & Green Spaces,ASDA SUPERSTORE CHELMSFORD,46.12,General Expense,5411,GROCERY STORES OR SUPERMARKETS
CCC_10002365_4,15/05/2023,Parks & Green Spaces,TESCO-STORES 6724 CHELMSFORD,3.00,General Expense,5411,GROCERY STORES OR SUPERMARKETS
CCC_10002319_5,15/05/2023,Operational Services,DVLA VEHICLE TAX 0300 1234321,202.50,Vehicle Tax,9311,TAX PAYMENTS
CCC_10002320_10,15/05/2023,"Museums, Theatres & Cultural Services",AMZNMKTPLACE AMAZON.CO.UK,3.16,New Equipment,5999,MISCELLANEOUS & SPECIALTY STORES
CCC_10002305_1,15/05/2023,"Museums, Theatres & Cultural Services",IL PALAZZO CHELMSFORD,139.30,General Expense,5812,RESTAURANTS OR EATING PLACES
CCC_10002306_1,15/05/2023,"Museums, Theatres & Cultural Services",WWW.PROP4SHOWS.O.UK 03333440078,44.42,New Equipment,5699,APPAREL AND ACCESSORY SHOPS -- MISCELLANEOUS
CCC_10002293_1,15/05/2023,Public Health & Protection Services,GREATER ANGLIA 4278,30.35,Public Transport,4112,PASSENGER RAILWAYS
CCC_10002327_5,15/05/2023,Human Resources,SPACEHOUSE LTD MACCLESFIELD,900.00,General Expense,7399,BUSINESS SERVICES (NEC)
CCC_10003392_9,15/05/2023,Leisure & Heritage Services,SPOTIFY P2314FE9E3 LONDON,9.99,General Expense,5815," DIGITAL GOODS MEDIA: BOOKS, MOVIES, MUSIC "
CCC_10002633_1,15/05/2023,"Museums, Theatres & Cultural Services",SCREWFIX DIR LTD CHELMFOR1867,11.91,General Expense,5211,LUMBER AND BUILDING MATERIALS STORES
CCC_10002303_7,15/05/2023,"Museums, Theatres & Cultural Services",TESCO STORES 5408 CHELMSFORD,5.80,General Expense,5411,GROCERY STORES OR SUPERMARKETS
CCC_10002365_8,15/05/2023,Parks & Green Spaces,AMZNMKTPLACE AMAZON.CO AMAZON.CO.UK,14.99,General Expense,5999,MISCELLANEOUS & SPECIALTY STORES
CCC_10003503_8,15/05/2023,Parks & Green Spaces,TESCO STORES 2330 CHELMSFORD 2,50.83,Grounds Maintenance Materials,5411,GROCERY STORES OR SUPERMARKETS
CCC_10002365_6,15/05/2023,Parks & Green Spaces,ASDA SUPERSTORE CHELMSFORD,80.12,General Expense,5411,GROCERY STORES OR SUPERMARKETS
CCC_10002411_24,15/05/2023,South Essex Parking Partnership,MARTIN MCCOLL WEST HORNDON,3.00,General Expense,5499,MISC FOOD STORES - SPECIALTY MARKETS & CONVENIENCE
CCC_10002322_9,15/05/2023,Parks & Green Spaces,AMZNBUSINESS MU7AU0QY5 AMAZON.CO.UK,10.41,New Equipment,5999,MISCELLANEOUS & SPECIALTY STORES
CCC_10002363_3,15/05/2023,Leisure & Heritage Services,COMMERCIALWASHROOMSLTD POOLE,250.00,Grounds Maintenance Materials,1799,SPECIAL TRADE CONTRACTORS
CCC_10003494_2,15/05/2023,"Procurement, Risk and Insurance",WWW.CIPFA.ORG.UK LONDON  WC2N,362.00,Training Expenses,8699,MEMBERSHIP ORGANIZATIONS NOT ELSEWHERE CLASSIFIED
CCC_10002297_1,15/05/2023,"Procurement, Risk and Insurance",GREATER ANGLIA TRAINS LONDON,44.50,Public Transport,4112,PASSENGER RAILWAYS
CCC_10002319_2,15/05/2023,Operational Services,DVLA VEHICLE TAX 0300 1234321,202.50,Vehicle Tax,9311,TAX PAYMENTS
CCC_10002319_4,15/05/2023,Operational Services,DVLA VEHICLE TAX 0300 1234321,202.50,Vehicle Tax,9311,TAX PAYMENTS
CCC_10002320_9,15/05/2023,"Museums, Theatres & Cultural Services",ROYAL MAIL GROUP LTD CHESTERFIELD,3.45,General Expense,9402,POSTAGE STAMPS
CCC_10002309_1,15/05/2023,Human Resources,WORKING PLANET PAYMENT EXETER,249.00,General Expense,7311,ADVERTISING SERVICES
CCC_10002318_1,15/05/2023,Parks & Green Spaces,MOTEX CHELMSFORD,69.44,Vehicle Repairs,5533," AUTOMOTIVE PARTS, ACCESSORIES STORES "
CCC_10002303_6,15/05/2023,"Museums, Theatres & Cultural Services",TESCO STORES 5408 CHELMSFORD,4.95,General Expense,5411,GROCERY STORES OR SUPERMARKETS
CCC_10002300_1,15/05/2023,Spatial Planning,GREATERANGLIACOM LONDON,34.50,Public Transport,4112,PASSENGER RAILWAYS
CCC_10002491_2,15/05/2023,"Museums, Theatres & Cultural Services",TESCO STORES 2330 CHELMSFORD 2,1.35,New Equipment,5411,GROCERY STORES OR SUPERMARKETS
CCC_10002322_8,15/05/2023,Parks & Green Spaces,AMZNMKTPLACE AMAZON.CO.UK,12.82,General Expense,5999,MISCELLANEOUS & SPECIALTY STORES
CCC_10002363_4,15/05/2023,Leisure & Heritage Services,WATERSYSTEMS4U BELFAST,74.82,Grounds Maintenance Materials,5722,APPLIANCE STORES (NEC) OR HOUSEHOLD APPLIANCE STORES
CCC_10002301_1,16/05/2023,Marketing & Communications Team,PAYPAL  VENUES4HIRE 35314369001,35.00,Advertising,7375,INFORMATION RETRIEVAL SERVICES
CCC_10002913_1,16/05/2023,Leisure & Heritage Services,AMZNMKTPLACE AMAZON.CO AMAZON.CO.UK,24.15,General Expense,5999,MISCELLANEOUS & SPECIALTY STORES
CCC_10002367_6,16/05/2023,Leisure & Heritage Services,AMZNMKTPLACE AMAZON.CO.UK,31.63,General Expense,5999,MISCELLANEOUS & SPECIALTY STORES
CCC_10002411_23,16/05/2023,South Essex Parking Partnership,AMAZON.CO.UK E29OQ4DA5 AMAZON.CO.UK,7.42,General Expense,5969,DIRECT MARKETERS (NEC)
CCC_10002411_22,16/05/2023,South Essex Parking Partnership,TESCO PAY AT PUMP 3859 PITSEA,25.17,Fuel,5542,AUTOMATED FUEL DISPENSERS
CCC_10002327_4,16/05/2023,Human Resources,GOOGLE ADS2733035999 DUBLIN,200.00,General Expense,7311,ADVERTISING SERVICES
CCC_10002411_21,16/05/2023,South Essex Parking Partnership,AMZNMKTPLACE AMAZON.CO AMAZON.CO.UK,82.90,Clothing & Uniforms,5999,MISCELLANEOUS & SPECIALTY STORES
CCC_10002320_7,16/05/2023,"Museums, Theatres & Cultural Services",THE ASSOCIATION OF BRI LONDON,250.00,General Expense,7299,MISC PERSONAL SERVICES NOT ELSEWHERE CLASSIFIED
CCC_10002315_2,16/05/2023,Operational Services,SAINSBURYS PETROL CHELMSFORD,93.75,General Expense,5541,GAS/SERVICE STATIONS WITH/WITHOUT ANCILLARY SERVICES
CCC_10002320_8,16/05/2023,"Museums, Theatres & Cultural Services",VIKING OFFICE UK LIMIT LEICESTER,30.99,General Expense,5111," STATIONERY, OFFICE SUPPLIES, PRINTING AND WRITING PAPER "
CCC_10002323_6,16/05/2023,Leisure & Heritage Services,AMZNMKTPLACE AMAZON.CO AMAZON.CO.UK,4.95,General Expense,5999,MISCELLANEOUS & SPECIALTY STORES
CCC_10002365_9,16/05/2023,Parks & Green Spaces,CHANDLER MATERIALS CHELMSFORD,34.08,General Expense,5211,LUMBER AND BUILDING MATERIALS STORES
CCC_10002411_20,16/05/2023,South Essex Parking Partnership,BLUE SKY PRINTING CHELMSFORD,63.33,Advertising,2741,MISCELLANEOUS PUBLISHING AND PRINTING
CCC_10003243_7,16/05/2023,"Procurement, Risk and Insurance",GREATER ANGLIA 4278,28.75,Public Transport,4112,PASSENGER RAILWAYS
CCC_10002322_6,16/05/2023,Parks & Green Spaces,AMZNMKTPLACE AMAZON.CO.UK,4.71,General Expense,5999,MISCELLANEOUS & SPECIALTY STORES
CCC_10002322_7,16/05/2023,Parks & Green Spaces,AMZNMKTPLACE AMAZON.CO.UK,35.00,General Expense,5999,MISCELLANEOUS & SPECIALTY STORES
CCC_10002315_1,16/05/2023,Operational Services,SHELL CHELMSFORD CHELMSFORD,489.12,General Expense,5541,GAS/SERVICE STATIONS WITH/WITHOUT ANCILLARY SERVICES
CCC_10002417_4,17/05/2023,Public Health & Protection Services,AMZNMKTPLACE AMAZON.CO.UK,49.79,New Equipment,5999,MISCELLANEOUS & SPECIALTY STORES
CCC_10002307_2,17/05/2023,Spatial Planning,COLCHESTER BC PARKING COLCHESTER,5.42,Car Parking,7523,AUTOMOBILE PARKING OR PARKING LOTS
CCC_10002323_5,17/05/2023,Leisure & Heritage Services,AMZNMKTPLACE AMAZON.CO AMAZON.CO.UK,2.49,General Expense,5999,MISCELLANEOUS & SPECIALTY STORES
CCC_10002302_1,17/05/2023,Marketing & Communications Team,WWW.SOLOPRESS.COM SOUTHEND-ON-S,501.30,Printing & Stationary,2741,MISCELLANEOUS PUBLISHING AND PRINTING
CCC_10002411_19,17/05/2023,South Essex Parking Partnership,ROXWELL RD HAND CAR WA CHELMSFORD,16.67,General Expense,7542,CAR WASHES
CCC_10002434_1,17/05/2023,Leisure & Heritage Services,AMZNMKTPLACE AMAZON.CO.UK,188.61,New Equipment,5999,MISCELLANEOUS & SPECIALTY STORES
CCC_10002427_13,17/05/2023,Housing Services,ESSEX COUNTY COUNCI EC CHELMSFORD,9.17,General Expense,9399,GOVERNMENT SERVICES (NEC) OR FIRE DEPARTMENTS
CCC_10002328_6,17/05/2023,Parks & Green Spaces,AMZNMKTPLACE AMAZON.CO AMAZON.CO.UK,-78.32,Grounds Maintenance Materials,5999,MISCELLANEOUS & SPECIALTY STORES
CCC_10002416_13,17/05/2023,Operational Services,SOCIAL SUPERMARKET TEDDINGTON,100.00,General Expense,5399,GENERAL MERCHANDISE OR CONVENIENCE FOOD STORES
CCC_10002411_17,17/05/2023,South Essex Parking Partnership,SPORTSDIRECT 297 08443325297,39.17,Clothing & Uniforms,5941,SPORTING GOODS STORES
CCC_10002448_3,17/05/2023,Leisure & Heritage Services,TAHDAH VERIFIED LLANDUDNO,98.45,New Equipment,5734,COMPUTER SOFTWARE STORES
CCC_10002307_1,17/05/2023,Spatial Planning,COLCHESTER BC PARKING COLCHESTER,5.42,Car Parking,7523,AUTOMOBILE PARKING OR PARKING LOTS
CCC_10002435_1,17/05/2023,Leisure & Heritage Services,ASDA SUPERSTORE BASILDON,54.34,General Expense,5411,GROCERY STORES OR SUPERMARKETS
CCC_10002411_18,17/05/2023,South Essex Parking Partnership,MATALAN SOUTHEND-ON-S,20.42,Clothing & Uniforms,5691,MEN'S AND WOMEN'S CLOTHING STORES
CCC_10002412_3,17/05/2023,South Essex Parking Partnership,CHELMSFORD DW 03439092725,49.99,Clothing & Uniforms,5941,SPORTING GOODS STORES
CCC_10002371_3,17/05/2023,Parks & Green Spaces,WM MORRISONS STORE CHELMSFORD,5.00,General Expense,5411,GROCERY STORES OR SUPERMARKETS
CCC_10002310_1,17/05/2023,Human Resources,LONDON BOROUGH OF NEWH LONDON,"1,200.00",General Expense,9399,GOVERNMENT SERVICES (NEC) OR FIRE DEPARTMENTS
CCC_10002545_10,17/05/2023,Human Resources,THE LANDSCAPE INSTITUT LONDON,415.00,Employee Subscriptions,0780,LANDSCAPE AND HORTICULTURAL SERVICES
CCC_10002303_8,17/05/2023,"Museums, Theatres & Cultural Services",TESCO STORES 5408 CHELMSFORD,2.50,General Expense,5411,GROCERY STORES OR SUPERMARKETS
CCC_10002427_12,17/05/2023,Housing Services,WWW.SOUTHEND.GOV.UK SOUTHEND-ON-S,9.17,General Expense,5734,COMPUTER SOFTWARE STORES
CCC_10002416_12,17/05/2023,Operational Services,FACEBK HHM4GSPYA2 FB.ME/ADS,43.65,Advertising,7311,ADVERTISING SERVICES
CCC_10002327_3,17/05/2023,Human Resources,CHARTERED INSTITUTE OF LONDON,71.00,Employee Subscriptions,8398,CHARITABLE OR SOCIAL SERVICES ORGANIZATIONS
CCC_10003503_7,17/05/2023,Parks & Green Spaces,TVLICENSING.CO.UK 3007906071,132.50,General Expense,7392," MANAGEMENT, PUBLIC RELATIONS OR CONSULTING SERVICES "
CCC_10002298_2,17/05/2023,Leisure & Heritage Services,MCDONALDS CHELMSFORD,2.69,General Expense,5814,FAST FOOD RESTAURANTS
CCC_10002371_2,17/05/2023,Parks & Green Spaces,TESCO STORES 5408 CHELMSFORD,1.35,General Expense,5411,GROCERY STORES OR SUPERMARKETS
CCC_10002308_1,17/05/2023,Public Health & Protection Services,ESSEX COUNTY COUNCI EC CHELMSFORD,11.00,Printing & Stationary,9399,GOVERNMENT SERVICES (NEC) OR FIRE DEPARTMENTS
CCC_10002411_16,17/05/2023,South Essex Parking Partnership,CHELMSFORD DW 03439092725,40.00,Clothing & Uniforms,5941,SPORTING GOODS STORES
CCC_10002416_14,17/05/2023,Operational Services,ALDI 5 776 CHELMSFORD,10.55,General Expense,5411,GROCERY STORES OR SUPERMARKETS
CCC_10002311_1,18/05/2023,"Museums, Theatres & Cultural Services",ANC ANCESTRY.CO.UK 8004049723,69.99,Employee Subscriptions,5968,CONTINUITY/SUBSCRIPTION MERCHANT
CCC_10002412_2,18/05/2023,South Essex Parking Partnership,SP RONASHOES LONDON,49.99,Clothing & Uniforms,5139,COMMERCIAL FOOTWEAR
CCC_10002319_1,18/05/2023,Operational Services,WWW.SCREWFIX.COM YEOVIL,483.32,Vehicle Repairs,5211,LUMBER AND BUILDING MATERIALS STORES
CCC_10002304_1,18/05/2023,Leisure & Heritage Services,PAYPAL  BHF SHOPS 35314369001,"1,350.00",General Expense,8398,CHARITABLE OR SOCIAL SERVICES ORGANIZATIONS
CCC_10002749_9,18/05/2023,Parks & Green Spaces,MOTEX CHELMSFORD,157.73,Vehicle Repairs,5533," AUTOMOTIVE PARTS, ACCESSORIES STORES "
CCC_10002414_6,18/05/2023,Parks & Green Spaces,WWW.SCREWFIX.COM YEOVIL,85.31,Grounds Maintenance Materials,5211,LUMBER AND BUILDING MATERIALS STORES
CCC_10002371_1,18/05/2023,Parks & Green Spaces,TESCO STORES 2330 CHELMSFORD 2,8.33,General Expense,5411,GROCERY STORES OR SUPERMARKETS
CCC_10003530_1,18/05/2023,Legal & Democratic Services,AMAZON.CO.UK WR21J6D25 AMAZON.CO.UK,14.98,New Equipment,5969,DIRECT MARKETERS (NEC)
CCC_10002273_7,18/05/2023,Digital Services,AMZNMKTPLACE AMAZON.CO AMAZON.CO.UK,84.95,New Equipment,5999,MISCELLANEOUS & SPECIALTY STORES
CCC_10002397_4,18/05/2023,Legal & Democratic Services,NOTONTHEHIGHSTREET.COM RICHMOND,60.93,General Expense,5999,MISCELLANEOUS & SPECIALTY STORES
CCC_10002755_19,18/05/2023,Leisure & Heritage Services,CHELMSFORD OFFICE CHELMSFORD,11.40,General Expense,5813,ALCOHOLIC BEVERAGES DRINKING PLACES - BARS NIGHTCLUBS ETC
CCC_10002295_1,18/05/2023,Leisure & Heritage Services,AMZNMKTPLACE AMAZON.CO.UK,49.14,New Equipment,5999,MISCELLANEOUS & SPECIALTY STORES
CCC_10002320_6,18/05/2023,"Museums, Theatres & Cultural Services",SCREWFIX DIR LTD CHELMFOR1066,71.06,New Equipment,5211,LUMBER AND BUILDING MATERIALS STORES
CCC_10002303_9,18/05/2023,"Museums, Theatres & Cultural Services",AMZNMKTPLACE AMAZON.CO.UK,15.58,General Expense,5999,MISCELLANEOUS & SPECIALTY STORES
CCC_10002375_2,18/05/2023,Marketing & Communications Team,FACEBK  XBQHSMFZ52 FB.ME/ADS,400.00,Advertising,7311,ADVERTISING SERVICES
CCC_10002749_10,18/05/2023,Parks & Green Spaces,SP FLOCON VALVES PIP PONTYPRIDD,344.77,Grounds Maintenance Materials,5074,PLUMBING AND HEATING EQUIPMENT AND SUPPLIES
CCC_10002537_2,18/05/2023,Corporate Property Services,GREATER ANGLIA 4278,24.20,Public Transport,4112,PASSENGER RAILWAYS
CCC_10002303_11,19/05/2023,"Museums, Theatres & Cultural Services",TESCO STORES 5408 CHELMSFORD,7.95,General Expense,5411,GROCERY STORES OR SUPERMARKETS
CCC_10002365_10,19/05/2023,Parks & Green Spaces,SUTTONS B2C ECOMM WWW.SUTTONS.C,8.29,General Expense,5261,GARDEN AND LAWN SUPPLY STORES OR NURSERIES
CCC_10002324_1,19/05/2023,Legal & Democratic Services,LLG ENTERPRISES LTD RUNCORN,156.00,Training Expenses,8249,VOCATIONAL OR TRADE SCHOOLS
CCC_10002318_15,19/05/2023,Parks & Green Spaces,RS COMPONENTS 08457 201201,50.83,New Equipment,5065,ELECTRICAL PARTS AND EQUIPMENT
CCC_10002328_5,19/05/2023,Parks & Green Spaces,MOTEX CHELMSFORD,277.18,Grounds Maintenance Materials,5533," AUTOMOTIVE PARTS, ACCESSORIES STORES "
CCC_10002414_7,19/05/2023,Parks & Green Spaces,PAYPAL  LLOYDS BANK 35314369001,22.98,Grounds Maintenance Materials,7535,AUTOMOTIVE PAINT SHOPS
CCC_10002397_3,19/05/2023,Legal & Democratic Services,MARKS&SPENCER PLC CHELMSFORD,8.00,General Expense,5411,GROCERY STORES OR SUPERMARKETS
CCC_10002386_1,19/05/2023,Leisure & Heritage Services,AMZNMKTPLACE AMAZON.CO.UK,46.57,General Expense,5999,MISCELLANEOUS & SPECIALTY STORES
CCC_10002323_4,19/05/2023,Leisure & Heritage Services,SIMONJERSEY 35314369001,144.17,Clothing & Uniforms,5621,WOMEN'S READY-TO-WEAR STORES
CCC_10002327_2,19/05/2023,Human Resources,CIAT LONDON EC1V,315.00,Employee Subscriptions,8999,PROFESSIONAL SERVICES (NEC)
CCC_10002705_3,19/05/2023,"Museums, Theatres & Cultural Services",TESCO STORES 2330 CHELMSFORD 2,9.79,General Expense,5411,GROCERY STORES OR SUPERMARKETS
CCC_10002568_4,19/05/2023,Marketing & Communications Team,WORDPRESS 3H4XK3ZVXY DUBLIN,10.00,Advertising,5734,COMPUTER SOFTWARE STORES
CCC_10002303_13,19/05/2023,"Museums, Theatres & Cultural Services",AMZNMKTPLACE AMAZON.CO.UK,13.32,General Expense,5999,MISCELLANEOUS & SPECIALTY STORES
CCC_10002328_4,19/05/2023,Parks & Green Spaces,D. BYFORD & SONS COLCHESTER CO,38.75,Grounds Maintenance Materials,5193," FLORIST SUPPLIES, NURSERY STOCK AND FLOWERS "
CCC_10002303_10,19/05/2023,"Museums, Theatres & Cultural Services",TESCO STORES 5408 CHELMSFORD,4.95,General Expense,5411,GROCERY STORES OR SUPERMARKETS
CCC_10002416_11,19/05/2023,Operational Services,SQ  MONARCH DRY CLEANI SPRINGFIELD,51.00,Clothing & Uniforms,2842," SPECIALTY CLEANING, POLISHING AND SANITATION PREPS "
CCC_10002332_2,20/05/2023,Parking & Highways Operations,WICKES BUILDING WATFORD,17.32,General Expense,5211,LUMBER AND BUILDING MATERIALS STORES
CCC_10002373_1,20/05/2023,"Museums, Theatres & Cultural Services",AMZNBUSINESS OT4DK1SN5 AMAZON.CO.UK,17.48,New Equipment,5999,MISCELLANEOUS & SPECIALTY STORES
CCC_10002375_1,20/05/2023,Marketing & Communications Team,GOOGLE ADS9290904130 DUBLIN,500.00,Advertising,7311,ADVERTISING SERVICES
CCC_10002414_8,20/05/2023,Parks & Green Spaces,AMZNMKTPLACE AMAZON.CO.UK,14.58,Grounds Maintenance Materials,5999,MISCELLANEOUS & SPECIALTY STORES
CCC_10002474_8,21/05/2023,"Museums, Theatres & Cultural Services",AMZNMKTPLACE AMAZON.CO.UK,19.70,New Equipment,5999,MISCELLANEOUS & SPECIALTY STORES
CCC_10002414_9,21/05/2023,Parks & Green Spaces,AMZNMKTPLACE AMAZON.CO.UK,45.67,Grounds Maintenance Materials,5999,MISCELLANEOUS & SPECIALTY STORES
CCC_10002332_1,21/05/2023,Parking & Highways Operations,WICKES BRAINTREE BRAINTREE,5.47,General Expense,5211,LUMBER AND BUILDING MATERIALS STORES
CCC_10002320_5,21/05/2023,"Museums, Theatres & Cultural Services",AMZNMKTPLACE AMAZON.CO.UK,7.48,New Equipment,5999,MISCELLANEOUS & SPECIALTY STORES
CCC_10002320_3,21/05/2023,"Museums, Theatres & Cultural Services",AMZNMKTPLACE AMAZON.CO.UK,9.81,New Equipment,5999,MISCELLANEOUS & SPECIALTY STORES
CCC_10002387_4,21/05/2023,"Museums, Theatres & Cultural Services",TOOLSTATION UK NORTHAMPTON,7.93,General Expense,5251,HARDWARE STORES
CCC_10002363_2,21/05/2023,Leisure & Heritage Services,TRADESPARKY LTD STONE MANCHESTER,108.00,Grounds Maintenance Materials,5065,ELECTRICAL PARTS AND EQUIPMENT
CCC_10002320_2,21/05/2023,"Museums, Theatres & Cultural Services",AMZNMKTPLACE AMAZON.CO.UK,2.27,New Equipment,5999,MISCELLANEOUS & SPECIALTY STORES
CCC_10002382_2,21/05/2023,Marketing & Communications Team,GOOGLE ADS8874237245 DUBLIN,10.00,Advertising,7311,ADVERTISING SERVICES
CCC_10002320_4,21/05/2023,"Museums, Theatres & Cultural Services",AMZNMKTPLACE AMAZON.CO.UK,4.99,New Equipment,5999,MISCELLANEOUS & SPECIALTY STORES
CCC_10002427_14,22/05/2023,Housing Services,TRAVELODG TRAVELODGE G THAME,87.49,General Expense,3615,TRAVELODGE
CCC_10002365_11,22/05/2023,Parks & Green Spaces,TESCO-STORES 6724 CHELMSFORD,2.25,General Expense,5411,GROCERY STORES OR SUPERMARKETS
CCC_10003806_13,22/05/2023,Building Services,AMZNMKTPLACE AMAZON.CO.UK,22.63,General Expense,5999,MISCELLANEOUS & SPECIALTY STORES
CCC_10002397_2,22/05/2023,Legal & Democratic Services,TIMPSON LTD CHELMSFORD,79.75,General Expense,5999,MISCELLANEOUS & SPECIALTY STORES
CCC_10002419_4,22/05/2023,"Museums, Theatres & Cultural Services",SCREWFIX DIR LTD CHELMFOR1867,4.69,Grounds Maintenance Materials,5211,LUMBER AND BUILDING MATERIALS STORES
CCC_10002303_14,22/05/2023,"Museums, Theatres & Cultural Services",TESCO STORES 5408 CHELMSFORD,22.29,General Expense,5411,GROCERY STORES OR SUPERMARKETS
CCC_10002396_2,22/05/2023,Development Management,FIRST INTUITION CHELMSFORD,-63.00,Training Expenses,8299,SCHOOLS AND EDUCATIONAL SERVICES (NEC)
CCC_10002474_7,22/05/2023,"Museums, Theatres & Cultural Services",AMZNMKTPLACE AMAZON.CO.UK,21.58,New Equipment,5999,MISCELLANEOUS & SPECIALTY STORES
CCC_10002396_1,22/05/2023,Development Management,FIRST INTUITION CHELMSFORD,-63.00,Training Expenses,8299,SCHOOLS AND EDUCATIONAL SERVICES (NEC)
CCC_10002372_1,22/05/2023,Leisure & Heritage Services,HETRA MEDIA LTD CHELMSFORD,249.00,General Expense,1731,ELECTRICAL CONTRACTORS
CCC_10002326_1,22/05/2023,Human Resources,WP-COUNTRYSIDE JOB WHITBY,150.00,General Expense,7399,BUSINESS SERVICES (NEC)
CCC_10002411_15,22/05/2023,South Essex Parking Partnership,SUMUP   BRITISH LEGEND SOUTHEND,42.00,Vehicle Repairs,8999,PROFESSIONAL SERVICES (NEC)
CCC_10002303_12,22/05/2023,"Museums, Theatres & Cultural Services",TESCO STORES 5408 CHELMSFORD,3.65,General Expense,5411,GROCERY STORES OR SUPERMARKETS
CCC_10002367_5,22/05/2023,Leisure & Heritage Services,AMZNMKTPLACE AMAZON.CO.UK,41.13,General Expense,5999,MISCELLANEOUS & SPECIALTY STORES
CCC_10002416_10,22/05/2023,Operational Services,SAINSBURY'S S/MKT SPRINGFIELD,8.00,General Expense,5411,GROCERY STORES OR SUPERMARKETS
CCC_10002293_2,22/05/2023,Public Health & Protection Services,GREATER ANGLIA 4278,30.35,Public Transport,4112,PASSENGER RAILWAYS
CCC_10002386_2,22/05/2023,Leisure & Heritage Services,AMZNMKTPLACE AMAZON.CO.UK,25.00,General Expense,5999,MISCELLANEOUS & SPECIALTY STORES
CCC_10002420_6,22/05/2023,Leisure & Heritage Services,AMZNMKTPLACE AMAZON.CO.UK,20.65,Printing & Stationary,5999,MISCELLANEOUS & SPECIALTY STORES
CCC_10002369_1,22/05/2023,Digital Services,AMZNMKTPLACE AMAZON.CO.UK,11.38,Printing & Stationary,5999,MISCELLANEOUS & SPECIALTY STORES
CCC_10002448_2,22/05/2023,Leisure & Heritage Services,J P LENNARD LTD RUGBY,221.35,New Equipment,5941,SPORTING GOODS STORES
CCC_10003503_6,22/05/2023,Parks & Green Spaces,TESCO STORES 2330 CHELMSFORD 2,45.42,General Expense,5411,GROCERY STORES OR SUPERMARKETS
CCC_10002427_15,22/05/2023,Housing Services,TRAVELODG TRAVELODGE G THAME,129.15,General Expense,3615,TRAVELODGE
CCC_10002543_1,22/05/2023,"Museums, Theatres & Cultural Services",DAUPHIN ACRYLIC DE OXFORDSHIRE,195.00,Museum Exhibits,5950,GLASSWARE/CRYSTAL STORES
CCC_10002363_1,23/05/2023,Leisure & Heritage Services,WWW.SCREWFIX.COM YEOVIL,148.21,Grounds Maintenance Materials,5211,LUMBER AND BUILDING MATERIALS STORES
CCC_10002303_15,23/05/2023,"Museums, Theatres & Cultural Services",TESCO STORES 5408 CHELMSFORD,4.05,General Expense,5411,GROCERY STORES OR SUPERMARKETS
CCC_10002417_1,23/05/2023,Public Health & Protection Services,AMAZON.CO.UK GV1KD8AU5 AMAZON.CO.UK,5.00,New Equipment,5969,DIRECT MARKETERS (NEC)
CCC_10002323_3,23/05/2023,Leisure & Heritage Services,AMZNMKTPLACE AMAZON.CO.UK,23.31,General Expense,5999,MISCELLANEOUS & SPECIALTY STORES
CCC_10002298_3,23/05/2023,Leisure & Heritage Services,GREENWOODS HOTEL INGATESTONE,5.00,General Expense,7011," LODGING,HOTELS,MOTELS,RESORTS "
CCC_10003806_14,23/05/2023,Building Services,AMZNMKTPLACE AMAZON.CO.UK,31.64,General Expense,5999,MISCELLANEOUS & SPECIALTY STORES
CCC_10002417_2,23/05/2023,Public Health & Protection Services,SP REMOVE PESTS NEWTON ABBOT,74.99,New Equipment,7342,DISINFECTING OR EXTERMINATING SERVICES
CCC_10002374_1,23/05/2023,Leisure & Heritage Services,WILKO RETAIL LIMITED CHELMSFORD,54.17,Grounds Maintenance Materials,5399,GENERAL MERCHANDISE OR CONVENIENCE FOOD STORES
CCC_10002749_7,23/05/2023,Parks & Green Spaces,CHANDLER MATERIALS CHELMSFORD,123.50,Grounds Maintenance Materials,5211,LUMBER AND BUILDING MATERIALS STORES
CCC_10002325_1,23/05/2023,Marketing & Communications Team,CHARTERED INSTITUTE OF LONDON,649.00,Training Expenses,8398,CHARITABLE OR SOCIAL SERVICES ORGANIZATIONS
CCC_10002322_5,23/05/2023,Parks & Green Spaces,WWW.HALL-FAST.COM INTERNET,-48.24,Clothing & Uniforms,5085,INDUSTRIAL SUPPLIES (NEC)
CCC_10002414_10,23/05/2023,Parks & Green Spaces,AMZNMKTPLACE AMAZON.CO AMAZON.CO.UK,18.31,Grounds Maintenance Materials,5999,MISCELLANEOUS & SPECIALTY STORES
CCC_10002320_1,23/05/2023,"Museums, Theatres & Cultural Services",PENN ELCOM-GBP LONDON,88.96,New Equipment,5399,GENERAL MERCHANDISE OR CONVENIENCE FOOD STORES
CCC_10002338_1,23/05/2023,Leisure & Heritage Services,TESCO STORES 2134 BRAINTREE,15.00,Printing & Stationary,5411,GROCERY STORES OR SUPERMARKETS
CCC_10002417_3,23/05/2023,Public Health & Protection Services,TESCO STORES 2327 CHELMSFORD 1,10.50,New Equipment,5411,GROCERY STORES OR SUPERMARKETS
CCC_10002368_1,23/05/2023,Public Health & Protection Services,ESSEX COUNTY COUNCI EC CHELMSFORD,11.00,Printing & Stationary,9399,GOVERNMENT SERVICES (NEC) OR FIRE DEPARTMENTS
CCC_10003710_10,23/05/2023,Operational Services,ARGOS SPRINGFIELD CHELMSFORD CM,67.82,Vehicle Repairs,5310,DISCOUNT STORES
CCC_10002367_4,24/05/2023,Leisure & Heritage Services,PRINT MARKETPLACE 40 2802345,37.94,Printing & Stationary,7338," PRINT SHOPS, QUICK COPY SERVICES OR REPRODUCTION SERVICES "
CCC_10002397_1,24/05/2023,Legal & Democratic Services,SAINSBURY'S S/MKT SPRINGFIELD,98.45,General Expense,5411,GROCERY STORES OR SUPERMARKETS
CCC_10002448_1,24/05/2023,Leisure & Heritage Services,J P LENNARD LTD RUGBY,394.20,New Equipment,5941,SPORTING GOODS STORES
CCC_10002333_1,24/05/2023,Parking & Highways Operations,BREWERS CHELMSFORD CHELMSFORD,189.85,General Expense,5251,HARDWARE STORES
CCC_10002419_3,24/05/2023,"Museums, Theatres & Cultural Services",B & Q 1188 CHELMSFORD,19.80,Grounds Maintenance Materials,5200,HOME SUPPLY WAREHOUSE STORES
CCC_10002336_1,24/05/2023,Parking & Highways Operations,BREWERS CHELMSFORD CHELMSFORD,4.99,General Expense,5251,HARDWARE STORES
CCC_10002362_3,24/05/2023,Corporate Property Services,AMZNMKTPLACE AMAZON.CO.UK,10.19,New Equipment,5999,MISCELLANEOUS & SPECIALTY STORES
CCC_10002362_2,24/05/2023,Corporate Property Services,AMZNMKTPLACE AMAZON.CO.UK,9.87,New Equipment,5999,MISCELLANEOUS & SPECIALTY STORES
CCC_10002322_4,24/05/2023,Parks & Green Spaces,AMZNMKTPLACE AMAZON.CO.UK,12.45,Printing & Stationary,5999,MISCELLANEOUS & SPECIALTY STORES
CCC_10002411_14,24/05/2023,South Essex Parking Partnership,SHELL ARTERIAL ROAD WICKFORD,12.98,Vehicle Repairs,5541,GAS/SERVICE STATIONS WITH/WITHOUT ANCILLARY SERVICES
CCC_10002337_1,24/05/2023,Public Health & Protection Services,AMZNMKTPLACE AMAZON.CO.UK,28.32,Printing & Stationary,5999,MISCELLANEOUS & SPECIALTY STORES
CCC_10002303_16,24/05/2023,"Museums, Theatres & Cultural Services",TESCO STORES 5408 CHELMSFORD,3.60,General Expense,5411,GROCERY STORES OR SUPERMARKETS
CCC_10002322_3,24/05/2023,Parks & Green Spaces,WWW.HALL-FAST.COM INTERNET,16.74,Clothing & Uniforms,5085,INDUSTRIAL SUPPLIES (NEC)
CCC_10002401_1,24/05/2023,Leisure & Heritage Services,ERNEST DOE / SONS FYFIELD,51.00,New Equipment,5599,AUTOMOTIVE DEALERS
CCC_10002637_11,24/05/2023,Housing Services,WWW.BRITISHGAS.CO. BRITISHGAS.CO,584.56,General Expense,4900," ELECTRIC, GAS, SANITARY, TELEPHONE OR WATER UTILITIES "
CCC_10002345_1,24/05/2023,Leisure & Heritage Services,AMZNMKTPLACE AMAZON.CO.UK,10.58,New Equipment,5999,MISCELLANEOUS & SPECIALTY STORES
CCC_10002367_3,24/05/2023,Leisure & Heritage Services,PRINT MARKETPLACE 40 2802345,174.71,Printing & Stationary,7338," PRINT SHOPS, QUICK COPY SERVICES OR REPRODUCTION SERVICES "
CCC_10002330_1,24/05/2023,Leisure & Heritage Services,AMZNBUSINESS U369I3LQ5 LUXEMBOURG L,15.12,New Equipment,5999,MISCELLANEOUS & SPECIALTY STORES
CCC_10002427_16,24/05/2023,Housing Services,TRAVELODG TRAVELODGE G THAME,122.48,General Expense,3615,TRAVELODGE
CCC_10002420_5,24/05/2023,Leisure & Heritage Services,BAKER ROSS HARLOW,26.80,General Expense,5970,CRAFT OR ARTIST'S SUPPLY SHOPS
CCC_10002323_2,25/05/2023,Leisure & Heritage Services,NEWITTS.COM YORK,114.04,General Expense,5941,SPORTING GOODS STORES
CCC_10003503_5,25/05/2023,Parks & Green Spaces,HOME BARGAINS CHELMSFORD,37.57,General Expense,5251,HARDWARE STORES
CCC_10002427_17,25/05/2023,Housing Services,TRAVELODG TRAVELODGE G THAME,444.12,General Expense,3615,TRAVELODGE
CCC_10002318_13,25/05/2023,Parks & Green Spaces,MARKS&SPENCER PLC SF CHLEMSFORD SF,91.37,General Expense,5411,GROCERY STORES OR SUPERMARKETS
CCC_10002318_14,25/05/2023,Parks & Green Spaces,TESCO STORES 2330 CHELMSFORD 2,48.83,General Expense,5411,GROCERY STORES OR SUPERMARKETS
CCC_10002362_1,25/05/2023,Corporate Property Services,PROCONFERENCES.COM 01932 752685,109.00,Conference Expenses,8220," UNIVERSITIES, COLLEGES, SR COLLEGES OR PROFESSIONAL SCHOOLS "
CCC_10002367_2,25/05/2023,Leisure & Heritage Services,AMZNMKTPLACE AMAZON.CO AMAZON.CO.UK,44.95,General Expense,5999,MISCELLANEOUS & SPECIALTY STORES
CCC_10002323_1,25/05/2023,Leisure & Heritage Services,SPORTS WAREHOUSE LOANHEAD,53.97,General Expense,5399,GENERAL MERCHANDISE OR CONVENIENCE FOOD STORES
CCC_10002322_1,25/05/2023,Parks & Green Spaces,AMZNMKTPLACE AMAZON.CO.UK,30.79,General Expense,5999,MISCELLANEOUS & SPECIALTY STORES
CCC_10002367_1,25/05/2023,Leisure & Heritage Services,TESCO STORES 2330 CHELMSFORD 2,93.36,General Expense,5411,GROCERY STORES OR SUPERMARKETS
CCC_10002411_13,25/05/2023,South Essex Parking Partnership,BP ONGAR WAY CONNECT BRENTWOOD ESS,2.50,General Expense,5541,GAS/SERVICE STATIONS WITH/WITHOUT ANCILLARY SERVICES
CCC_10002328_2,25/05/2023,Parks & Green Spaces,AMZNMKTPLACE AMAZON.CO.UK,8.17,Grounds Maintenance Materials,5999,MISCELLANEOUS & SPECIALTY STORES
CCC_10002755_18,25/05/2023,Leisure & Heritage Services,AMAZON PRIME GS8QP2OP5 AMZN.CO.UK/PM,8.99,Employee Subscriptions,5968,CONTINUITY/SUBSCRIPTION MERCHANT
CCC_10002369_2,25/05/2023,Digital Services,TESCO STORES 5408 CHELMSFORD,6.30,Printing & Stationary,5411,GROCERY STORES OR SUPERMARKETS
CCC_10002411_12,25/05/2023,South Essex Parking Partnership,AMZNMKTPLACE AMAZON.CO.UK,5.82,Clothing & Uniforms,5999,MISCELLANEOUS & SPECIALTY STORES
CCC_10002322_2,25/05/2023,Parks & Green Spaces,AMZNMKTPLACE AMAZON.CO.UK,2.87,Printing & Stationary,5999,MISCELLANEOUS & SPECIALTY STORES
CCC_10003503_4,25/05/2023,Parks & Green Spaces,ICELAND ESSEX,59.71,General Expense,5411,GROCERY STORES OR SUPERMARKETS
CCC_10002328_3,25/05/2023,Parks & Green Spaces,AMZNMKTPLACE AMAZON.CO.UK,83.25,Grounds Maintenance Materials,5999,MISCELLANEOUS & SPECIALTY STORES
CCC_10002339_1,25/05/2023,Leisure & Heritage Services,AMZNMKTPLACE AMAZON.CO.UK,12.87,Printing & Stationary,5999,MISCELLANEOUS & SPECIALTY STORES
CCC_10002387_3,25/05/2023,"Museums, Theatres & Cultural Services",WOLSELEY UK CHELMSFORD,24.79,General Expense,1711," A/C, HEATING OR PLUMBING CONTRACTORS - SALES & INSTALLATION "
CCC_10002353_1,25/05/2023,Development Management,AMZNMKTPLACE AMAZON.CO.UK,13.25,Printing & Stationary,5999,MISCELLANEOUS & SPECIALTY STORES
CCC_10002328_1,26/05/2023,Parks & Green Spaces,AMZNMKTPLACE AMAZON.CO.UK,74.24,Grounds Maintenance Materials,5999,MISCELLANEOUS & SPECIALTY STORES
CCC_10002376_2,26/05/2023,Leisure & Heritage Services,TESCO STORES 2327 CHELMSFORD 1,21.33,General Expense,5411,GROCERY STORES OR SUPERMARKETS
CCC_10002420_4,26/05/2023,Leisure & Heritage Services,AMZNMKTPLACE AMAZON.CO.UK,17.04,Printing & Stationary,5999,MISCELLANEOUS & SPECIALTY STORES
CCC_10002420_3,26/05/2023,Leisure & Heritage Services,AMZNMKTPLACE AMAZON.CO.UK,21.66,Printing & Stationary,5999,MISCELLANEOUS & SPECIALTY STORES
CCC_10002403_1,26/05/2023,Development Management,AMZNMKTPLACE AMAZON.CO.UK,13.92,Printing & Stationary,5999,MISCELLANEOUS & SPECIALTY STORES
CCC_10002394_2,26/05/2023,Leisure & Heritage Services,AMZNMKTPLACE AMAZON.CO.UK,69.01,General Expense,5999,MISCELLANEOUS & SPECIALTY STORES
CCC_10002413_9,26/05/2023,Parks & Green Spaces,AMZNMKTPLACE AMAZON.CO.UK,19.16,General Expense,5999,MISCELLANEOUS & SPECIALTY STORES
CCC_10002379_2,26/05/2023,Leisure & Heritage Services,WM MORRISONS STORE 03456116111,7.17,Grounds Maintenance Materials,5411,GROCERY STORES OR SUPERMARKETS
CCC_10002394_4,26/05/2023,Leisure & Heritage Services,TVLICENSING.CO.UK 3007906071,159.00,General Expense,7392," MANAGEMENT, PUBLIC RELATIONS OR CONSULTING SERVICES "
CCC_10002470_3,26/05/2023,Public Health & Protection Services,AMZNMKTPLACE AMAZON.CO AMAZON.CO.UK,8.57,Printing & Stationary,5999,MISCELLANEOUS & SPECIALTY STORES
CCC_10002327_1,26/05/2023,Human Resources,FACEBK W59NXMXC82 FB.ME/ADS,111.85,General Expense,7311,ADVERTISING SERVICES
CCC_10002425_15,26/05/2023,Parks & Green Spaces,D. BYFORD & SONS COLCHESTER CO,40.20,Grounds Maintenance Materials,5193," FLORIST SUPPLIES, NURSERY STOCK AND FLOWERS "
CCC_10002537_1,26/05/2023,Corporate Property Services,WWW.PLANNING.CO BRISTOL,180.00,General Expense,7399,BUSINESS SERVICES (NEC)
CCC_10002470_4,26/05/2023,Public Health & Protection Services,AMZNMKTPLACE AMAZON.CO AMAZON.CO.UK,3.32,Printing & Stationary,5999,MISCELLANEOUS & SPECIALTY STORES
CCC_10002379_1,26/05/2023,Leisure & Heritage Services,B & Q 1188 CHELMSFORD,27.58,Grounds Maintenance Materials,5200,HOME SUPPLY WAREHOUSE STORES
CCC_10002420_2,26/05/2023,Leisure & Heritage Services,AMZNMKTPLACE AMAZON.CO.UK,8.32,New Equipment,5999,MISCELLANEOUS & SPECIALTY STORES
CCC_10002425_13,26/05/2023,Parks & Green Spaces,AMZNMKTPLACE AMAZON.CO AMAZON.CO.UK,24.95,Grounds Maintenance Materials,5999,MISCELLANEOUS & SPECIALTY STORES
CCC_10003169_18,26/05/2023,Leisure & Heritage Services,ROTACLOUD YORK,49.00,General Expense,5734,COMPUTER SOFTWARE STORES
CCC_10002808_1,26/05/2023,Leisure & Heritage Services,AUTO FIX CHELMSFORD 01245265254,70.82,General Expense,7512,CAR RENTAL AGENCIES -- NOT LISTED BELOW
CCC_10002425_14,26/05/2023,Parks & Green Spaces,AMZNMKTPLACE AMAZON.CO.UK,107.92,Grounds Maintenance Materials,5999,MISCELLANEOUS & SPECIALTY STORES
CCC_10003503_3,26/05/2023,Parks & Green Spaces,HOME BARGAINS CHELMSFORD,3.22,General Expense,5251,HARDWARE STORES
CCC_10003503_2,26/05/2023,Parks & Green Spaces,BOOKER LTD - 38548144 WELLINGBOROUG,37.62,General Expense,5411,GROCERY STORES OR SUPERMARKETS
CCC_10002393_1,26/05/2023,Chief Executive's Office,AMZNMKTPLACE AMAZON.CO.UK,29.12,Printing & Stationary,5999,MISCELLANEOUS & SPECIALTY STORES
CCC_10002394_3,26/05/2023,Leisure & Heritage Services,AMZNMKTPLACE AMAZON.CO.UK,3.29,General Expense,5999,MISCELLANEOUS & SPECIALTY STORES
CCC_10002413_10,26/05/2023,Parks & Green Spaces,AMZNMKTPLACE AMAZON.CO.UK,11.80,Printing & Stationary,5999,MISCELLANEOUS & SPECIALTY STORES
CCC_10002303_18,27/05/2023,"Museums, Theatres & Cultural Services",TESCO STORES 5408 CHELMSFORD,6.60,General Expense,5411,GROCERY STORES OR SUPERMARKETS
CCC_10002387_2,27/05/2023,"Museums, Theatres & Cultural Services",WWW.SCREWFIX.COM YEOVIL,10.65,General Expense,5211,LUMBER AND BUILDING MATERIALS STORES
CCC_10002411_11,27/05/2023,South Essex Parking Partnership,HALFORDS 0566 CHELMSFORD,6.07,Vehicle Repairs,5940,BICYCLE SHOPS -- SALES AND SERVICE
CCC_10002303_17,27/05/2023,"Museums, Theatres & Cultural Services",TESCO STORES 5408 CHELMSFORD,6.60,General Expense,5411,GROCERY STORES OR SUPERMARKETS
CCC_10002390_1,27/05/2023,Leisure & Heritage Services,ASDA SUPERSTORE CHELMSFORD,54.92,General Expense,5411,GROCERY STORES OR SUPERMARKETS
CCC_10002414_11,27/05/2023,Parks & Green Spaces,TESCO-STORES 6724 CHELMSFORD,10.17,Grounds Maintenance Materials,5411,GROCERY STORES OR SUPERMARKETS
CCC_10002387_1,28/05/2023,"Museums, Theatres & Cultural Services",TOOLSTATION UK NORTHAMPTON,7.92,General Expense,5251,HARDWARE STORES
CCC_10002318_12,28/05/2023,Parks & Green Spaces,TESCO-STORES 6724 CHELMSFORD,15.81,General Expense,5411,GROCERY STORES OR SUPERMARKETS
CCC_10002416_9,28/05/2023,Operational Services,MAGZTER INC. NEW YORK,9.99,Publications,5815," DIGITAL GOODS MEDIA: BOOKS, MOVIES, MUSIC "
CCC_10002416_8,28/05/2023,Operational Services,FACEBK H7JKSQBRM2 FB.ME/ADS,62.59,Advertising,7311,ADVERTISING SERVICES
CCC_10002377_1,28/05/2023,Operational Services,10TO8.COM CAMBRIDGE,70.80,General Expense,5817,DIGITAL GOODS: APPLICATIONS (EXCLUDES GAMES)
CCC_10002413_6,29/05/2023,Parks & Green Spaces,AMZNMKTPLACE AMAZON.CO.UK,11.13,General Expense,5999,MISCELLANEOUS & SPECIALTY STORES
CCC_10002568_3,29/05/2023,Marketing & Communications Team,FACEBK SP3BHQ7NP2 FB.ME/ADS,40.00,Advertising,7311,ADVERTISING SERVICES
CCC_10002470_2,29/05/2023,Public Health & Protection Services,AMZNMKTPLACE AMAZON.CO AMAZON.CO.UK,14.83,Printing & Stationary,5999,MISCELLANEOUS & SPECIALTY STORES
CCC_10002413_8,29/05/2023,Parks & Green Spaces,AMZNMKTPLACE AMAZON.CO.UK,9.96,Printing & Stationary,5999,MISCELLANEOUS & SPECIALTY STORES
CCC_10002413_7,29/05/2023,Parks & Green Spaces,AMZNMKTPLACE AMAZON.CO.UK,10.12,Printing & Stationary,5999,MISCELLANEOUS & SPECIALTY STORES
CCC_10002425_11,30/05/2023,Parks & Green Spaces,AMZNMKTPLACE AMAZON.CO.UK,64.55,Grounds Maintenance Materials,5999,MISCELLANEOUS & SPECIALTY STORES
CCC_10002389_4,30/05/2023,Parks & Green Spaces,DVLA VEHICLE TAX 0300 1234321,322.50,Vehicle Tax,9311,TAX PAYMENTS
CCC_10002425_10,30/05/2023,Parks & Green Spaces,AMZNMKTPLACE AMAZON.CO.UK,37.46,Grounds Maintenance Materials,5999,MISCELLANEOUS & SPECIALTY STORES
CCC_10002411_8,30/05/2023,South Essex Parking Partnership,ARCO LTD BASILDON,75.60,Clothing & Uniforms,5085,INDUSTRIAL SUPPLIES (NEC)
CCC_10002445_3,30/05/2023,Leisure & Heritage Services,WM MORRISONS STORE CHELMSFORD,58.90,New Equipment,5411,GROCERY STORES OR SUPERMARKETS
CCC_10002422_6,30/05/2023,Parks & Green Spaces,SCREWFIX DIR LTD CHELMFOR1867,11.65,General Expense,5211,LUMBER AND BUILDING MATERIALS STORES
CCC_10002422_7,30/05/2023,Parks & Green Spaces,CHANDLER MATERIALS CHELMSFORD,106.30,General Expense,5211,LUMBER AND BUILDING MATERIALS STORES
CCC_10002425_12,30/05/2023,Parks & Green Spaces,AMZNMKTPLACE AMAZON.CO.UK,40.75,Grounds Maintenance Materials,5999,MISCELLANEOUS & SPECIALTY STORES
CCC_10002394_1,30/05/2023,Leisure & Heritage Services,DANBURY COOP 01245 227733,7.40,General Expense,5311,DEPARTMENT STORES
CCC_10002427_18,30/05/2023,Housing Services,TRAVELODG TRAVELODGE G THAME,101.65,General Expense,3615,TRAVELODGE
CCC_10002411_9,30/05/2023,South Essex Parking Partnership,BEST BUY DEAL LONDON,4.17,General Expense,4814,TELECOMMUNCATIONS SERV INCL LOCA/LONG DIST CREDIT & FAX
CCC_10002425_8,30/05/2023,Parks & Green Spaces,AMZNMKTPLACE AMAZON.CO AMAZON.CO.UK,35.79,Grounds Maintenance Materials,5999,MISCELLANEOUS & SPECIALTY STORES
CCC_10002462_2,30/05/2023,Marketing & Communications Team,ESSEXBANNERS.COM HORNCHURCH,140.00,Advertising,2741,MISCELLANEOUS PUBLISHING AND PRINTING
CCC_10002425_9,30/05/2023,Parks & Green Spaces,AMZNMKTPLACE AMAZON.CO.UK,35.01,Grounds Maintenance Materials,5999,MISCELLANEOUS & SPECIALTY STORES
CCC_10002384_1,30/05/2023,"Museums, Theatres & Cultural Services",CLUMSY GOAT ROCHDALE,161.78,General Expense,5499,MISC FOOD STORES - SPECIALTY MARKETS & CONVENIENCE
CCC_10002398_1,30/05/2023,Leisure & Heritage Services,SHELL CHIGWELL 535 CHIGWELL,16.67,New Equipment,5541,GAS/SERVICE STATIONS WITH/WITHOUT ANCILLARY SERVICES
CCC_10002470_1,30/05/2023,Public Health & Protection Services,NORTHUMBRIAN WATER LTD DURHAM,"1,324.11",General Expense,4900," ELECTRIC, GAS, SANITARY, TELEPHONE OR WATER UTILITIES "
CCC_10002422_5,30/05/2023,Parks & Green Spaces,TESCO-STORES 6724 CHELMSFORD,3.60,General Expense,5411,GROCERY STORES OR SUPERMARKETS
CCC_10003503_1,30/05/2023,Parks & Green Spaces,TESCO STORES 2330 CHELMSFORD 2,24.17,Grounds Maintenance Materials,5411,GROCERY STORES OR SUPERMARKETS
CCC_10002412_1,30/05/2023,South Essex Parking Partnership,CHELMSFORD DW 03439092725,49.99,Clothing & Uniforms,5941,SPORTING GOODS STORES
CCC_10002389_3,30/05/2023,Parks & Green Spaces,DVLA VEHICLE TAX 0300 1234321,322.50,Vehicle Tax,9311,TAX PAYMENTS
CCC_10002411_10,30/05/2023,South Essex Parking Partnership,B NELI LTD MOBILE VALE CHELMSFORD,20.00,General Expense,7542,CAR WASHES
CCC_10002413_4,31/05/2023,Parks & Green Spaces,AMZNMKTPLACE AMAZON.CO.UK,12.45,General Expense,5999,MISCELLANEOUS & SPECIALTY STORES
CCC_10002303_21,31/05/2023,"Museums, Theatres & Cultural Services",TESCO STORES 5408 CHELMSFORD,4.60,General Expense,5411,GROCERY STORES OR SUPERMARKETS
CCC_10002484_1,31/05/2023,Legal & Democratic Services,STATIONERYU 35314369001,24.32,Printing & Stationary,5943," STATIONERY STORES, OFFICE & SCHOOL SUPPLY STORES "
CCC_10002462_1,31/05/2023,Marketing & Communications Team,FACEBK  6W8QBQP9K2 FB.ME/ADS,400.00,Advertising,7311,ADVERTISING SERVICES
CCC_10002425_6,31/05/2023,Parks & Green Spaces,AMZNMKTPLACE AMAZON.CO.UK,6.74,Grounds Maintenance Materials,5999,MISCELLANEOUS & SPECIALTY STORES
CCC_10002445_2,31/05/2023,Leisure & Heritage Services,WM MORRISONS STORE CHELMSFORD,80.00,New Equipment,5411,GROCERY STORES OR SUPERMARKETS
CCC_10002303_19,31/05/2023,"Museums, Theatres & Cultural Services",TESCO STORES 5408 CHELMSFORD,1.79,General Expense,5411,GROCERY STORES OR SUPERMARKETS
CCC_10002418_1,31/05/2023,"Museums, Theatres & Cultural Services",POUNDSTRETCHER CHELMSFORD,17.83,General Expense,5331,VARIETY STORES
CCC_10002383_1,31/05/2023,"Museums, Theatres & Cultural Services",GREATERANGLIACOM LONDON,79.12,Public Transport,4112,PASSENGER RAILWAYS
CCC_10002413_5,31/05/2023,Parks & Green Spaces,AMZNMKTPLACE AMAZON.CO.UK,2.29,Printing & Stationary,5999,MISCELLANEOUS & SPECIALTY STORES
CCC_10002455_1,31/05/2023,"Museums, Theatres & Cultural Services",AMZNMKTPLACE AMAZON.CO AMAZON.CO.UK,12.48,Museum Exhibits,5999,MISCELLANEOUS & SPECIALTY STORES
CCC_10002303_22,31/05/2023,"Museums, Theatres & Cultural Services",TESCO STORES 5408 CHELMSFORD,20.75,General Expense,5411,GROCERY STORES OR SUPERMARKETS
CCC_10002413_3,31/05/2023,Parks & Green Spaces,AMZNMKTPLACE AMAZON.CO.UK,29.97,General Expense,5999,MISCELLANEOUS & SPECIALTY STORES
CCC_10002389_2,31/05/2023,Parks & Green Spaces,DVLA VEHICLE TAX 0300 1234321,322.50,Vehicle Tax,9311,TAX PAYMENTS
CCC_10003646_7,31/05/2023,Operational Services,WWW.SCREWFIX.COM YEOVIL,149.96,Vehicle Repairs,5211,LUMBER AND BUILDING MATERIALS STORES
CCC_10002914_1,31/05/2023,Leisure & Heritage Services,FACEBK R9ETHPF242 FB.ME/ADS,6.14,Advertising,7311,ADVERTISING SERVICES
CCC_10002421_3,31/05/2023,Parking & Highways Operations,AMZNMKTPLACE AMAZON.CO AMAZON.CO.UK,11.87,General Expense,5999,MISCELLANEOUS & SPECIALTY STORES
CCC_10002389_1,31/05/2023,Parks & Green Spaces,DVLA VEHICLE TAX 0300 1234321,322.50,Vehicle Tax,9311,TAX PAYMENTS
CCC_10002741_1,31/05/2023,Leisure & Heritage Services,FIRSTAID4LESS POOLE,18.65,New Equipment,5046,COMMERCIAL EQUIPMENT (NEC)
CCC_10002318_16,31/05/2023,Parks & Green Spaces,AMZNMKTPLACE AMAZON.CO AMAZON.CO.UK,19.14,General Expense,5999,MISCELLANEOUS & SPECIALTY STORES
CCC_10002303_20,31/05/2023,"Museums, Theatres & Cultural Services",TESCO STORES 5408 CHELMSFORD,3.75,General Expense,5411,GROCERY STORES OR SUPERMARKETS
CCC_10002427_19,31/05/2023,Housing Services,TRAVELODG TRAVELODGE G THAME,363.28,General Expense,3615,TRAVELODGE
CCC_10002862_1,31/05/2023,Leisure & Heritage Services,ASDA SUPERSTORE BASILDON,26.04,General Expense,5411,GROCERY STORES OR SUPERMARKETS
CCC_10002425_7,31/05/2023,Parks & Green Spaces,AMZNMKTPLACE AMAZON.CO.UK,47.51,Grounds Maintenance Materials,5999,MISCELLANEOUS & SPECIALTY STORES
CCC_10002421_4,31/05/2023,Parking & Highways Operations,AMZNMKTPLACE AMAZON.CO AMAZON.CO.UK,10.81,General Expense,5999,MISCELLANEOUS & SPECIALTY STORES
CCC_10002414_12,31/05/2023,Parks & Green Spaces,AMZNMKTPLACE AMAZON.CO.UK,19.57,Grounds Maintenance Materials,5999,MISCELLANEOUS & SPECIALTY STORES
CCC_10002414_13,31/05/2023,Parks & Green Spaces,AMZNMKTPLACE AMAZON.CO.UK,26.62,Grounds Maintenance Materials,5999,MISCELLANEOUS & SPECIALTY STORES
CCC_10002749_15,31/05/2023,Parks & Green Spaces,SP SIMON THE BEEKEEPER ORMSKIRK,374.95,Grounds Maintenance Materials,5999,MISCELLANEOUS & SPECIALTY STORES
CCC_10002504_7,31/05/2023,Marketing & Communications Team,FACEBK  3DDP6PBZ52 FB.ME/ADS,197.55,Advertising,7311,ADVERTISING SERVICES
CCC_10002388_1,31/05/2023,Digital Services,MSCRM-ADDONS.COM(PTM) GRAZ,"5,073.78",Employee Subscriptions,5734,COMPUTER SOFTWARE STORES
CCC_10002421_2,31/05/2023,Parking & Highways Operations,AMZNMKTPLACE AMAZON.CO AMAZON.CO.UK,31.31,General Expense,5999,MISCELLANEOUS & SPECIALTY STORES
CCC_10002427_20,31/05/2023,Housing Services,TRAVELODG TRAVELODGE G THAME,502.44,General Expense,3615,TRAVELODGE
CCC_10002506_5,01/06/2023,Parking & Highways Operations,WWW.SCREWFIX.COM YEOVIL,39.99,General Expense,5211,LUMBER AND BUILDING MATERIALS STORES
CCC_10002755_16,01/06/2023,Leisure & Heritage Services,SP ROLLUPBANNER HULL,76.80,Printing & Stationary,2741,MISCELLANEOUS PUBLISHING AND PRINTING
CCC_10002545_9,01/06/2023,Human Resources,GOOGLE ADS2733035999 DUBLIN,126.63,Advertising,7311,ADVERTISING SERVICES
CCC_10002385_1,01/06/2023,Parking & Highways Operations,WWW.ARGOS.CO.UK MILTON KEYNES,15.00,New Equipment,5311,DEPARTMENT STORES
CCC_10002376_1,01/06/2023,Leisure & Heritage Services,TESCO STORES 2327 CHELMSFORD 1,6.67,Printing & Stationary,5411,GROCERY STORES OR SUPERMARKETS
CCC_10002413_2,01/06/2023,Parks & Green Spaces,AMZNMKTPLACE AMAZON.CO.UK,41.60,New Equipment,5999,MISCELLANEOUS & SPECIALTY STORES
CCC_10003806_15,01/06/2023,Building Services,FIREPROTECT 35314369001,234.22,General Expense,5732,ELECTRONIC SALES
CCC_10002463_3,01/06/2023,Marketing & Communications Team,GOOGLE ADS8205095539 DUBLIN,186.04,Advertising,7311,ADVERTISING SERVICES
CCC_10002504_6,01/06/2023,Marketing & Communications Team,GOOGLE ADS9290904130 DUBLIN,270.55,Advertising,7311,ADVERTISING SERVICES
CCC_10002433_1,01/06/2023,Leisure & Heritage Services,TESCO STORES 2330 CHELMSFORD 2,18.75,General Expense,5411,GROCERY STORES OR SUPERMARKETS
CCC_10002408_4,01/06/2023,Leisure & Heritage Services,AMZNMKTPLACE AMAZON.CO.UK,5.32,General Expense,5999,MISCELLANEOUS & SPECIALTY STORES
CCC_10002378_1,01/06/2023,Parks & Green Spaces,FIRE SUPPLIES LATCHINGDON,27.33,Printing & Stationary,5732,ELECTRONIC SALES
CCC_10002408_3,01/06/2023,Leisure & Heritage Services,AMZNMKTPLACE AMAZON.CO.UK,7.90,General Expense,5999,MISCELLANEOUS & SPECIALTY STORES
CCC_10002380_1,01/06/2023,Marketing & Communications Team,GOOGLE ADS3539603203 DUBLIN,182.24,Advertising,7311,ADVERTISING SERVICES
CCC_10002382_1,01/06/2023,Marketing & Communications Team,GOOGLE ADS8874237245 DUBLIN,20.34,Advertising,7311,ADVERTISING SERVICES
CCC_10003646_8,01/06/2023,Operational Services,BOC GASES BASILDON,113.96,Vehicle Repairs,5722,APPLIANCE STORES (NEC) OR HOUSEHOLD APPLIANCE STORES
CCC_10002755_17,01/06/2023,Leisure & Heritage Services,SP ROLLUPBANNER HULL,76.80,Printing & Stationary,2741,MISCELLANEOUS PUBLISHING AND PRINTING
CCC_10002601_13,01/06/2023,Parks & Green Spaces,AMZNMKTPLACE AMAZON.CO AMAZON.CO.UK,43.02,Grounds Maintenance Materials,5999,MISCELLANEOUS & SPECIALTY STORES
CCC_10002381_1,01/06/2023,Marketing & Communications Team,WWW.SOLOPRESS.COM SOUTHEND-ON-S,34.90,Printing & Stationary,2741,MISCELLANEOUS PUBLISHING AND PRINTING
CCC_10003939_8,01/06/2023,Operational Services,AMZNMKTPLACE AMAZON.CO.UK,46.99,General Expense,5999,MISCELLANEOUS & SPECIALTY STORES
CCC_10003631_1,01/06/2023,South Essex Parking Partnership,BLUE SKY PRINTING CHELMSFORD,68.00,Printing & Stationary,2741,MISCELLANEOUS PUBLISHING AND PRINTING
CCC_10002445_1,01/06/2023,Leisure & Heritage Services,WM MORRISONS STORE CHELMSFORD,80.00,New Equipment,5411,GROCERY STORES OR SUPERMARKETS
CCC_10002411_5,02/06/2023,South Essex Parking Partnership,SHINY CAR WASH BASILDON,12.50,General Expense,7542,CAR WASHES
CCC_10002758_1,02/06/2023,Leisure & Heritage Services,INTA AUDIO COMPUTERSYS COVENTRY,116.67,New Equipment,5733," MUSIC STORES, MUSICAL INSTRUMENTS, PIANOS, SHEET MUSIC "
CCC_10002415_3,02/06/2023,Leisure & Heritage Services,AMZNMKTPLACE AMAZON.CO AMAZON.CO.UK,22.27,General Expense,5999,MISCELLANEOUS & SPECIALTY STORES
CCC_10002418_3,02/06/2023,"Museums, Theatres & Cultural Services",AMZNBUSINESS UK9QJ8PO5 LUXEMBOURG L,24.16,General Expense,5999,MISCELLANEOUS & SPECIALTY STORES
CCC_10002410_1,02/06/2023,"Museums, Theatres & Cultural Services",AMZNMKTPLACE AMAZON.CO AMAZON.CO.UK,25.81,Printing & Stationary,5999,MISCELLANEOUS & SPECIALTY STORES
CCC_10002425_5,02/06/2023,Parks & Green Spaces,AMZNMKTPLACE AMAZON.CO.UK,32.03,Grounds Maintenance Materials,5999,MISCELLANEOUS & SPECIALTY STORES
CCC_10002484_2,02/06/2023,Legal & Democratic Services,AMZNMKTPLACE AMAZON.CO AMAZON.CO.UK,41.66,Printing & Stationary,5999,MISCELLANEOUS & SPECIALTY STORES
CCC_10002421_1,02/06/2023,Parking & Highways Operations,AMZNMKTPLACE AMAZON.CO AMAZON.CO.UK,56.25,General Expense,5999,MISCELLANEOUS & SPECIALTY STORES
CCC_10002510_2,02/06/2023,Parks & Green Spaces,EBAY O 11-10127-25406 LONDON,37.49,Vehicle Repairs,5311,DEPARTMENT STORES
CCC_10002545_8,02/06/2023,Human Resources,IHASCO.CO.UK BRACKNELL,288.00,Training Expenses,5815," DIGITAL GOODS MEDIA: BOOKS, MOVIES, MUSIC "
CCC_10002405_2,02/06/2023,Leisure & Heritage Services,AMZNMKTPLACE AMAZON.CO.UK,12.46,General Expense,5999,MISCELLANEOUS & SPECIALTY STORES
CCC_10002601_9,02/06/2023,Parks & Green Spaces,AMZNMKTPLACE AMAZON.CO.UK,30.82,Grounds Maintenance Materials,5999,MISCELLANEOUS & SPECIALTY STORES
CCC_10002601_10,02/06/2023,Parks & Green Spaces,FIRST RESCUE TRAIN SELBY,895.00,Grounds Maintenance Materials,5399,GENERAL MERCHANDISE OR CONVENIENCE FOOD STORES
CCC_10002541_14,02/06/2023,Leisure & Heritage Services,AMZNMKTPLACE AMAZON.CO.UK,11.13,General Expense,5999,MISCELLANEOUS & SPECIALTY STORES
CCC_10002601_12,02/06/2023,Parks & Green Spaces,WWW.SCREWFIX.COM YEOVIL,65.93,Grounds Maintenance Materials,5211,LUMBER AND BUILDING MATERIALS STORES
CCC_10002418_2,02/06/2023,"Museums, Theatres & Cultural Services",WWW.NISBETS.COM 0845 1110281,209.98,General Expense,5964,CATALOG MERCHANT
CCC_10002697_3,02/06/2023,"Museums, Theatres & Cultural Services",THE STAGE SE1 3XT,59.40,Employee Subscriptions,7922," THEATRICAL PRODUCERS (EXCL MOTION PICTURES), TICKET AGENCIES "
CCC_10002510_1,02/06/2023,Parks & Green Spaces,EBAY O 26-10119-95756 LONDON,36.61,Vehicle Repairs,5311,DEPARTMENT STORES
CCC_10002510_3,02/06/2023,Parks & Green Spaces,D. BYFORD & SONS COLCHESTER CO,34.00,General Expense,5193," FLORIST SUPPLIES, NURSERY STOCK AND FLOWERS "
CCC_10002705_2,02/06/2023,"Museums, Theatres & Cultural Services",AMZNMKTPLACE AMAZON.CO.UK,21.65,General Expense,5999,MISCELLANEOUS & SPECIALTY STORES
CCC_10002637_4,02/06/2023,Housing Services,TRAVELODG TRAVELODGE G THAME,361.96,Accommodation,3615,TRAVELODGE
CCC_10002411_6,02/06/2023,South Essex Parking Partnership,SHINY CAR WASH BASILDON,12.50,General Expense,7542,CAR WASHES
CCC_10002419_2,02/06/2023,"Museums, Theatres & Cultural Services",AP LAMP DIS CM1 3AE,49.00,Grounds Maintenance Materials,5999,MISCELLANEOUS & SPECIALTY STORES
CCC_10002601_11,02/06/2023,Parks & Green Spaces,FIRST RESCUE TRAIN SELBY,425.00,Grounds Maintenance Materials,5399,GENERAL MERCHANDISE OR CONVENIENCE FOOD STORES
CCC_10002411_7,02/06/2023,South Essex Parking Partnership,SHINY CAR WASH BASILDON,15.00,General Expense,7542,CAR WASHES
CCC_10002517_1,03/06/2023,"Museums, Theatres & Cultural Services",TESCO STORES 5408 CHELMSFORD,6.60,General Expense,5411,GROCERY STORES OR SUPERMARKETS
CCC_10002646_3,03/06/2023,Leisure & Heritage Services,AMZNMKTPLACE AMAZON.CO.UK,5.57,Printing & Stationary,5999,MISCELLANEOUS & SPECIALTY STORES
CCC_10002517_2,03/06/2023,"Museums, Theatres & Cultural Services",CARD FACTORY CHELMSFORD,3.32,General Expense,5947," CARD, GIFT, NOVELTY OR SOUVENIR SHOPS "
CCC_10002432_1,03/06/2023,Leisure & Heritage Services,AMZNMKTPLACE AMAZON.CO.UK,42.43,General Expense,5999,MISCELLANEOUS & SPECIALTY STORES
CCC_10002467_2,03/06/2023,Street Care & Performance,WWW.LSENGINEERS.CO.UK WALSALL,62.30,General Expense,5251,HARDWARE STORES
CCC_10002517_3,03/06/2023,"Museums, Theatres & Cultural Services",CARD FACTORY CHELMSFORD,5.63,General Expense,5947," CARD, GIFT, NOVELTY OR SOUVENIR SHOPS "
CCC_10002416_6,03/06/2023,Operational Services,DRIINK COFFEE CLUB CHELMSFORD,250.00,General Expense,5812,RESTAURANTS OR EATING PLACES
CCC_10002465_3,03/06/2023,Digital Services,123 REG LTD 008082566 HAYES MIDDLE,35.96,Publications,4816,COMPUTER NETWORK/INFO SVCS
CCC_10002416_5,03/06/2023,Operational Services,DRIINK COFFEE CLUB CHELMSFORD,250.00,General Expense,5812,RESTAURANTS OR EATING PLACES
CCC_10002416_7,03/06/2023,Operational Services,DRIINK COFFEE CLUB CHELMSFORD,76.00,General Expense,5812,RESTAURANTS OR EATING PLACES
CCC_10002408_2,04/06/2023,Leisure & Heritage Services,AMZNMKTPLACE AMAZON.CO.UK,19.05,General Expense,5999,MISCELLANEOUS & SPECIALTY STORES
CCC_10002538_3,04/06/2023,"Museums, Theatres & Cultural Services",ROTACLOUD YORK,40.00,Employee Subscriptions,5734,COMPUTER SOFTWARE STORES
CCC_10002424_2,04/06/2023,Corporate Property Services,AMZNMKTPLACE AMAZON.CO.UK,9.15,New Equipment,5999,MISCELLANEOUS & SPECIALTY STORES
CCC_10002425_3,05/06/2023,Parks & Green Spaces,LOOKERS NEWCASTLE,230.32,Grounds Maintenance Materials,7538,AUTOMOTIVE SERVICE SHOPS (NON-DEALER)
CCC_10002416_3,05/06/2023,Operational Services,SQ  COFFEE AND CAKE AT SPRINGFIELD,15.44,General Expense,5814,FAST FOOD RESTAURANTS
CCC_10002422_2,05/06/2023,Parks & Green Spaces,B & Q 1188 CHELMSFORD,14.17,General Expense,5200,HOME SUPPLY WAREHOUSE STORES
CCC_10002424_1,05/06/2023,Corporate Property Services,AMZNMKTPLACE AMAZON.CO.UK,21.17,Printing & Stationary,5999,MISCELLANEOUS & SPECIALTY STORES
CCC_10002841_1,05/06/2023,Parks & Green Spaces,T&M B2C ECOMM WWW.THOMPSON-,28.96,General Expense,5261,GARDEN AND LAWN SUPPLY STORES OR NURSERIES
CCC_10002422_1,05/06/2023,Parks & Green Spaces,CHANDLER MATERIALS CHELMSFORD,50.64,General Expense,5211,LUMBER AND BUILDING MATERIALS STORES
CCC_10002416_2,05/06/2023,Operational Services,SQ  MONARCH SPRINGFIELD,34.00,Clothing & Uniforms,7230,BARBER OR BEAUTY SHOPS
CCC_10002463_2,05/06/2023,Marketing & Communications Team,ARTS MARKETING ASS CAMBRIDGE,74.00,Training Expenses,8398,CHARITABLE OR SOCIAL SERVICES ORGANIZATIONS
CCC_10002422_3,05/06/2023,Parks & Green Spaces,ASDA SUPERSTORE CHELMSFORD,58.04,General Expense,5411,GROCERY STORES OR SUPERMARKETS
CCC_10002531_19,05/06/2023,"Museums, Theatres & Cultural Services",MUSIC STORE PROFESSION K�LN,44.33,New Equipment,5733," MUSIC STORES, MUSICAL INSTRUMENTS, PIANOS, SHEET MUSIC "
CCC_10002450_5,05/06/2023,Marketing & Communications Team,WWW.SOLOPRESS.COM SOUTHEND-ON-S,205.70,Printing & Stationary,2741,MISCELLANEOUS PUBLISHING AND PRINTING
CCC_10002425_4,05/06/2023,Parks & Green Spaces,TESCO STORES 2330 CHELMSFORD 2,47.00,Grounds Maintenance Materials,5411,GROCERY STORES OR SUPERMARKETS
CCC_10002411_4,05/06/2023,South Essex Parking Partnership,RJ PRINTERS LTD MALDON,397.00,Printing & Stationary,2741,MISCELLANEOUS PUBLISHING AND PRINTING
CCC_10002411_3,05/06/2023,South Essex Parking Partnership,LAVISH CAR WASH BRENTWOOD,50.00,General Expense,7542,CAR WASHES
CCC_10002697_2,05/06/2023,"Museums, Theatres & Cultural Services",AMZNMKTPLACE AMAZON.CO.UK,37.49,General Expense,5999,MISCELLANEOUS & SPECIALTY STORES
CCC_10002517_4,05/06/2023,"Museums, Theatres & Cultural Services",TESCO STORES 5408 CHELMSFORD,5.70,General Expense,5411,GROCERY STORES OR SUPERMARKETS
CCC_10002424_3,05/06/2023,Corporate Property Services,AMZNMKTPLACE AMAZON.CO AMAZON.CO.UK,-8.67,Printing & Stationary,5999,MISCELLANEOUS & SPECIALTY STORES
CCC_10002407_4,05/06/2023,Leisure & Heritage Services,AMZNMKTPLACE AMAZON.CO.UK,20.50,General Expense,5999,MISCELLANEOUS & SPECIALTY STORES
CCC_10002481_5,05/06/2023,Leisure & Heritage Services,WWW.JACAMO.CO.UK MANCHESTER,15.00,Clothing & Uniforms,5691,MEN'S AND WOMEN'S CLOTHING STORES
CCC_10002416_4,05/06/2023,Operational Services,DREAMSTIME.COM BRENTWOOD,22.00,General Expense,2741,MISCELLANEOUS PUBLISHING AND PRINTING
CCC_10002541_12,05/06/2023,Leisure & Heritage Services,AMZNMKTPLACE AMAZON.CO.UK,7.87,General Expense,5999,MISCELLANEOUS & SPECIALTY STORES
CCC_10002427_21,05/06/2023,Housing Services,TRAVELODG TRAVELODGE G THAME,229.14,General Expense,3615,TRAVELODGE
CCC_10002422_4,05/06/2023,Parks & Green Spaces,TESCO-STORES 6724 CHELMSFORD,3.75,General Expense,5411,GROCERY STORES OR SUPERMARKETS
CCC_10002407_3,05/06/2023,Leisure & Heritage Services,AMZNMKTPLACE AMAZON.CO.UK,113.59,General Expense,5999,MISCELLANEOUS & SPECIALTY STORES
CCC_10002622_1,05/06/2023,"Museums, Theatres & Cultural Services",TOOLSTATION UK NORTHAMPTON,42.43,General Expense,5251,HARDWARE STORES
CCC_10002541_13,05/06/2023,Leisure & Heritage Services,AMZNMKTPLACE AMAZON.CO AMAZON.CO.UK,24.17,General Expense,5999,MISCELLANEOUS & SPECIALTY STORES
CCC_10002481_4,05/06/2023,Leisure & Heritage Services,B & Q 1188 CHELMSFORD,40.00,Grounds Maintenance Materials,5200,HOME SUPPLY WAREHOUSE STORES
CCC_10002424_4,05/06/2023,Corporate Property Services,AMZNMKTPLACE AMAZON.CO AMAZON.CO.UK,-8.66,Printing & Stationary,5999,MISCELLANEOUS & SPECIALTY STORES
CCC_10002415_2,05/06/2023,Leisure & Heritage Services,AMZNMKTPLACE AMAZON.CO.UK,19.90,General Expense,5999,MISCELLANEOUS & SPECIALTY STORES
CCC_10003821_1,06/06/2023,"Museums, Theatres & Cultural Services",THE BOOK SERVICE LTD T COLCHESTER,79.90,General Expense,5942,BOOK STORES
CCC_10002517_6,06/06/2023,"Museums, Theatres & Cultural Services",AMZNMKTPLACE AMAZON.CO.UK,8.32,Printing & Stationary,5999,MISCELLANEOUS & SPECIALTY STORES
CCC_10002404_1,06/06/2023,Marketing & Communications Team,EPH RECEPTION BIRMINGHAM,80.00,Accommodation,7011," LODGING,HOTELS,MOTELS,RESORTS "
CCC_10002422_9,06/06/2023,Parks & Green Spaces,AMZNMKTPLACE AMAZON.CO.UK,13.32,General Expense,5999,MISCELLANEOUS & SPECIALTY STORES
CCC_10003806_16,06/06/2023,Building Services,WWW.CUSTOM-CABLE.CO.UK INTERNET,24.82,General Expense,5722,APPLIANCE STORES (NEC) OR HOUSEHOLD APPLIANCE STORES
CCC_10002795_1,06/06/2023,Revenue and Benefit Services,SOUTHEND COUNTY WWW.JUCTIC.GO,317.50,General Expense,9222,FINES
CCC_10002431_2,06/06/2023,Customer Services,AMZNMKTPLACE AMAZON.CO.UK,45.82,Printing & Stationary,5999,MISCELLANEOUS & SPECIALTY STORES
CCC_10002545_7,06/06/2023,Human Resources,AMZNBUSINESS 812476I35 AMAZON.CO.UK,44.99,Printing & Stationary,5999,MISCELLANEOUS & SPECIALTY STORES
CCC_10002517_5,06/06/2023,"Museums, Theatres & Cultural Services",TESCO STORES 5408 CHELMSFORD,7.45,General Expense,5411,GROCERY STORES OR SUPERMARKETS
CCC_10002622_2,06/06/2023,"Museums, Theatres & Cultural Services",IRONMONGERYDIRECT BASILDON,48.35,General Expense,5251,HARDWARE STORES
CCC_10002485_1,06/06/2023,Legal & Democratic Services,CCBCOFFICE 0300 123 1056,119.00,General Expense,9222,FINES
CCC_10002407_2,06/06/2023,Leisure & Heritage Services,TESCO STORES 2172 BRAINTREE,11.40,General Expense,5411,GROCERY STORES OR SUPERMARKETS
CCC_10002425_2,06/06/2023,Parks & Green Spaces,GSF CAR PARTS HARLOW,214.37,Grounds Maintenance Materials,5013,MOTOR VEHICLE SUPPLIES AND NEW PARTS
CCC_10002420_1,07/06/2023,Leisure & Heritage Services,AMZNMKTPLACE AMAZON.CO.UK,14.57,Printing & Stationary,5999,MISCELLANEOUS & SPECIALTY STORES
CCC_10002601_8,07/06/2023,Parks & Green Spaces,AMZNMKTPLACE AMAZON.CO.UK,102.31,Grounds Maintenance Materials,5999,MISCELLANEOUS & SPECIALTY STORES
CCC_10002428_3,07/06/2023,Accountancy Services,AMZNMKTPLACE AMAZON.CO AMAZON.CO.UK,7.49,Printing & Stationary,5999,MISCELLANEOUS & SPECIALTY STORES
CCC_10002721_10,07/06/2023,Housing Services,PREMIER INN CHELMSFORD,351.25,General Expense,3811,PREMIER TRAVEL INN
CCC_10002427_22,07/06/2023,Housing Services,PREMIER INN BASILDON FEST,229.50,General Expense,3811,PREMIER TRAVEL INN
CCC_10002637_10,07/06/2023,Housing Services,E.ON NEXT COVENTRY,74.46,General Expense,4900," ELECTRIC, GAS, SANITARY, TELEPHONE OR WATER UTILITIES "
CCC_10003939_7,07/06/2023,Operational Services,WWW.ARGOS.CO.UK MILTON KEYNES,17.99,General Expense,5311,DEPARTMENT STORES
CCC_10002422_8,07/06/2023,Parks & Green Spaces,TESCO-STORES 6724 CHELMSFORD,13.52,General Expense,5411,GROCERY STORES OR SUPERMARKETS
CCC_10002415_1,07/06/2023,Leisure & Heritage Services,MAUROS IN THE PARK CHELMSFORD,6.00,General Expense,5812,RESTAURANTS OR EATING PLACES
CCC_10002413_1,07/06/2023,Parks & Green Spaces,WOB.COM BRIGHTON AND,7.30,General Expense,5192," BOOKS, PERIODICALS AND NEWSPAPERS "
CCC_10002423_1,07/06/2023,"Museums, Theatres & Cultural Services",ZETTLE_ PATCH PLACES L CHELMSFORD,58.33,General Expense,8999,PROFESSIONAL SERVICES (NEC)
CCC_10003169_17,07/06/2023,Leisure & Heritage Services,SOUNDTRACK YOUR BRAND STOCKHOLM,39.00,General Expense,5815," DIGITAL GOODS MEDIA: BOOKS, MOVIES, MUSIC "
CCC_10002517_7,07/06/2023,"Museums, Theatres & Cultural Services",AMZNMKTPLACE AMAZON.CO.UK,1.79,Printing & Stationary,5999,MISCELLANEOUS & SPECIALTY STORES
CCC_10002465_2,07/06/2023,Digital Services,GREATER ANGLIA T/O CHLMSFRD 6836,70.90,Public Transport,4112,PASSENGER RAILWAYS
CCC_10002622_3,07/06/2023,"Museums, Theatres & Cultural Services",WWW.SCREWFIX.COM YEOVIL,52.48,General Expense,5211,LUMBER AND BUILDING MATERIALS STORES
CCC_10002465_1,07/06/2023,Digital Services,GREATER ANGLIA T/O CHLMSFRD 6836,70.90,Public Transport,4112,PASSENGER RAILWAYS
CCC_10002408_1,07/06/2023,Leisure & Heritage Services,AMZNMKTPLACE AMAZON.CO.UK,21.23,General Expense,5999,MISCELLANEOUS & SPECIALTY STORES
CCC_10002708_2,07/06/2023,"Museums, Theatres & Cultural Services",AMZNMKTPLACE AMAZON.CO AMAZON.CO.UK,34.16,Clothing & Uniforms,5999,MISCELLANEOUS & SPECIALTY STORES
CCC_10002411_2,07/06/2023,South Essex Parking Partnership,LIDL GB CANVEY ISLAND CANVEY ISLAND,5.07,General Expense,5411,GROCERY STORES OR SUPERMARKETS
CCC_10003806_18,08/06/2023,Building Services,WWW.IMOCARWASH.COM HIGH WYCOMBE,83.33,General Expense,7542,CAR WASHES
CCC_10002517_8,08/06/2023,"Museums, Theatres & Cultural Services",AMZNMKTPLACE AMAZON.CO.UK,21.57,General Expense,5999,MISCELLANEOUS & SPECIALTY STORES
CCC_10002409_2,08/06/2023,Development Management,AMZNMKTPLACE AMAZON.CO.UK,7.91,Printing & Stationary,5999,MISCELLANEOUS & SPECIALTY STORES
CCC_10002541_11,08/06/2023,Leisure & Heritage Services,NETS AJPRODUCTS.CO.U HALMSTAD,52.50,General Expense,5021,COMMERCIAL FURNITURE
CCC_10002428_2,08/06/2023,Accountancy Services,AMZNMKTPLACE AMAZON.CO AMAZON.CO.UK,3.54,Printing & Stationary,5999,MISCELLANEOUS & SPECIALTY STORES
CCC_10002406_1,08/06/2023,Parking & Highways Operations,TOOLSTATION LTD CHELMSFORD,2.49,Car Parking,5211,LUMBER AND BUILDING MATERIALS STORES
CCC_10002409_1,08/06/2023,Development Management,AMZNMKTPLACE AMAZON.CO.UK,4.16,Printing & Stationary,5999,MISCELLANEOUS & SPECIALTY STORES
CCC_10002388_2,08/06/2023,Digital Services,AMZNMKTPLACE AMAZON.CO.UK,26.99,Printing & Stationary,5999,MISCELLANEOUS & SPECIALTY STORES
CCC_10003806_19,08/06/2023,Building Services,AMZNMKTPLACE AMAZON.CO.UK,11.65,General Expense,5999,MISCELLANEOUS & SPECIALTY STORES
CCC_10002425_1,08/06/2023,Parks & Green Spaces,GSF CAR PARTS SPRINGFIELD,101.02,Grounds Maintenance Materials,5013,MOTOR VEHICLE SUPPLIES AND NEW PARTS
CCC_10002407_1,08/06/2023,Leisure & Heritage Services,TESCO STORES 2172 BRAINTREE,6.75,General Expense,5411,GROCERY STORES OR SUPERMARKETS
CCC_10002517_9,08/06/2023,"Museums, Theatres & Cultural Services",AMZNMKTPLACE AMAZON.CO.UK,39.87,General Expense,5999,MISCELLANEOUS & SPECIALTY STORES
CCC_10002405_1,08/06/2023,Leisure & Heritage Services,UK POINT OF SALE GROUP STOCKPORT,38.10,Printing & Stationary,5045,COMPUTERS AND COMPUTER PERIPHERAL EQUIPMENT AND SOFTWARE
CCC_10002409_3,08/06/2023,Development Management,AMZNMKTPLACE AMAZON.CO.UK,20.60,Printing & Stationary,5999,MISCELLANEOUS & SPECIALTY STORES
CCC_10002541_10,08/06/2023,Leisure & Heritage Services,AMZNMKTPLACE AMAZON.CO.UK,21.37,General Expense,5999,MISCELLANEOUS & SPECIALTY STORES
CCC_10002541_9,08/06/2023,Leisure & Heritage Services,SIMONJERSEY 35314369001,-173.00,Clothing & Uniforms,5621,WOMEN'S READY-TO-WEAR STORES
CCC_10002419_1,08/06/2023,"Museums, Theatres & Cultural Services",B & Q 1188 CHELMSFORD,30.83,Grounds Maintenance Materials,5200,HOME SUPPLY WAREHOUSE STORES
CCC_10003806_17,08/06/2023,Building Services,FIREPROTECT 35314369001,88.41,General Expense,5732,ELECTRONIC SALES
CCC_10002637_6,08/06/2023,Housing Services,TRAVELODG TRAVELODGE G THAME,972.38,Accommodation,3615,TRAVELODGE
CCC_10002506_4,08/06/2023,Parking & Highways Operations,WWW.SCREWFIX.COM YEOVIL,22.99,General Expense,5211,LUMBER AND BUILDING MATERIALS STORES
CCC_10002411_1,08/06/2023,South Essex Parking Partnership,CHELMSFORD SAFETY SUPP CHELMSFORD,88.40,Clothing & Uniforms,5047," MEDICAL, DENTAL, OPHTHALMIC AND HOSPITAL EQUIP "
CCC_10002428_1,08/06/2023,Accountancy Services,AMZNMKTPLACE AMAZON.CO AMAZON.CO.UK,24.68,Printing & Stationary,5999,MISCELLANEOUS & SPECIALTY STORES
CCC_10002416_1,08/06/2023,Operational Services,SQ  MONARCH SPRINGFIELD,51.00,Clothing & Uniforms,7230,BARBER OR BEAUTY SHOPS
CCC_10002402_1,08/06/2023,Public Health & Protection Services,DNH GODADDY.COM EUROPE GODADDY.COM,143.64,General Expense,4816,COMPUTER NETWORK/INFO SVCS
CCC_10002444_1,09/06/2023,Leisure & Heritage Services,AMZNMKTPLACE AMAZON.CO.UK,14.15,Printing & Stationary,5999,MISCELLANEOUS & SPECIALTY STORES
CCC_10002749_11,09/06/2023,Parks & Green Spaces,EURO CAR PARTS TAMWORTH,94.62,Vehicle Repairs,5533," AUTOMOTIVE PARTS, ACCESSORIES STORES "
CCC_10002505_5,09/06/2023,Parks & Green Spaces,WWW.MYTYRES.CO.UK LONDON,267.32,Grounds Maintenance Materials,5532,AUTOMOTIVE TIRE STORES
CCC_10002517_10,09/06/2023,"Museums, Theatres & Cultural Services",TESCO STORES 5408 CHELMSFORD,7.20,General Expense,5411,GROCERY STORES OR SUPERMARKETS
CCC_10002545_6,09/06/2023,Human Resources,BOOTS VOUCHERS INTERNET,"1,300.00",General Expense,5912,PHARMCIES OR DRUG STORES
CCC_10002531_18,09/06/2023,"Museums, Theatres & Cultural Services",FDS CORPORATION LIMITE IPSWICH,58.29,New Equipment,5712," FURNITURE, HOME FURNISHINGS & EQUIP STORES EXCL APPLIANCES "
CCC_10003646_9,09/06/2023,Operational Services,BARRY CARTER MOTOR PRO HARROGATE,614.95,New Equipment,5013,MOTOR VEHICLE SUPPLIES AND NEW PARTS
CCC_10002431_1,09/06/2023,Customer Services,AMZNMKTPLACE AMAZON.CO AMAZON.CO.UK,24.61,Printing & Stationary,5999,MISCELLANEOUS & SPECIALTY STORES
CCC_10002505_4,09/06/2023,Parks & Green Spaces,D. BYFORD & SONS COLCHESTER CO,33.50,Grounds Maintenance Materials,5193," FLORIST SUPPLIES, NURSERY STOCK AND FLOWERS "
CCC_10003806_21,09/06/2023,Building Services,AMZNMKTPLACE AMAZON.CO.UK,11.66,General Expense,5999,MISCELLANEOUS & SPECIALTY STORES
CCC_10003297_2,09/06/2023,Public Health & Protection Services,SOUTHEND COUNTY WWW.JUCTIC.GO,226.00,General Expense,9222,FINES
CCC_10003806_20,09/06/2023,Building Services,AMZNMKTPLACE AMAZON.CO.UK,8.32,General Expense,5999,MISCELLANEOUS & SPECIALTY STORES
CCC_10002541_8,09/06/2023,Leisure & Heritage Services,AMZNMKTPLACE AMAZON.CO.UK,9.40,General Expense,5999,MISCELLANEOUS & SPECIALTY STORES
CCC_10002517_11,10/06/2023,"Museums, Theatres & Cultural Services",TESCO STORES 5408 CHELMSFORD,3.05,General Expense,5411,GROCERY STORES OR SUPERMARKETS
CCC_10002408_5,10/06/2023,Leisure & Heritage Services,AMZNMKTPLACE AMAZON.CO.UK,29.63,General Expense,5999,MISCELLANEOUS & SPECIALTY STORES
CCC_10002508_4,10/06/2023,"Museums, Theatres & Cultural Services",SCREWFIX DIR LTD CHELMFOR1867,11.23,Grounds Maintenance Materials,5211,LUMBER AND BUILDING MATERIALS STORES
CCC_10003939_6,10/06/2023,Operational Services,AMAZON PRIME FJ95B3MN5 AMZN.CO.UK/PM,8.99,General Expense,5968,CONTINUITY/SUBSCRIPTION MERCHANT
CCC_10002670_34,10/06/2023,South Essex Parking Partnership,HALFORDS 0803 RAYLEIGH,35.37,General Expense,5940,BICYCLE SHOPS -- SALES AND SERVICE
CCC_10002566_11,10/06/2023,Leisure & Heritage Services,AMZNMKTPLACE AMAZON.CO.UK,16.67,General Expense,5999,MISCELLANEOUS & SPECIALTY STORES
CCC_10002446_1,11/06/2023,Leisure & Heritage Services,AMZNMKTPLACE AMAZON.CO AMAZON.CO.UK,23.79,New Equipment,5999,MISCELLANEOUS & SPECIALTY STORES
CCC_10002474_6,11/06/2023,"Museums, Theatres & Cultural Services",AMZNBUSINESS 2U2S191Y5 AMAZON.CO.UK,10.82,Publications,5999,MISCELLANEOUS & SPECIALTY STORES
CCC_10003710_9,11/06/2023,Operational Services,AMAZON PRIME 8S9RR61Q5 LUXEMBOURG,80.00,Vehicle Repairs,5968,CONTINUITY/SUBSCRIPTION MERCHANT
CCC_10002469_2,11/06/2023,Parking & Highways Operations,AMZNMKTPLACE AMAZON.CO.UK,79.98,General Expense,5999,MISCELLANEOUS & SPECIALTY STORES
CCC_10002474_4,11/06/2023,"Museums, Theatres & Cultural Services",AMZNMKTPLACE AMAZON.CO AMAZON.CO.UK,10.11,Printing & Stationary,5999,MISCELLANEOUS & SPECIALTY STORES
CCC_10002451_2,11/06/2023,Marketing & Communications Team,PRINT MARKETPLACE 40 2802345,98.61,Advertising,7338," PRINT SHOPS, QUICK COPY SERVICES OR REPRODUCTION SERVICES "
CCC_10002474_5,11/06/2023,"Museums, Theatres & Cultural Services",AMZNMKTPLACE AMAZON.CO AMAZON.CO.UK,13.23,Printing & Stationary,5999,MISCELLANEOUS & SPECIALTY STORES
CCC_10002548_10,12/06/2023,Parks & Green Spaces,B & Q 1188 CHELMSFORD,87.74,General Expense,5200,HOME SUPPLY WAREHOUSE STORES
CCC_10002634_2,12/06/2023,"Museums, Theatres & Cultural Services",TECH & JUST FX LTD LONDON,56.00,General Expense,7829,MOTION PICTURE AND VIDEO TAPE PRODUCTION AND DISTRIBUTION
CCC_10002541_7,12/06/2023,Leisure & Heritage Services,HOBBYCRAFT TRADING LIM CHRISTCHURCH,12.75,General Expense,5970,CRAFT OR ARTIST'S SUPPLY SHOPS
CCC_10002459_1,12/06/2023,Public Health & Protection Services,ASDA SUPERSTORE CHELMSFORD,1.04,General Expense,5411,GROCERY STORES OR SUPERMARKETS
CCC_10002469_1,12/06/2023,Parking & Highways Operations,AMZNMKTPLACE AMAZON.CO.UK,31.07,General Expense,5999,MISCELLANEOUS & SPECIALTY STORES
CCC_10002619_9,12/06/2023,Leisure & Heritage Services,AMZ MORGAN'S DIRECT 020-74824684,-14.57,Printing & Stationary,5999,MISCELLANEOUS & SPECIALTY STORES
CCC_10002437_2,12/06/2023,Housing Services,TRAVELODG TRAVELODGE G THAME,159.77,General Expense,3615,TRAVELODGE
CCC_10002443_1,12/06/2023,Leisure & Heritage Services,AMZNMKTPLACE AMAZON.CO.UK,29.98,New Equipment,5999,MISCELLANEOUS & SPECIALTY STORES
CCC_10002518_1,12/06/2023,"Museums, Theatres & Cultural Services",SPRINKLEZ TREATS LTD 35314369001,308.29,General Expense,5499,MISC FOOD STORES - SPECIALTY MARKETS & CONVENIENCE
CCC_10002466_1,12/06/2023,Leisure & Heritage Services,WWW.SCREWFIX.COM YEOVIL,139.98,New Equipment,5211,LUMBER AND BUILDING MATERIALS STORES
CCC_10002566_10,12/06/2023,Leisure & Heritage Services,TIMPSON LTD BRAINTREE,9.00,General Expense,5999,MISCELLANEOUS & SPECIALTY STORES
CCC_10002517_12,12/06/2023,"Museums, Theatres & Cultural Services",TESCO STORES 5408 CHELMSFORD,5.50,General Expense,5411,GROCERY STORES OR SUPERMARKETS
CCC_10002442_2,12/06/2023,Leisure & Heritage Services,AMZNMKTPLACE AMAZON.CO.UK,6.66,New Equipment,5999,MISCELLANEOUS & SPECIALTY STORES
CCC_10002548_9,12/06/2023,Parks & Green Spaces,TESCO-STORES 6724 CHELMSFORD,3.00,General Expense,5411,GROCERY STORES OR SUPERMARKETS
CCC_10002504_5,12/06/2023,Marketing & Communications Team,BLUESKYPRINTING CHELMSFORD,34.80,Printing & Stationary,2741,MISCELLANEOUS PUBLISHING AND PRINTING
CCC_10003504_7,12/06/2023,Parks & Green Spaces,TESCO STORES 2330 CHELMSFORD 2,40.00,Grounds Maintenance Materials,5411,GROCERY STORES OR SUPERMARKETS
CCC_10002451_1,12/06/2023,Marketing & Communications Team,PRINT MARKETPLACE 40 2802345,94.45,Advertising,7338," PRINT SHOPS, QUICK COPY SERVICES OR REPRODUCTION SERVICES "
CCC_10003169_16,12/06/2023,Leisure & Heritage Services,AMZNMKTPLACE AMAZON.CO.UK,7.49,New Equipment,5999,MISCELLANEOUS & SPECIALTY STORES
CCC_10002622_4,12/06/2023,"Museums, Theatres & Cultural Services",WWW.SCREWFIX.COM YEOVIL,18.47,General Expense,5211,LUMBER AND BUILDING MATERIALS STORES
CCC_10003169_15,12/06/2023,Leisure & Heritage Services,AMZNMKTPLACE AMAZON.CO.UK,9.98,New Equipment,5999,MISCELLANEOUS & SPECIALTY STORES
CCC_10002601_7,13/06/2023,Parks & Green Spaces,CHANDLER MATERIALS CHELMSFORD,8.98,Grounds Maintenance Materials,5211,LUMBER AND BUILDING MATERIALS STORES
CCC_10002474_3,13/06/2023,"Museums, Theatres & Cultural Services",WWW.SCREWFIX.COM YEOVIL,31.22,Museum Exhibits,5211,LUMBER AND BUILDING MATERIALS STORES
CCC_10002450_4,13/06/2023,Marketing & Communications Team,AMZNMKTPLACE AMAZON.CO AMAZON.CO.UK,13.32,Advertising,5999,MISCELLANEOUS & SPECIALTY STORES
CCC_10002454_1,13/06/2023,"Museums, Theatres & Cultural Services",AMZNMKTPLACE AMAZON.CO.UK,12.50,Museum Exhibits,5999,MISCELLANEOUS & SPECIALTY STORES
CCC_10002670_33,13/06/2023,South Essex Parking Partnership,ROXWELL RD HAND CAR WA CHELMSFORD,20.83,General Expense,7542,CAR WASHES
CCC_10002457_2,13/06/2023,Development Management,GREATER ANGLIA RAIL LONDON,33.50,Public Transport,4112,PASSENGER RAILWAYS
CCC_10002622_5,13/06/2023,"Museums, Theatres & Cultural Services",WWW.SCREWFIX.COM YEOVIL,13.02,General Expense,5211,LUMBER AND BUILDING MATERIALS STORES
CCC_10002541_6,13/06/2023,Leisure & Heritage Services,AMZNMKTPLACE AMAZON.CO.UK,12.48,General Expense,5999,MISCELLANEOUS & SPECIALTY STORES
CCC_10002472_1,13/06/2023,Parks & Green Spaces,AMZNMKTPLACE AMAZON.CO.UK,5.42,General Expense,5999,MISCELLANEOUS & SPECIALTY STORES
CCC_10002531_16,13/06/2023,"Museums, Theatres & Cultural Services",AMZNMKTPLACE AMAZON.CO.UK,6.54,New Equipment,5999,MISCELLANEOUS & SPECIALTY STORES
CCC_10002595_6,13/06/2023,Operational Services,ADOBE   ADOBE DUBLIN,35.94,Advertising,5734,COMPUTER SOFTWARE STORES
CCC_10002378_5,13/06/2023,Parks & Green Spaces,AMZNMKTPLACE AMAZON.CO.UK,19.86,Printing & Stationary,5999,MISCELLANEOUS & SPECIALTY STORES
CCC_10002304_7,13/06/2023,Leisure & Heritage Services,WWW.PLANNING.CO BRISTOL,438.33,General Expense,7399,BUSINESS SERVICES (NEC)
CCC_10002508_3,13/06/2023,"Museums, Theatres & Cultural Services",SCREWFIX DIR LTD CHELMFOR1066,2.48,Grounds Maintenance Materials,5211,LUMBER AND BUILDING MATERIALS STORES
CCC_10002442_1,13/06/2023,Leisure & Heritage Services,AMZ BAIYIHUA AMAZON.CO.UK,-6.66,New Equipment,5999,MISCELLANEOUS & SPECIALTY STORES
CCC_10002304_8,13/06/2023,Leisure & Heritage Services,AMZNBUSINESS WX75M78Y5 AMAZON.CO.UK,11.65,New Equipment,5999,MISCELLANEOUS & SPECIALTY STORES
CCC_10002378_6,13/06/2023,Parks & Green Spaces,AMZNMKTPLACE AMAZON.CO.UK,12.63,Printing & Stationary,5999,MISCELLANEOUS & SPECIALTY STORES
CCC_10002463_1,13/06/2023,Marketing & Communications Team,CARRICK SIGNS LTD WHITEFIELD,50.50,Advertising,2741,MISCELLANEOUS PUBLISHING AND PRINTING
CCC_10002474_1,13/06/2023,"Museums, Theatres & Cultural Services",WWW.SCREWFIX.COM YEOVIL,11.65,Museum Exhibits,5211,LUMBER AND BUILDING MATERIALS STORES
CCC_10002441_1,13/06/2023,Leisure & Heritage Services,APPLIANCEDIRECT CO EASYCOM,250.80,New Equipment,5734,COMPUTER SOFTWARE STORES
CCC_10002531_17,13/06/2023,"Museums, Theatres & Cultural Services",PREMIER FARNELL PRESTON,89.89,New Equipment,5065,ELECTRICAL PARTS AND EQUIPMENT
CCC_10002304_6,13/06/2023,Leisure & Heritage Services,AMZNMKTPLACE AMAZON.CO.UK,11.00,General Expense,5999,MISCELLANEOUS & SPECIALTY STORES
CCC_10002460_1,13/06/2023,Operational Services,COTSWOLD MEDICALS LTD BRISTOL,64.00,General Expense,8011,DOCTORS OR PHYSICIANS
CCC_10002452_1,13/06/2023,"Museums, Theatres & Cultural Services",AMZNMKTPLACE AMAZON.CO.UK,14.98,Museum Exhibits,5999,MISCELLANEOUS & SPECIALTY STORES
CCC_10002457_1,13/06/2023,Development Management,CROSSCOUNTRYCOM LONDON,15.20,Public Transport,4112,PASSENGER RAILWAYS
CCC_10002622_6,13/06/2023,"Museums, Theatres & Cultural Services",WWW.SCREWFIX.COM YEOVIL,5.68,General Expense,5211,LUMBER AND BUILDING MATERIALS STORES
CCC_10002474_2,13/06/2023,"Museums, Theatres & Cultural Services",AMZNMKTPLACE AMAZON.CO.UK,5.82,Museum Exhibits,5999,MISCELLANEOUS & SPECIALTY STORES
CCC_10002517_13,13/06/2023,"Museums, Theatres & Cultural Services",TESCO STORES 5408 CHELMSFORD,3.30,General Expense,5411,GROCERY STORES OR SUPERMARKETS
CCC_10002508_2,13/06/2023,"Museums, Theatres & Cultural Services",SCREWFIX DIR LTD CHELMFOR1867,3.32,Grounds Maintenance Materials,5211,LUMBER AND BUILDING MATERIALS STORES
CCC_10002456_1,13/06/2023,"Museums, Theatres & Cultural Services",WWW.DISPLAYDEVELOPMENT BELVEDERE KE,22.85,Museum Exhibits,5399,GENERAL MERCHANDISE OR CONVENIENCE FOOD STORES
CCC_10002464_1,14/06/2023,Spatial Planning,TRAVELODG TRAVELODGE G THAME,151.27,Accommodation,3615,TRAVELODGE
CCC_10003169_14,14/06/2023,Leisure & Heritage Services,AMZNMKTPLACE AMAZON.CO.UK,6.22,New Equipment,5999,MISCELLANEOUS & SPECIALTY STORES
CCC_10002670_32,14/06/2023,South Essex Parking Partnership,AMZNMKTPLACE AMAZON.CO AMAZON.CO.UK,10.82,General Expense,5999,MISCELLANEOUS & SPECIALTY STORES
CCC_10002473_4,14/06/2023,Operational Services,DVLA VEHICLE TAX 0300 1234321,302.50,Vehicle Tax,9311,TAX PAYMENTS
CCC_10002440_1,14/06/2023,Leisure & Heritage Services,B&M 756 TURNER RISE COLCHESTER,28.50,New Equipment,5399,GENERAL MERCHANDISE OR CONVENIENCE FOOD STORES
CCC_10002508_1,14/06/2023,"Museums, Theatres & Cultural Services",SCREWFIX DIR LTD CHELMFOR1867,2.48,Grounds Maintenance Materials,5211,LUMBER AND BUILDING MATERIALS STORES
CCC_10002450_2,14/06/2023,Marketing & Communications Team,WWW.SOLOPRESS.COM SOUTHEND-ON-S,161.38,Advertising,2741,MISCELLANEOUS PUBLISHING AND PRINTING
CCC_10003806_23,14/06/2023,Building Services,AMZNMKTPLACE AMAZON.CO AMAZON.CO.UK,22.92,General Expense,5999,MISCELLANEOUS & SPECIALTY STORES
CCC_10002473_2,14/06/2023,Operational Services,DVLA VEHICLE TAX 0300 1234321,322.50,Vehicle Tax,9311,TAX PAYMENTS
CCC_10003806_22,14/06/2023,Building Services,KINGDOM COFFEE READING,275.88,General Expense,5499,MISC FOOD STORES - SPECIALTY MARKETS & CONVENIENCE
CCC_10002453_1,14/06/2023,"Museums, Theatres & Cultural Services",AMZNMKTPLACE AMAZON.CO.UK,15.07,Museum Exhibits,5999,MISCELLANEOUS & SPECIALTY STORES
CCC_10002661_1,14/06/2023,Leisure & Heritage Services,EBAY O 04-10177-19584 LONDON,8.29,New Equipment,5311,DEPARTMENT STORES
CCC_10002753_9,14/06/2023,Development Management,LITTLEGREENPAPERSHOP SANDBACH,559.00,Printing & Stationary,5399,GENERAL MERCHANDISE OR CONVENIENCE FOOD STORES
CCC_10002473_5,14/06/2023,Operational Services,DVLA VEHICLE TAX 0300 1234321,302.50,Vehicle Tax,9311,TAX PAYMENTS
CCC_10002473_1,14/06/2023,Operational Services,DVLA VEHICLE TAX 0300 1234321,322.50,Vehicle Tax,9311,TAX PAYMENTS
CCC_10002531_15,14/06/2023,"Museums, Theatres & Cultural Services",WWW.FLINTS.CO.UK LONDON  SE8,205.30,New Equipment,5691,MEN'S AND WOMEN'S CLOTHING STORES
CCC_10002437_1,14/06/2023,Housing Services,TRAVELODG TRAVELODGE G THAME,410.78,General Expense,3615,TRAVELODGE
CCC_10002517_14,14/06/2023,"Museums, Theatres & Cultural Services",TESCO STORES 5408 CHELMSFORD,2.30,General Expense,5411,GROCERY STORES OR SUPERMARKETS
CCC_10002436_1,14/06/2023,Development Management,AMZNMKTPLACE AMAZON.CO.UK,86.60,Printing & Stationary,5999,MISCELLANEOUS & SPECIALTY STORES
CCC_10002753_10,14/06/2023,Development Management,LITTLEGREENPAPERSHOP SANDBACH,314.50,Printing & Stationary,5399,GENERAL MERCHANDISE OR CONVENIENCE FOOD STORES
CCC_10002510_4,14/06/2023,Parks & Green Spaces,LOOKERS NEWCASTLE,3.14,Vehicle Repairs,7538,AUTOMOTIVE SERVICE SHOPS (NON-DEALER)
CCC_10002519_1,14/06/2023,"Museums, Theatres & Cultural Services",AMZNMKTPLACE AMAZON.CO AMAZON.CO.UK,33.22,Printing & Stationary,5999,MISCELLANEOUS & SPECIALTY STORES
CCC_10002439_1,14/06/2023,Leisure & Heritage Services,AMZNMKTPLACE AMAZON.CO.UK,28.32,New Equipment,5999,MISCELLANEOUS & SPECIALTY STORES
CCC_10002450_3,14/06/2023,Marketing & Communications Team,WWW.SOLOPRESS.COM SOUTHEND-ON-S,131.73,Printing & Stationary,2741,MISCELLANEOUS PUBLISHING AND PRINTING
CCC_10002548_8,14/06/2023,Parks & Green Spaces,CHANDLER MATERIALS CHELMSFORD,89.85,General Expense,5211,LUMBER AND BUILDING MATERIALS STORES
CCC_10003504_6,14/06/2023,Parks & Green Spaces,HSFLORALDESIGNS.CO.UK BLACKMORE IN,105.50,Grounds Maintenance Materials,5992,FLORISTS
CCC_10002622_7,14/06/2023,"Museums, Theatres & Cultural Services",WWW.SCREWFIX.COM YEOVIL,6.40,General Expense,5211,LUMBER AND BUILDING MATERIALS STORES
CCC_10003853_18,14/06/2023,Building Services,WWW.NISBETS.COM 0845 1110281,68.15,General Expense,5964,CATALOG MERCHANT
CCC_10002430_3,14/06/2023,"Museums, Theatres & Cultural Services",AIMUSEUMS ELLESMERE POR,172.00,Employee Subscriptions,8699,MEMBERSHIP ORGANIZATIONS NOT ELSEWHERE CLASSIFIED
CCC_10002510_5,14/06/2023,Parks & Green Spaces,EURO CAR PARTS P 106CHELMSFOR,149.61,Vehicle Repairs,5533," AUTOMOTIVE PARTS, ACCESSORIES STORES "
CCC_10002467_1,14/06/2023,Street Care & Performance,WILKO RETAIL LIMITED CHELMSFORD,7.50,General Expense,5399,GENERAL MERCHANDISE OR CONVENIENCE FOOD STORES
CCC_10002504_4,14/06/2023,Marketing & Communications Team,PRINT MARKETPLACE 40 2802345,35.22,Printing & Stationary,7338," PRINT SHOPS, QUICK COPY SERVICES OR REPRODUCTION SERVICES "
CCC_10002450_1,14/06/2023,Marketing & Communications Team,AMZNMKTPLACE AMAZON.CO AMAZON.CO.UK,3.67,Advertising,5999,MISCELLANEOUS & SPECIALTY STORES
CCC_10002517_15,14/06/2023,"Museums, Theatres & Cultural Services",TESCO STORES 5408 CHELMSFORD,7.45,General Expense,5411,GROCERY STORES OR SUPERMARKETS
CCC_10003853_17,14/06/2023,Building Services,WWW.NISBETS.COM 0845 1110281,29.71,General Expense,5964,CATALOG MERCHANT
CCC_10002473_3,14/06/2023,Operational Services,DVLA VEHICLE TAX 0300 1234321,302.50,Vehicle Tax,9311,TAX PAYMENTS
CCC_10002378_4,14/06/2023,Parks & Green Spaces,AMZNMKTPLACE AMAZON.CO.UK,6.65,Printing & Stationary,5999,MISCELLANEOUS & SPECIALTY STORES
CCC_10002541_4,15/06/2023,Leisure & Heritage Services,FURNITUREFACTOR.CO.UK LEICESTER,169.00,General Expense,5712," FURNITURE, HOME FURNISHINGS & EQUIP STORES EXCL APPLIANCES "
CCC_10002438_1,15/06/2023,Leisure & Heritage Services,AMZNMKTPLACE AMAZON.CO.UK,39.97,New Equipment,5999,MISCELLANEOUS & SPECIALTY STORES
CCC_10002517_19,15/06/2023,"Museums, Theatres & Cultural Services",DUKE STREET COOP 01245 345490,4.75,General Expense,5311,DEPARTMENT STORES
CCC_10002601_6,15/06/2023,Parks & Green Spaces,AMZNMKTPLACE AMAZON.CO.UK,13.32,Grounds Maintenance Materials,5999,MISCELLANEOUS & SPECIALTY STORES
CCC_10002721_9,15/06/2023,Housing Services,PREMIER INN CHELMSFORD,130.83,General Expense,3811,PREMIER TRAVEL INN
CCC_10003806_26,15/06/2023,Building Services,WWW.GARDENMACHINERYDIR INTERNET,284.16,General Expense,5261,GARDEN AND LAWN SUPPLY STORES OR NURSERIES
CCC_10002388_3,15/06/2023,Digital Services,WWW.THERANGE.CO.UK PLYMOUTH,80.88,New Equipment,5719,HOME FURNISHING SPECIALTY STORES -- MISCELLANEOUS
CCC_10002429_1,15/06/2023,Leisure & Heritage Services,BOUNCE PURCHASE HARLOW,131.00,New Equipment,5691,MEN'S AND WOMEN'S CLOTHING STORES
CCC_10002601_5,15/06/2023,Parks & Green Spaces,AMZNMKTPLACE AMAZON.CO.UK,12.61,Grounds Maintenance Materials,5999,MISCELLANEOUS & SPECIALTY STORES
CCC_10002753_8,15/06/2023,Development Management,ETSY.COM - GIFTEDGENIU ETSY.COM,204.07,Printing & Stationary,5699,APPAREL AND ACCESSORY SHOPS -- MISCELLANEOUS
CCC_10003169_13,15/06/2023,Leisure & Heritage Services,FURNITUREFACTOR.CO.UK LEICESTER,169.00,New Equipment,5712," FURNITURE, HOME FURNISHINGS & EQUIP STORES EXCL APPLIANCES "
CCC_10003392_8,15/06/2023,Leisure & Heritage Services,SPOTIFY P23B7E33B5 LONDON,9.99,General Expense,5815," DIGITAL GOODS MEDIA: BOOKS, MOVIES, MUSIC "
CCC_10002517_16,15/06/2023,"Museums, Theatres & Cultural Services",TESCO STORES 5408 CHELMSFORD,4.58,General Expense,5411,GROCERY STORES OR SUPERMARKETS
CCC_10003806_24,15/06/2023,Building Services,AMZNMKTPLACE AMAZON.CO AMAZON.CO.UK,10.41,General Expense,5999,MISCELLANEOUS & SPECIALTY STORES
CCC_10003806_25,15/06/2023,Building Services,WWW.SCREWFIX.COM YEOVIL,59.99,General Expense,5211,LUMBER AND BUILDING MATERIALS STORES
CCC_10003314_11,15/06/2023,Marketing & Communications Team,CANVA  I03817-18967315 CAMDEN,108.25,Advertising,7221,PHOTOGRAPHIC STUDIOS
CCC_10002536_4,15/06/2023,Parks & Green Spaces,WOB.COM BRIGHTON AND,9.99,Publications,5192," BOOKS, PERIODICALS AND NEWSPAPERS "
CCC_10002304_5,15/06/2023,Leisure & Heritage Services,CHELMSFORD.GOV.UK ESSEX,23.00,General Expense,9399,GOVERNMENT SERVICES (NEC) OR FIRE DEPARTMENTS
CCC_10002541_5,15/06/2023,Leisure & Heritage Services,TESCO STORES 2330 CHELMSFORD 2,15.60,General Expense,5411,GROCERY STORES OR SUPERMARKETS
CCC_10002624_1,15/06/2023,Leisure & Heritage Services,FOAMS 4 SPORTS ASHTON-UNDER-,48.00,New Equipment,5941,SPORTING GOODS STORES
CCC_10002517_17,15/06/2023,"Museums, Theatres & Cultural Services",TESCO STORES 5408 CHELMSFORD,8.10,General Expense,5411,GROCERY STORES OR SUPERMARKETS
CCC_10002517_18,16/06/2023,"Museums, Theatres & Cultural Services",TESCO STORES 5408 CHELMSFORD,3.30,General Expense,5411,GROCERY STORES OR SUPERMARKETS
CCC_10002486_1,16/06/2023,Marketing & Communications Team,ARTS MARKETING ASS CAMBRIDGE,74.00,Training Expenses,8398,CHARITABLE OR SOCIAL SERVICES ORGANIZATIONS
CCC_10003806_27,16/06/2023,Building Services,SAINSBURYS.CO.UK 0800 328 1700,66.30,General Expense,5411,GROCERY STORES OR SUPERMARKETS
CCC_10002601_4,16/06/2023,Parks & Green Spaces,AMZNMKTPLACE AMAZON.CO.UK,42.25,Grounds Maintenance Materials,5999,MISCELLANEOUS & SPECIALTY STORES
CCC_10002481_3,16/06/2023,Leisure & Heritage Services,WWW.JACAMO.CO.UK MANCHESTER,15.00,Clothing & Uniforms,5691,MEN'S AND WOMEN'S CLOTHING STORES
CCC_10002481_2,16/06/2023,Leisure & Heritage Services,WWW.JACAMO.CO.UK MANCHESTER,15.00,Clothing & Uniforms,5691,MEN'S AND WOMEN'S CLOTHING STORES
CCC_10002547_5,16/06/2023,"Museums, Theatres & Cultural Services",WWW.SCREWFIX.COM YEOVIL,4.65,Museum Exhibits,5211,LUMBER AND BUILDING MATERIALS STORES
CCC_10002794_1,16/06/2023,Revenue and Benefit Services,SOUTHEND COUNTY WWW.JUCTIC.GO,782.50,General Expense,9222,FINES
CCC_10002531_14,16/06/2023,"Museums, Theatres & Cultural Services",TESCO STORES 5408 CHELMSFORD,5.08,General Expense,5411,GROCERY STORES OR SUPERMARKETS
CCC_10002510_27,16/06/2023,Parks & Green Spaces,D. BYFORD & SONS COLCHESTER CO,33.50,General Expense,5193," FLORIST SUPPLIES, NURSERY STOCK AND FLOWERS "
CCC_10002478_2,16/06/2023,Leisure & Heritage Services,GREATERANGLIACOM LONDON,46.00,Public Transport,4112,PASSENGER RAILWAYS
CCC_10002488_5,16/06/2023,Leisure & Heritage Services,JUSTGIVING ZOSPLACEBAB LONDON,50.00,Advertising,8398,CHARITABLE OR SOCIAL SERVICES ORGANIZATIONS
CCC_10002790_1,16/06/2023,Leisure & Heritage Services,ASDA SUPERSTORE BASILDON,21.67,General Expense,5411,GROCERY STORES OR SUPERMARKETS
CCC_10002679_1,16/06/2023,Leisure & Heritage Services,AMZNMKTPLACE AMAZON.CO.UK,26.65,New Equipment,5999,MISCELLANEOUS & SPECIALTY STORES
CCC_10002721_8,16/06/2023,Housing Services,PREMIER INN CHELMSFORD,90.00,General Expense,3811,PREMIER TRAVEL INN
CCC_10002536_3,16/06/2023,Parks & Green Spaces,MARKSHALL TRADING LTD COLCHESTER,79.17,General Expense,7399,BUSINESS SERVICES (NEC)
CCC_10002483_2,16/06/2023,Leisure & Heritage Services,WWW.SCREWFIX.COM YEOVIL,67.65,Grounds Maintenance Materials,5211,LUMBER AND BUILDING MATERIALS STORES
CCC_10003806_28,16/06/2023,Building Services,AMZNMKTPLACE AMAZON.CO AMAZON.CO.UK,9.94,General Expense,5999,MISCELLANEOUS & SPECIALTY STORES
CCC_10002541_3,17/06/2023,Leisure & Heritage Services,TESCO STORES 2882 MALDON,7.95,General Expense,5411,GROCERY STORES OR SUPERMARKETS
CCC_10002517_20,17/06/2023,"Museums, Theatres & Cultural Services",TESCO STORES 5408 CHELMSFORD,6.60,General Expense,5411,GROCERY STORES OR SUPERMARKETS
CCC_10002595_5,17/06/2023,Operational Services,FACEBK LEGLVNFZA2 FB.ME/ADS,52.22,Advertising,7311,ADVERTISING SERVICES
CCC_10002561_1,17/06/2023,Parking & Highways Operations,MARKS&SPENCER PLC INTERNET,41.67,Clothing & Uniforms,5411,GROCERY STORES OR SUPERMARKETS
CCC_10002670_31,17/06/2023,South Essex Parking Partnership,SUMUP   ASHINGTON VALE ROCHFORD,40.00,General Expense,7210," CLEANING, LAUNDRY AND GARMENT SERVICES "
CCC_10003806_29,17/06/2023,Building Services,AMZNBUSINESS 6A1EK0U85 AMAZON.CO.UK,25.70,General Expense,5999,MISCELLANEOUS & SPECIALTY STORES
CCC_10002510_26,18/06/2023,Parks & Green Spaces,AMAZON.CO.UK Y19O499J5 AMAZON.CO.UK,13.74,Vehicle Repairs,5969,DIRECT MARKETERS (NEC)
CCC_10002510_23,18/06/2023,Parks & Green Spaces,AMAZON.CO.UK KI6Z69BK5 AMAZON.CO.UK,13.75,Vehicle Repairs,5969,DIRECT MARKETERS (NEC)
CCC_10002484_3,18/06/2023,Legal & Democratic Services,AMZNBUSINESS R61FZ1TA5 LUXEMBOURG L,9.27,Printing & Stationary,5999,MISCELLANEOUS & SPECIALTY STORES
CCC_10002510_22,18/06/2023,Parks & Green Spaces,AMAZON.CO.UK MS6XM9XN5 AMAZON.CO.UK,13.75,Vehicle Repairs,5969,DIRECT MARKETERS (NEC)
CCC_10002510_24,18/06/2023,Parks & Green Spaces,AMAZON.CO.UK 2178W3PW5 AMAZON.CO.UK,13.75,Vehicle Repairs,5969,DIRECT MARKETERS (NEC)
CCC_10002495_1,18/06/2023,Leisure & Heritage Services,WM MORRISONS STORE CHELMSFORD,32.00,New Equipment,5411,GROCERY STORES OR SUPERMARKETS
CCC_10002510_15,18/06/2023,Parks & Green Spaces,AMZNMKTPLACE AMAZON.CO.UK,7.49,General Expense,5999,MISCELLANEOUS & SPECIALTY STORES
CCC_10002510_21,18/06/2023,Parks & Green Spaces,AMAZON.CO.UK YY1PY5DI5 AMAZON.CO.UK,13.75,Vehicle Repairs,5969,DIRECT MARKETERS (NEC)
CCC_10002510_16,18/06/2023,Parks & Green Spaces,AMZNMKTPLACE AMAZON.CO.UK,7.48,General Expense,5999,MISCELLANEOUS & SPECIALTY STORES
CCC_10002482_1,18/06/2023,Parks & Green Spaces,AMZNMKTPLACE AMAZON.CO AMAZON.CO.UK,32.47,Grounds Maintenance Materials,5999,MISCELLANEOUS & SPECIALTY STORES
CCC_10002510_20,18/06/2023,Parks & Green Spaces,AMAZON.CO.UK MO3SU5355 AMAZON.CO.UK,13.75,Vehicle Repairs,5969,DIRECT MARKETERS (NEC)
CCC_10002510_17,18/06/2023,Parks & Green Spaces,AMAZON.CO.UK DG8FF4KO5 AMAZON.CO.UK,13.75,Vehicle Repairs,5969,DIRECT MARKETERS (NEC)
CCC_10002510_25,18/06/2023,Parks & Green Spaces,AMAZON.CO.UK 8O7Q92P85 AMAZON.CO.UK,13.75,Vehicle Repairs,5969,DIRECT MARKETERS (NEC)
CCC_10002482_2,18/06/2023,Parks & Green Spaces,AMZNMKTPLACE AMAZON.CO AMAZON.CO.UK,16.65,Grounds Maintenance Materials,5999,MISCELLANEOUS & SPECIALTY STORES
CCC_10002510_18,18/06/2023,Parks & Green Spaces,AMAZON.CO.UK CX0UD5855 AMAZON.CO.UK,13.75,Vehicle Repairs,5969,DIRECT MARKETERS (NEC)
CCC_10002510_19,18/06/2023,Parks & Green Spaces,AMAZON.CO.UK IS5JE2FV5 AMAZON.CO.UK,13.75,Vehicle Repairs,5969,DIRECT MARKETERS (NEC)
CCC_10002548_7,19/06/2023,Parks & Green Spaces,TESCO-STORES 6724 CHELMSFORD,3.00,General Expense,5411,GROCERY STORES OR SUPERMARKETS
CCC_10002488_4,19/06/2023,Leisure & Heritage Services,SPAR BURBAGE HINCKLEY,2.47,General Expense,5411,GROCERY STORES OR SUPERMARKETS
CCC_10002463_5,19/06/2023,Marketing & Communications Team,ASDA GEORGE COM LEEDS LEEDS,128.95,New Equipment,5411,GROCERY STORES OR SUPERMARKETS
CCC_10002622_8,19/06/2023,"Museums, Theatres & Cultural Services",IRONMONGERYDIRECT BASILDON,45.64,General Expense,5251,HARDWARE STORES
CCC_10002517_21,19/06/2023,"Museums, Theatres & Cultural Services",TESCO STORES 5408 CHELMSFORD,6.75,General Expense,5411,GROCERY STORES OR SUPERMARKETS
CCC_10002670_29,19/06/2023,South Essex Parking Partnership,SAVERS HEALTH & BEAUTY BRENTWOOD,8.89,General Expense,5912,PHARMCIES OR DRUG STORES
CCC_10002479_3,19/06/2023,"Museums, Theatres & Cultural Services",AMZNMKTPLACE AMAZON.CO AMAZON.CO.UK,28.32,General Expense,5999,MISCELLANEOUS & SPECIALTY STORES
CCC_10002670_30,19/06/2023,South Essex Parking Partnership,WILKO RETAIL LIMITED BRENTWOOD,2.67,General Expense,5399,GENERAL MERCHANDISE OR CONVENIENCE FOOD STORES
CCC_10002487_1,19/06/2023,Marketing & Communications Team,FACEBK 8MNSER3LD2 FB.ME/ADS,60.00,Advertising,7311,ADVERTISING SERVICES
CCC_10002665_28,19/06/2023,Housing Services,TRAVELODG TRAVELODGE G THAME,171.65,General Expense,3615,TRAVELODGE
CCC_10002670_27,19/06/2023,South Essex Parking Partnership,ARCO LTD BASILDON,34.38,Clothing & Uniforms,5085,INDUSTRIAL SUPPLIES (NEC)
CCC_10002476_1,19/06/2023,Corporate Property Services,CPTEVENTS.CO.UK 07971 563782,290.00,Training Expenses,7399,BUSINESS SERVICES (NEC)
CCC_10002601_3,19/06/2023,Parks & Green Spaces,AMZNMKTPLACE AMAZON.CO.UK,49.79,Grounds Maintenance Materials,5999,MISCELLANEOUS & SPECIALTY STORES
CCC_10002480_3,19/06/2023,Parking & Highways Operations,WWW.SCREWFIX.COM YEOVIL,11.36,Car Parking,5211,LUMBER AND BUILDING MATERIALS STORES
CCC_10002531_13,19/06/2023,"Museums, Theatres & Cultural Services",WWW.SOAPNATIONAL.CO.UK IPSWICH IP6,13.90,General Expense,2842," SPECIALTY CLEANING, POLISHING AND SANITATION PREPS "
CCC_10002475_1,19/06/2023,Digital Services,TRAINLINE +443332022222,36.37,Public Transport,4112,PASSENGER RAILWAYS
CCC_10002721_6,19/06/2023,Housing Services,TRAVELODG TRAVELODGE G THAME,747.42,General Expense,3615,TRAVELODGE
CCC_10002489_1,19/06/2023,Marketing & Communications Team,CIM MAIDENHEAD,100.00,Training Expenses,8299,SCHOOLS AND EDUCATIONAL SERVICES (NEC)
CCC_10002665_26,19/06/2023,Housing Services,AMZNMKTPLACE AMAZON.CO.UK,29.98,General Expense,5999,MISCELLANEOUS & SPECIALTY STORES
CCC_10002430_2,19/06/2023,"Museums, Theatres & Cultural Services",CULTURAL ENTERPRISES SALISBURY,150.00,Employee Subscriptions,8398,CHARITABLE OR SOCIAL SERVICES ORGANIZATIONS
CCC_10002491_1,19/06/2023,"Museums, Theatres & Cultural Services",ETSY.COM - BUSHMANSURV LONDON,20.83,New Equipment,5399,GENERAL MERCHANDISE OR CONVENIENCE FOOD STORES
CCC_10002486_2,19/06/2023,Marketing & Communications Team,WWW.SOLOPRESS.COM SOUTHEND-ON-S,98.11,Printing & Stationary,2741,MISCELLANEOUS PUBLISHING AND PRINTING
CCC_10002670_28,19/06/2023,South Essex Parking Partnership,SHELL STAINES,49.17,Fuel,5541,GAS/SERVICE STATIONS WITH/WITHOUT ANCILLARY SERVICES
CCC_10002476_2,19/06/2023,Corporate Property Services,PROCONFERENCES.COM 01932 752685,119.00,Training Expenses,8220," UNIVERSITIES, COLLEGES, SR COLLEGES OR PROFESSIONAL SCHOOLS "
CCC_10002665_27,19/06/2023,Housing Services,TRAVELODG TRAVELODGE G THAME,238.31,General Expense,3615,TRAVELODGE
CCC_10002479_2,19/06/2023,"Museums, Theatres & Cultural Services",AMZNMKTPLACE AMAZON.CO AMAZON.CO.UK,19.98,General Expense,5999,MISCELLANEOUS & SPECIALTY STORES
CCC_10002670_26,19/06/2023,South Essex Parking Partnership,SPORTSDIRECT 299 08443325299,4.99,Clothing & Uniforms,5941,SPORTING GOODS STORES
CCC_10002568_2,19/06/2023,Marketing & Communications Team,WORDPRESS 7WD6B74P8J DUBLIN,10.00,Advertising,5734,COMPUTER SOFTWARE STORES
CCC_10003504_5,19/06/2023,Parks & Green Spaces,TESCO STORES 2330 CHELMSFORD 2,47.50,Grounds Maintenance Materials,5411,GROCERY STORES OR SUPERMARKETS
CCC_10002721_7,19/06/2023,Housing Services,TRAVELODG TRAVELODGE G THAME,503.27,General Expense,3615,TRAVELODGE
CCC_10002529_1,19/06/2023,"Museums, Theatres & Cultural Services",CHELMSFORD CITY CHELMSFORD,1.33,Museum Exhibits,5947," CARD, GIFT, NOVELTY OR SOUVENIR SHOPS "
CCC_10002510_14,19/06/2023,Parks & Green Spaces,KINGSPAN WATER  ENERG CARRICKMACROS,8.53,New Equipment,5999,MISCELLANEOUS & SPECIALTY STORES
CCC_10002547_4,19/06/2023,"Museums, Theatres & Cultural Services",AMZNMKTPLACE AMAZON.CO.UK,10.79,Printing & Stationary,5999,MISCELLANEOUS & SPECIALTY STORES
CCC_10002508_5,19/06/2023,"Museums, Theatres & Cultural Services",SCREWFIX DIR LTD CHELMFOR1867,7.24,Grounds Maintenance Materials,5211,LUMBER AND BUILDING MATERIALS STORES
CCC_10002488_3,19/06/2023,Leisure & Heritage Services,BURBAGE STAR PIZZA HINCKLEY,12.50,General Expense,5814,FAST FOOD RESTAURANTS
CCC_10003806_30,20/06/2023,Building Services,NEXTDAYCATERING.CO.UK AYR,24.66,General Expense,5046,COMMERCIAL EQUIPMENT (NEC)
CCC_10002769_7,20/06/2023,Parking & Highways Operations,AMZNMKTPLACE AMAZON.CO.UK,15.62,General Expense,5999,MISCELLANEOUS & SPECIALTY STORES
CCC_10002490_3,20/06/2023,Leisure & Heritage Services,AMZNMKTPLACE AMAZON.CO.UK,71.25,General Expense,5999,MISCELLANEOUS & SPECIALTY STORES
CCC_10002769_11,20/06/2023,Parking & Highways Operations,AMZNMKTPLACE AMAZON.CO.UK,21.67,General Expense,5999,MISCELLANEOUS & SPECIALTY STORES
CCC_10002483_1,20/06/2023,Leisure & Heritage Services,PIPESTOCK.COM ROMSEY,131.50,Grounds Maintenance Materials,5074,PLUMBING AND HEATING EQUIPMENT AND SUPPLIES
CCC_10002490_1,20/06/2023,Leisure & Heritage Services,AMZNMKTPLACE AMAZON.CO AMAZON.CO.UK,4.97,General Expense,5999,MISCELLANEOUS & SPECIALTY STORES
CCC_10002480_2,20/06/2023,Parking & Highways Operations,WWW.SCREWFIX.COM YEOVIL,37.49,New Equipment,5211,LUMBER AND BUILDING MATERIALS STORES
CCC_10002659_1,20/06/2023,Leisure & Heritage Services,AMZNMKTPLACE AMAZON.CO.UK,158.32,Printing & Stationary,5999,MISCELLANEOUS & SPECIALTY STORES
CCC_10002490_2,20/06/2023,Leisure & Heritage Services,AMZNMKTPLACE AMAZON.CO AMAZON.CO.UK,3.30,General Expense,5999,MISCELLANEOUS & SPECIALTY STORES
CCC_10002479_1,20/06/2023,"Museums, Theatres & Cultural Services",AMZNMKTPLACE AMAZON.CO.UK,22.45,General Expense,5999,MISCELLANEOUS & SPECIALTY STORES
CCC_10002622_9,20/06/2023,"Museums, Theatres & Cultural Services",SP WASHROOMSHOPIFY ABRIDGE ROMF,81.67,General Expense,5399,GENERAL MERCHANDISE OR CONVENIENCE FOOD STORES
CCC_10002517_22,20/06/2023,"Museums, Theatres & Cultural Services",TESCO STORES 5408 CHELMSFORD,4.95,General Expense,5411,GROCERY STORES OR SUPERMARKETS
CCC_10002566_9,20/06/2023,Leisure & Heritage Services,AMZNMKTPLACE AMAZON.CO AMAZON.CO.UK,22.07,New Equipment,5999,MISCELLANEOUS & SPECIALTY STORES
CCC_10002548_6,20/06/2023,Parks & Green Spaces,MARKS&SPENCER PLC SACA CHELMSFORD SF,30.08,General Expense,5411,GROCERY STORES OR SUPERMARKETS
CCC_10002488_2,20/06/2023,Leisure & Heritage Services,MCDONALDS NORTHAMPTON,3.68,General Expense,5814,FAST FOOD RESTAURANTS
CCC_10002769_8,20/06/2023,Parking & Highways Operations,AMZNMKTPLACE AMAZON.CO.UK,22.68,General Expense,5999,MISCELLANEOUS & SPECIALTY STORES
CCC_10002546_1,20/06/2023,Street Care & Performance,J STUDMAN ELECTRICAL CHELMSFORD,6.67,New Equipment,7629,APPLIANCE OR ELECTRICAL REPAIR SHOPS
CCC_10002670_25,20/06/2023,South Essex Parking Partnership,SCHUH CHELMSFORD CHELMSFORD,58.33,Clothing & Uniforms,5661,SHOE STORES
CCC_10002769_10,20/06/2023,Parking & Highways Operations,AMZNMKTPLACE AMAZON.CO.UK,33.62,General Expense,5999,MISCELLANEOUS & SPECIALTY STORES
CCC_10003646_10,20/06/2023,Operational Services,TRI-ARD STAINLESS FAST WILLENHALL,93.99,Vehicle Repairs,5072," HARDWARE, PLUMBING, HEATING EQUIPMENT AND SUPPLIES "
CCC_10002769_9,20/06/2023,Parking & Highways Operations,AMZNMKTPLACE AMAZON.CO.UK,53.62,General Expense,5999,MISCELLANEOUS & SPECIALTY STORES
CCC_10002646_2,20/06/2023,Leisure & Heritage Services,AMZNMKTPLACE AMAZON.CO AMAZON.CO.UK,43.32,New Equipment,5999,MISCELLANEOUS & SPECIALTY STORES
CCC_10002488_1,20/06/2023,Leisure & Heritage Services,LEONARDO HTL HINCKLEY HINCKLEY,92.25,Accommodation,7011," LODGING,HOTELS,MOTELS,RESORTS "
CCC_10002547_3,20/06/2023,"Museums, Theatres & Cultural Services",AMZNMKTPLACE AMAZON.CO.UK,27.89,Printing & Stationary,5999,MISCELLANEOUS & SPECIALTY STORES
CCC_10002670_24,21/06/2023,South Essex Parking Partnership,TESCO STORES 5408 CHELMSFORD,9.17,General Expense,5411,GROCERY STORES OR SUPERMARKETS
CCC_10002510_11,21/06/2023,Parks & Green Spaces,THE HOSE MASTER NELSON,8.77,New Equipment,5074,PLUMBING AND HEATING EQUIPMENT AND SUPPLIES
CCC_10002517_23,21/06/2023,"Museums, Theatres & Cultural Services",TESCO STORES 5408 CHELMSFORD,8.60,General Expense,5411,GROCERY STORES OR SUPERMARKETS
CCC_10002521_1,21/06/2023,"Museums, Theatres & Cultural Services",GREATERANGLIACOM LONDON,18.96,Public Transport,4112,PASSENGER RAILWAYS
CCC_10002624_2,21/06/2023,Leisure & Heritage Services,FOAMS 4 SPORTS ASHTON-UNDER-,-48.00,New Equipment,5941,SPORTING GOODS STORES
CCC_10002670_23,21/06/2023,South Essex Parking Partnership,COSTA COFFEE 43010771 CHELMSFORD,13.45,General Expense,5814,FAST FOOD RESTAURANTS
CCC_10002463_4,21/06/2023,Marketing & Communications Team,FACEBK  J3HSDU7AK2 FB.ME/ADS,400.00,Advertising,7311,ADVERTISING SERVICES
CCC_10002493_1,21/06/2023,Leisure & Heritage Services,AMZNMKTPLACE AMAZON.CO.UK,23.18,New Equipment,5999,MISCELLANEOUS & SPECIALTY STORES
CCC_10002492_2,21/06/2023,Public Health & Protection Services,TRAINLINE.COM LONDON,40.32,Public Transport,4112,PASSENGER RAILWAYS
CCC_10002541_2,21/06/2023,Leisure & Heritage Services,AMZNMKTPLACE AMAZON.CO.UK,26.32,General Expense,5999,MISCELLANEOUS & SPECIALTY STORES
CCC_10002755_14,21/06/2023,Leisure & Heritage Services,CANVA  03823-18850463 SYDNEY,5.94,Employee Subscriptions,7333," PHOTOGRAPHY, ART AND GRAPHIC -- COMMERCIAL "
CCC_10002513_1,21/06/2023,Development Management,AMZNMKTPLACE AMAZON.CO AMAZON.CO.UK,7.49,Printing & Stationary,5999,MISCELLANEOUS & SPECIALTY STORES
CCC_10002665_25,21/06/2023,Housing Services,TRAVELODG TRAVELODGE G THAME,156.65,General Expense,3615,TRAVELODGE
CCC_10002769_5,21/06/2023,Parking & Highways Operations,AMZNMKTPLACE AMAZON.CO.UK,9.96,General Expense,5999,MISCELLANEOUS & SPECIALTY STORES
CCC_10002566_8,21/06/2023,Leisure & Heritage Services,AMZNMKTPLACE AMAZON.CO.UK,19.82,New Equipment,5999,MISCELLANEOUS & SPECIALTY STORES
CCC_10002506_3,21/06/2023,Parking & Highways Operations,POUNDSTRETCHER CHELMSFORD,3.50,General Expense,5331,VARIETY STORES
CCC_10002755_15,21/06/2023,Leisure & Heritage Services,PRINT MARKETPLACE 40 2802345,39.21,Printing & Stationary,7338," PRINT SHOPS, QUICK COPY SERVICES OR REPRODUCTION SERVICES "
CCC_10002494_1,21/06/2023,Leisure & Heritage Services,AMZNMKTPLACE AMAZON.CO.UK,17.26,New Equipment,5999,MISCELLANEOUS & SPECIALTY STORES
CCC_10002769_6,21/06/2023,Parking & Highways Operations,AMZNMKTPLACE AMAZON.CO.UK,6.66,General Expense,5999,MISCELLANEOUS & SPECIALTY STORES
CCC_10002759_1,21/06/2023,Leisure & Heritage Services,POST OFFICE COUNTER CHELMSFORD,6.99,Printing & Stationary,9402,POSTAGE STAMPS
CCC_10002510_13,21/06/2023,Parks & Green Spaces,GSF CAR PARTS SPRINGFIELD,349.05,Vehicle Repairs,5013,MOTOR VEHICLE SUPPLIES AND NEW PARTS
CCC_10002566_7,21/06/2023,Leisure & Heritage Services,TESCO STORES 2172 BRAINTREE,40.09,General Expense,5411,GROCERY STORES OR SUPERMARKETS
CCC_10003931_4,21/06/2023,Parks & Green Spaces,AMZ AMAZON BUSINESS UK AMAZON.CO.UK,-16.50,General Expense,5969,DIRECT MARKETERS (NEC)
CCC_10002492_1,21/06/2023,Public Health & Protection Services,SECURITY INDUSTRY AUTH LONDON,76.67,Employee Subscriptions,9399,GOVERNMENT SERVICES (NEC) OR FIRE DEPARTMENTS
CCC_10002531_12,22/06/2023,"Museums, Theatres & Cultural Services",CONNECT DISTRIBUTION S BIRMINGHAM,24.97,New Equipment,5722,APPLIANCE STORES (NEC) OR HOUSEHOLD APPLIANCE STORES
CCC_10002512_1,22/06/2023,Development Management,AMZNMKTPLACE AMAZON.CO AMAZON.CO.UK,7.47,Printing & Stationary,5999,MISCELLANEOUS & SPECIALTY STORES
CCC_10002531_10,22/06/2023,"Museums, Theatres & Cultural Services",BUY IT DIRECT HUDDERSFIELD,279.12,New Equipment,5732,ELECTRONIC SALES
CCC_10002480_1,22/06/2023,Parking & Highways Operations,WWW.ARGOS.CO.UK MILTON KEYNES,15.00,New Equipment,5311,DEPARTMENT STORES
CCC_10002704_3,22/06/2023,"Museums, Theatres & Cultural Services",IKEA LTD 262 LAKESIDE WEST THURROCK,27.50,Museum Exhibits,5712," FURNITURE, HOME FURNISHINGS & EQUIP STORES EXCL APPLIANCES "
CCC_10002531_11,22/06/2023,"Museums, Theatres & Cultural Services",PARTS RETAIL GROUP MANCHESTER,26.64,New Equipment,5722,APPLIANCE STORES (NEC) OR HOUSEHOLD APPLIANCE STORES
CCC_10002516_2,22/06/2023,Leisure & Heritage Services,0007 EXPRESS CHELMSFORD CM,5.48,General Expense,5441," CANDY, CONFECTIONERY OR NUTS STORES "
CCC_10002541_1,22/06/2023,Leisure & Heritage Services,AMZNMKTPLACE AMAZON.CO AMAZON.CO.UK,19.15,General Expense,5999,MISCELLANEOUS & SPECIALTY STORES
CCC_10002706_6,22/06/2023,"Museums, Theatres & Cultural Services",IKEA LTD 262 LAKESIDE WEST THURROCK,24.17,New Equipment,5712," FURNITURE, HOME FURNISHINGS & EQUIP STORES EXCL APPLIANCES "
CCC_10002531_8,22/06/2023,"Museums, Theatres & Cultural Services",PREMIER FARNELL PRESTON,62.60,New Equipment,5065,ELECTRICAL PARTS AND EQUIPMENT
CCC_10002481_1,22/06/2023,Leisure & Heritage Services,POST OFFICE COUNTER CHELMSFORD,3.49,Clothing & Uniforms,9402,POSTAGE STAMPS
CCC_10002477_1,22/06/2023,Operational Services,BOOKER LTD - 38548144 WELLINGBOROUG,83.88,General Expense,5411,GROCERY STORES OR SUPERMARKETS
CCC_10002378_2,22/06/2023,Parks & Green Spaces,WWW.PREMIERNETTING.CO. INTERNET,52.98,Grounds Maintenance Materials,5261,GARDEN AND LAWN SUPPLY STORES OR NURSERIES
CCC_10002528_1,22/06/2023,"Museums, Theatres & Cultural Services",SHOPFITTING WAREHOUSE STURMINSTER M,185.00,Museum Exhibits,4225," PUBLIC WAREHOUSING-FARM PROD,REFRIDGERAT "
CCC_10002536_2,22/06/2023,Parks & Green Spaces,SNAPPY SNAPS CHELMSFOR CHELMSFORD,11.31,General Expense,7395," PHOTOFINISHING LABORATORIES, PHOTO DEVELOPING "
CCC_10002516_3,22/06/2023,Leisure & Heritage Services,0007 EXPRESS CHELMSFORD CM,7.25,General Expense,5441," CANDY, CONFECTIONERY OR NUTS STORES "
CCC_10002531_9,22/06/2023,"Museums, Theatres & Cultural Services",WWW.SCREWFIX.COM YEOVIL,103.37,New Equipment,5211,LUMBER AND BUILDING MATERIALS STORES
CCC_10002811_1,22/06/2023,Leisure & Heritage Services,SQ  PICKLEBALL GAMES U LIPHOOK,133.30,New Equipment,5941,SPORTING GOODS STORES
CCC_10002484_4,22/06/2023,Legal & Democratic Services,AMZNMKTPLACE AMAZON.CO.UK,10.23,Printing & Stationary,5999,MISCELLANEOUS & SPECIALTY STORES
CCC_10002706_5,22/06/2023,"Museums, Theatres & Cultural Services",IKEA LTD 262 LAKESIDE WEST THURROCK,11.67,New Equipment,5712," FURNITURE, HOME FURNISHINGS & EQUIP STORES EXCL APPLIANCES "
CCC_10002540_1,22/06/2023,Operational Services,B & Q 1188 CHELMSFORD,28.00,New Equipment,5200,HOME SUPPLY WAREHOUSE STORES
